Local authority department which incurred the expenditure,Service Division,Cost Centre,Summary of the Purpose of Expenditure,Expense Type,Expense Code,Detailed Expense Type,Date of Transaction,Transaction Number,Beneficiary,Merchant Category Number,Merchant Category,Gross Amount,VAT,Net Amount
"Regeneration, Economy and Growth",Development and Housing,031576,B& B - Temp Accom,Supplies and Services,364320,Grants to Voluntary Organisations,01-Nov-2020,000007358042464,H52STANLEY,7011,Accommodation assistance,75.00,0.00,75.00
Children and Young Peoples Services,Head of Education and Skills,075021,Youth Employment Initiative,Supplies and Services,336005,Advertising E336,01-Nov-2020,000007358042492,FACEBK 3MF7VXSSS2,7311,Advertising other than for staff,30.82,0.00,30.82
Children and Young Peoples Services,Head of Childrens Social Care,085342,16 Hickstead Rise (previously 9 Cedar Ave),Supplies and Services,384999,Miscellaneous Expenses,01-Nov-2020,000007358042526,BODYCARE,5977,Other expenses,12.32,0.00,12.32
Children and Young Peoples Services,Head of Early Help Inclusion & Vulnerable Children.,088109,Spennymoor & Shildon 0-19 Community Family Hub,Supplies and Services,384302,Miscellaneous Expenses,01-Nov-2020,000007358042820,B&M 035 - SHILDON,5399,Activity expenses,8.90,0.00,8.90
Children and Young Peoples Services,Head of Early Help Inclusion & Vulnerable Children.,088109,Spennymoor & Shildon 0-19 Community Family Hub,Supplies and Services,384302,Miscellaneous Expenses,01-Nov-2020,000007358042826,ASDA STORES,5411,Activity expenses,10.04,0.00,10.04
Children and Young Peoples Services,Head of Early Help Inclusion & Vulnerable Children.,088109,Spennymoor & Shildon 0-19 Community Family Hub,Supplies and Services,384302,Miscellaneous Expenses,01-Nov-2020,000007358042830,WM MORRISONS STORE,5411,Activity expenses,3.50,0.00,3.50
Children and Young Peoples Services,Head of Early Help Inclusion & Vulnerable Children.,085954,Walworth,Supplies and Services,324117,Provisions E324,01-Nov-2020,000007358043036,TESCO STORES 6329,5411,Catering costs - provisions,72.00,0.00,72.00
Children and Young Peoples Services,Head of Childrens Social Care,085331,New Lea Childrens Home,Supplies and Services,308011,Furniture,01-Nov-2020,000007358043256,EDS BEDS,5712,Furniture repair and replacement,179.00,0.00,179.00
Children and Young Peoples Services,Head of Childrens Social Care,085331,New Lea Childrens Home,Supplies and Services,324117,Provisions E324,01-Nov-2020,000007358043258,PPOINT_ HAPPY SHOPPER,5499,Catering costs - provisions,15.38,0.00,15.38
Children and Young Peoples Services,Head of Childrens Social Care,085342,16 Hickstead Rise (previously 9 Cedar Ave),Supplies and Services,384999,Miscellaneous Expenses,01-Nov-2020,000007358043388,BODYCARE,5977,Other expenses,12.09,0.00,12.09
Children and Young Peoples Services,Head of Childrens Social Care,085342,16 Hickstead Rise (previously 9 Cedar Ave),Supplies and Services,324117,Provisions E324,01-Nov-2020,000007358043390,SQ THE SWEET SHOP,5399,Catering costs - provisions,1.00,0.00,1.00
Children and Young Peoples Services,Head of Childrens Social Care,085342,16 Hickstead Rise (previously 9 Cedar Ave),Supplies and Services,332047,Printing Stationery and Gen Off Exps,01-Nov-2020,000007358043392,RYMAN,5943,Stationery,9.98,0.00,9.98
Children and Young Peoples Services,Head of Childrens Social Care,085342,16 Hickstead Rise (previously 9 Cedar Ave),Supplies and Services,324117,Provisions E324,01-Nov-2020,000007358043396,ALDI 105 774,5411,Catering costs - provisions,1.67,0.00,1.67
Children and Young Peoples Services,Head of Childrens Social Care,085342,16 Hickstead Rise (previously 9 Cedar Ave),Supplies and Services,324117,Provisions E324,01-Nov-2020,000007358043550,TESCO STORES 6329,5411,Catering costs - provisions,66.20,0.00,66.20
Children and Young Peoples Services,Head of Early Help Inclusion & Vulnerable Children.,085962,Aycliffe Secure - Durham,Supplies and Services,304403,Equipment and Materials,01-Nov-2020,000007358043602,AMZNMktplace,5999,Other consumables,7.40,1.23,6.17
Children and Young Peoples Services,Head of Early Help Inclusion & Vulnerable Children.,085954,Walworth,Supplies and Services,304403,Equipment and Materials,01-Nov-2020,000007358043604,AMZNMktplace,5999,Other consumables,11.98,2.00,9.98
Children and Young Peoples Services,Head of Childrens Social Care,085333,Coxhoe Satelite Home,Supplies and Services,348037,Subsistence E348,01-Nov-2020,000007358043626,MCDONALD`S,5812,Subsistence,12.35,0.00,12.35
Children and Young Peoples Services,Head of Childrens Social Care,085351,Framwellgate Moor CU,Supplies and Services,308011,Furniture,01-Nov-2020,000007358043722,DUNELM LTD,5714,Furniture repair and replacement,55.30,0.00,55.30
Children and Young Peoples Services,Head of Childrens Social Care,085331,New Lea Childrens Home,Supplies and Services,324117,Provisions E324,01-Nov-2020,000007358043872,ASDA SUPERSTORE,5411,Catering costs - provisions,163.38,0.00,163.38
Children and Young Peoples Services,Head of Childrens Social Care,085342,16 Hickstead Rise (previously 9 Cedar Ave),Supplies and Services,328041,Clothing uniforms and laundry E328,01-Nov-2020,000007362479276,PRIMARK,5651,Clothing uniforms and laundry,50.00,0.00,50.00
Children and Young Peoples Services,Head of Childrens Social Care,085342,16 Hickstead Rise (previously 9 Cedar Ave),Supplies and Services,328041,Clothing uniforms and laundry E328,01-Nov-2020,000007362480128,PRIMARK,5651,Clothing uniforms and laundry,72.00,0.00,72.00
Children and Young Peoples Services,Head of Childrens Social Care,085334,West Rainton Satelite Home,Supplies and Services,304403,Equipment and Materials,02-Nov-2020,000007358043284,AMZNMktplace,5999,Other consumables,158.71,0.00,158.71
"Regeneration, Economy and Growth",Business Durham CL0850,030689,Inward Investment and Aftercare,Supplies and Services,304403,Equipment and Materials,02-Nov-2020,000007362479200,ADOBE CREATIVE CLOUD,5734,Other consumables,49.94,0.00,49.94
"Regeneration, Economy and Growth",Business Durham CL0850,030689,Inward Investment and Aftercare,Supplies and Services,342222,Computers and Communications,02-Nov-2020,000007362479202,FASTHOSTS INTERNET,4816,Comp hardware purch-network servers,72.66,0.00,72.66
"Regeneration, Economy and Growth",Business Durham CL0850,030689,Inward Investment and Aftercare,Supplies and Services,342222,Computers and Communications,02-Nov-2020,000007362479206,FASTHOSTS INTERNET,4816,Comp hardware purch-network servers,67.20,0.00,67.20
Resources BK0010,Business Support,065461,Business Support 065461,Employees,040149,Recruitment Instruction and Training,02-Nov-2020,000007362479216,Pluralsight,8299,Training-all costs,245.00,0.00,245.00
Resources BK0010,Business Support,065461,Business Support 065461,Employees,040149,Recruitment Instruction and Training,02-Nov-2020,000007362479218,Pluralsight,8299,Training-all costs,245.00,0.00,245.00
Resources BK0010,Business Support,065461,Business Support 065461,Employees,040149,Recruitment Instruction and Training,02-Nov-2020,000007362479220,Pluralsight,8299,Training-all costs,245.00,0.00,245.00
"Regeneration, Economy and Growth",Development and Housing,031576,B& B - Temp Accom,Supplies and Services,364320,Grants to Voluntary Organisations,02-Nov-2020,000007362479230,H52STANLEY,7011,Accommodation assistance,156.00,0.00,156.00
Children and Young Peoples Services,Head of Education and Skills,075021,Youth Employment Initiative,Supplies and Services,364301,Grants to Voluntary Organisations,02-Nov-2020,000007362479254,GO NORTH EAST LIMITED,4131,Hardship,17.00,0.00,17.00
"Regeneration, Economy and Growth",Culture Sport and Tourism,054798,dli Museum - WW1 Education Programme,Supplies and Services,304259,Equipment and Materials,02-Nov-2020,000007362479262,Hobbycraft Trading Lim,5970,Equipment-purchase and rental,51.50,0.00,51.50
"Regeneration, Economy and Growth",Culture Sport and Tourism,030708,VCD - Marketing & Information,Supplies and Services,384199,Miscellaneous Expenses,02-Nov-2020,000007362479266,MAILCHIMP MONTHLY,5968,Other hired and contracted services,210.17,0.00,210.17
Children and Young Peoples Services,Head of Childrens Social Care,085342,16 Hickstead Rise (previously 9 Cedar Ave),Supplies and Services,324117,Provisions E324,02-Nov-2020,000007362479280,TESCO STORES 2916,5411,Catering costs - provisions,14.71,0.00,14.71
Resources BK0010,Business Support,065503,Business Support - Spectrum,Supplies and Services,328041,Clothing uniforms and laundry E328,02-Nov-2020,000007362479350,ARGOS LTD,5310,Clothing uniforms and laundry,103.94,0.00,103.94
Resources BK0010,Business Support,065503,Business Support - Spectrum,Supplies and Services,328041,Clothing uniforms and laundry E328,02-Nov-2020,000007362479356,ARGOS LTD,5310,Clothing uniforms and laundry,99.99,0.00,99.99
Children and Young Peoples Services,Head of Early Help Inclusion & Vulnerable Children.,071569,Woodhouse Close Childrens Centre,Supplies and Services,308011,Furniture,02-Nov-2020,000007362479374,ARGOS LTD,5310,Furniture repair and replacement,36.00,6.00,30.00
"Regeneration, Economy and Growth",Development and Housing,031576,B& B - Temp Accom,Supplies and Services,364320,Grants to Voluntary Organisations,02-Nov-2020,000007362479414,H52STANLEY,7011,Accommodation assistance,234.00,0.00,234.00
Children and Young Peoples Services,Head of Childrens Social Care,085361,LAC & Permanence Team 1,Supplies and Services,304403,Equipment and Materials,02-Nov-2020,000007362479442,NCC CARD PAYMENT,9399,Other consumables,-12.00,0.00,-12.00
"Regeneration, Economy and Growth",Development and Housing,031576,B& B - Temp Accom,Supplies and Services,364320,Grants to Voluntary Organisations,02-Nov-2020,000007362479454,BUDGET H EXPRESS HOTEL,7011,Accommodation assistance,76.26,12.71,63.55
"Regeneration, Economy and Growth",Development and Housing,031576,B& B - Temp Accom,Supplies and Services,364320,Grants to Voluntary Organisations,02-Nov-2020,000007362479454 - 1,BUDGET H EXPRESS HOTEL,7011,Accommodation assistance,190.74,,190.74
Children and Young Peoples Services,Head of Early Help Inclusion & Vulnerable Children.,088109,Spennymoor & Shildon 0-19 Community Family Hub,Supplies and Services,384302,Miscellaneous Expenses,02-Nov-2020,000007362479504,ASDA GEORGE COM LEEDS,5411,Activity expenses,200.00,0.00,200.00
Children and Young Peoples Services,Head of Early Help Inclusion & Vulnerable Children.,088109,Spennymoor & Shildon 0-19 Community Family Hub,Supplies and Services,384302,Miscellaneous Expenses,02-Nov-2020,000007362479508,BAKER ROSS,5970,Activity expenses,69.56,0.00,69.56
Children and Young Peoples Services,Head of Early Help Inclusion & Vulnerable Children.,088109,Spennymoor & Shildon 0-19 Community Family Hub,Supplies and Services,384302,Miscellaneous Expenses,02-Nov-2020,000007362479512,WWW.THEWORKS.CO.UK,5310,Activity expenses,241.99,0.00,241.99
Children and Young Peoples Services,Head of Early Help Inclusion & Vulnerable Children.,088109,Spennymoor & Shildon 0-19 Community Family Hub,Supplies and Services,384302,Miscellaneous Expenses,02-Nov-2020,000007362479516,WWW.ACE.CO.UK,5964,Activity expenses,208.99,0.00,208.99
Children and Young Peoples Services,Head of Education and Skills,071732,Dean Bank Childcare,Supplies and Services,324117,Provisions E324,02-Nov-2020,000007362479532,ASDA GROCERIES ONLINE,5411,Catering costs - provisions,55.75,0.00,55.75
Children and Young Peoples Services,Head of Education and Skills,071732,Dean Bank Childcare,Supplies and Services,324117,Provisions E324,02-Nov-2020,000007362479538,ASDA GROCERIES ONLINE,5411,Catering costs - provisions,60.32,0.00,60.32
Children and Young Peoples Services,Head of Education and Skills,071732,Dean Bank Childcare,Supplies and Services,324117,Provisions E324,02-Nov-2020,000007362479540,ASDA GROCERIES ONLINE,5411,Catering costs - provisions,-0.23,0.00,-0.23
Children and Young Peoples Services,Head of Education and Skills,071732,Dean Bank Childcare,Supplies and Services,324117,Provisions E324,02-Nov-2020,000007362479544,ASDA GROCERIES ONLINE,5411,Catering costs - provisions,-0.07,0.00,-0.07
Children and Young Peoples Services,Head of Childrens Social Care,085334,West Rainton Satelite Home,Supplies and Services,304221,Equipment and Materials,02-Nov-2020,000007362479564,B & Q 1050,5200,Direct materials,34.66,0.00,34.66
Children and Young Peoples Services,Head of Early Help Inclusion & Vulnerable Children.,085962,Aycliffe Secure - Durham,Supplies and Services,304403,Equipment and Materials,02-Nov-2020,000007362479570,AMZNMktplace,5999,Other consumables,35.64,0.00,35.64
Children and Young Peoples Services,Head of Early Help Inclusion & Vulnerable Children.,085962,Aycliffe Secure - Durham,Supplies and Services,304403,Equipment and Materials,02-Nov-2020,000007362479574,AMZNMktplace,5999,Other consumables,44.48,0.00,44.48
Children and Young Peoples Services,Head of Early Help Inclusion & Vulnerable Children.,085952,Secure Education,Supplies and Services,324117,Provisions E324,02-Nov-2020,000007362479676,TESCO STORES 6329,5411,Catering costs - provisions,141.83,0.00,141.83
Neighbourhoods and Climate Change,Environmental Services,026591,C&G - Hardwick Park,Supplies and Services,304245,Equipment and Materials,02-Nov-2020,000007362479698,SCREWFIX DIRECT LT,5211,Materials,3.78,0.00,3.78
Neighbourhoods and Climate Change,Environmental Services,026591,C&G - Hardwick Park,Supplies and Services,304245,Equipment and Materials,02-Nov-2020,000007362479704,SCREWFIX DIRECT LT,5211,Materials,8.18,0.00,8.18
Neighbourhoods and Climate Change,Environmental Services,011060,C&G - Hardwick Park Catering,Supplies and Services,324117,Provisions E324,02-Nov-2020,000007362479716,HOPWELLS LTD,5811,Catering costs - provisions,102.18,17.03,85.15
Neighbourhoods and Climate Change,Environmental Services,011060,C&G - Hardwick Park Catering,Supplies and Services,324117,Provisions E324,02-Nov-2020,000007362479716 - 1,HOPWELLS LTD,5811,Catering costs - provisions,151.50,,151.50
Neighbourhoods and Climate Change,Environmental Services,011060,C&G - Hardwick Park Catering,Supplies and Services,324117,Provisions E324,02-Nov-2020,000007362479724,HOPWELLS LTD,5811,Catering costs - provisions,104.10,17.35,86.75
Neighbourhoods and Climate Change,Environmental Services,011060,C&G - Hardwick Park Catering,Supplies and Services,324117,Provisions E324,02-Nov-2020,000007362479724 - 1,HOPWELLS LTD,5811,Catering costs - provisions,198.93,,198.93
Neighbourhoods and Climate Change,Environmental Services,011060,C&G - Hardwick Park Catering,Supplies and Services,324117,Provisions E324,02-Nov-2020,000007362479732,HOPWELLS LTD,5811,Catering costs - provisions,-15.05,0.00,-15.05
"Regeneration, Economy and Growth",Corporate Property and Land,021234,Catering - Locomotion,Supplies and Services,324117,Provisions E324,02-Nov-2020,000007362479786,HOPWELLS LTD,5811,Catering costs - provisions,60.66,10.11,50.55
"Regeneration, Economy and Growth",Corporate Property and Land,021234,Catering - Locomotion,Supplies and Services,324117,Provisions E324,02-Nov-2020,000007362479786 - 1,HOPWELLS LTD,5811,Catering costs - provisions,169.73,,169.73
"Regeneration, Economy and Growth",Corporate Property and Land,021234,Catering - Locomotion,Supplies and Services,324117,Provisions E324,02-Nov-2020,000007362479814,HOPWELLS LTD,5811,Catering costs - provisions,-12.28,0.00,-12.28
Children and Young Peoples Services,Head of Childrens Social Care,085551,Short Break Services-Park Hse Sher,Supplies and Services,324117,Provisions E324,02-Nov-2020,000007362479906,ASDA STORES,5411,Catering costs - provisions,10.00,0.00,10.00
Children and Young Peoples Services,Head of Childrens Social Care,085341,High Etherley Satelite Home,Supplies and Services,304999,Equipment and Materials,02-Nov-2020,000007362479990,HOME BARGAINS SPENNYMO,5251,Misc equipment tools and materials,2.17,0.00,2.17
Children and Young Peoples Services,Head of Childrens Social Care,085341,High Etherley Satelite Home,Supplies and Services,324117,Provisions E324,02-Nov-2020,000007362479998,ASDA SUPERSTORE 4987,5411,Catering costs - provisions,16.15,0.00,16.15
Adult and Health Services,Head of Adults,055643,Hawthorn House LD Respite Unit,Supplies and Services,324117,Provisions E324,02-Nov-2020,000007362480068,CO-OP GROUP 010465,5411,Catering costs - provisions,7.05,0.00,7.05
Children and Young Peoples Services,Head of Childrens Social Care,085333,Coxhoe Satelite Home,Supplies and Services,384999,Miscellaneous Expenses,02-Nov-2020,000007362480088,MAKING FACES,7230,Other expenses,5.99,0.00,5.99
Children and Young Peoples Services,Head of Childrens Social Care,085333,Coxhoe Satelite Home,Supplies and Services,328041,Clothing uniforms and laundry E328,02-Nov-2020,000007362480094,NEW LOOK 1744,5621,Clothing uniforms and laundry,30.07,0.00,30.07
Children and Young Peoples Services,Head of Childrens Social Care,085333,Coxhoe Satelite Home,Supplies and Services,348037,Subsistence E348,02-Nov-2020,000007362480098,KFC METROCENTRE FC,5814,Subsistence,12.98,0.00,12.98
Children and Young Peoples Services,Head of Childrens Social Care,085333,Coxhoe Satelite Home,Supplies and Services,304999,Equipment and Materials,02-Nov-2020,000007362480102,SUPERDRUG STORES PLC,5912,Misc equipment tools and materials,24.05,0.00,24.05
Children and Young Peoples Services,Head of Childrens Social Care,085333,Coxhoe Satelite Home,Supplies and Services,328041,Clothing uniforms and laundry E328,02-Nov-2020,000007362480106,H & M,5691,Clothing uniforms and laundry,2.99,0.00,2.99
"Regeneration, Economy and Growth",Corporate Property and Land,030691,Catering - Durham Dales Centre,Supplies and Services,324117,Provisions E324,02-Nov-2020,000007362480148,HOPWELLS LTD,5811,Catering costs - provisions,93.07,0.00,93.07
"Regeneration, Economy and Growth",Corporate Property and Land,030691,Catering - Durham Dales Centre,Premises,145009,Cleaning and Domestic Supplies,02-Nov-2020,000007362480154,ALLIANCE DISPOSABLES L,2842,Other cleaning and domestic costs,216.54,36.09,180.45
Adult and Health Services,Head of Adults,055643,Hawthorn House LD Respite Unit,Supplies and Services,324117,Provisions E324,02-Nov-2020,000007362480174,HOPWELLS LTD,5811,Catering costs - provisions,53.70,0.00,53.70
Adult and Health Services,Head of Adults,055643,Hawthorn House LD Respite Unit,Supplies and Services,324117,Provisions E324,02-Nov-2020,000007362480184,JR HOLLAND FOODSERVICE,5499,Catering costs - provisions,15.98,0.00,15.98
Children and Young Peoples Services,Head of Childrens Social Care,085334,West Rainton Satelite Home,Supplies and Services,324117,Provisions E324,02-Nov-2020,000007362480218,TESCO STORES 2371,5411,Catering costs - provisions,7.50,0.00,7.50
Children and Young Peoples Services,Head of Childrens Social Care,085334,West Rainton Satelite Home,Supplies and Services,324117,Provisions E324,02-Nov-2020,000007362480224,TESCO STORES 2371,5411,Catering costs - provisions,138.58,0.00,138.58
Resources BK0010,Business Support,052986,CYPS - Locality and Operational Support,Employees,040149,Recruitment Instruction and Training,02-Nov-2020,000007362480258,iZ Jc transportat,8999,Training-all costs,200.00,0.00,200.00
"Regeneration, Economy and Growth",Culture Sport and Tourism,054235,Bishop Auckland Town Hall Cafe,Supplies and Services,324117,Provisions E324,02-Nov-2020,000007362480264,HOPWELLS LTD,5811,Catering costs - provisions,84.09,0.00,84.09
"Regeneration, Economy and Growth",Culture Sport and Tourism,054235,Bishop Auckland Town Hall Cafe,Supplies and Services,324117,Provisions E324,02-Nov-2020,000007362480268,HOPWELLS LTD,5811,Catering costs - provisions,63.86,0.00,63.86
"Regeneration, Economy and Growth",Culture Sport and Tourism,054235,Bishop Auckland Town Hall Cafe,Supplies and Services,324117,Provisions E324,02-Nov-2020,000007362480272,JR HOLLAND FOODSERVICE,5499,Catering costs - provisions,60.56,0.00,60.56
"Regeneration, Economy and Growth",Culture Sport and Tourism,054235,Bishop Auckland Town Hall Cafe,Supplies and Services,324117,Provisions E324,02-Nov-2020,000007362480276,JR HOLLAND FOODSERVICE,5499,Catering costs - provisions,164.17,0.00,164.17
"Regeneration, Economy and Growth",Development and Housing,031576,B& B - Temp Accom,Supplies and Services,364320,Grants to Voluntary Organisations,02-Nov-2020,000007362480326,H52STANLEY,7011,Accommodation assistance,55.65,0.00,55.65
"Regeneration, Economy and Growth",Development and Housing,031576,B& B - Temp Accom,Supplies and Services,364320,Grants to Voluntary Organisations,02-Nov-2020,000007362480330,H52STANLEY,7011,Accommodation assistance,234.00,0.00,234.00
"Regeneration, Economy and Growth",Development and Housing,031576,B& B - Temp Accom,Supplies and Services,364320,Grants to Voluntary Organisations,02-Nov-2020,000007362480336,H52STANLEY,7011,Accommodation assistance,204.00,0.00,204.00
"Regeneration, Economy and Growth",Development and Housing,031576,B& B - Temp Accom,Supplies and Services,364320,Grants to Voluntary Organisations,02-Nov-2020,000007362480342,HI NEWCASTLE WASHI,7011,Accommodation assistance,500.00,0.00,500.00
Children and Young Peoples Services,Head of Early Help Inclusion & Vulnerable Children.,085801,CDYJS - Support,Supplies and Services,304403,Equipment and Materials,02-Nov-2020,000007362480356,AMZNMKTPLACE AMAZON.CO,5999,Other consumables,10.35,1.74,8.61
Children and Young Peoples Services,Head of Education and Skills,071802,Louisa Cent Nursery,Supplies and Services,324117,Provisions E324,02-Nov-2020,000007362480394,ASDA GROCERIES ONLINE,5411,Catering costs - provisions,132.16,0.00,132.16
Children and Young Peoples Services,Head of Education and Skills,070169,Durham SSP,Supplies and Services,384199,Miscellaneous Expenses,02-Nov-2020,000007362480404,AMZNMktplace,5999,Other hired and contracted services,7.99,0.00,7.99
Children and Young Peoples Services,Head of Childrens Social Care,085633,Families First Chester-Le-Street,Supplies and Services,364340,Grants to Voluntary Organisations,02-Nov-2020,000007362480416,GO NORTH EAST LIMITED,4131,Contact expenses,20.00,0.00,20.00
Children and Young Peoples Services,Head of Early Help Inclusion & Vulnerable Children.,088107,Ferryhill & Newton Aycliffe 0-19 Community Family Hub,Supplies and Services,304403,Equipment and Materials,02-Nov-2020,000007362480452,AMZNMKTPLACE AMAZON.CO,5999,Other consumables,53.94,9.02,44.92
Children and Young Peoples Services,Head of Early Help Inclusion & Vulnerable Children.,088107,Ferryhill & Newton Aycliffe 0-19 Community Family Hub,Supplies and Services,304403,Equipment and Materials,02-Nov-2020,000007362480456,AMZNMKTPLACE AMAZON.CO,5999,Other consumables,36.18,6.03,30.15
Children and Young Peoples Services,Head of Early Help Inclusion & Vulnerable Children.,088107,Ferryhill & Newton Aycliffe 0-19 Community Family Hub,Supplies and Services,304403,Equipment and Materials,02-Nov-2020,000007362480456 - 1,AMZNMKTPLACE AMAZON.CO,5999,Other consumables,35.37,,35.37
Children and Young Peoples Services,Head of Early Help Inclusion & Vulnerable Children.,088107,Ferryhill & Newton Aycliffe 0-19 Community Family Hub,Supplies and Services,304403,Equipment and Materials,02-Nov-2020,000007362480464,AMZNMKTPLACE AMAZON.CO,5999,Other consumables,49.95,8.35,41.60
"Regeneration, Economy and Growth",Development and Housing,031500,Housing Solutions - Core Team,Supplies and Services,304999,Equipment and Materials,02-Nov-2020,000007362480468,DUNCAN BELTON TA K,6513,Misc equipment tools and materials,500.00,0.00,500.00
Children and Young Peoples Services,Head of Childrens Social Care,085331,New Lea Childrens Home,Supplies and Services,332047,Printing Stationery and Gen Off Exps,02-Nov-2020,000007362480510,VIKING UK,5111,Stationery,52.73,0.00,52.73
Children and Young Peoples Services,Head of Childrens Social Care,085331,New Lea Childrens Home,Supplies and Services,304403,Equipment and Materials,02-Nov-2020,000007362480512,MEDISUPPLIES LTD,5999,Other consumables,45.36,0.00,45.36
"Regeneration, Economy and Growth",Corporate Property and Land,021235,Catering - Wharton Park,Supplies and Services,324117,Provisions E324,02-Nov-2020,000007362480530,HOPWELLS LTD,5811,Catering costs - provisions,81.44,0.00,81.44
Children and Young Peoples Services,Head of Childrens Social Care,085626,Families First Shildon/Chilton,Supplies and Services,364301,Grants to Voluntary Organisations,02-Nov-2020,000007365118888,ARGOS LTD,5310,Hardship,-24.99,0.00,-24.99
"Regeneration, Economy and Growth",Corporate Property and Land,021234,Catering - Locomotion,Supplies and Services,324117,Provisions E324,02-Nov-2020,000007365119688,BATLEYS PERTH,5300,Catering costs - provisions,-282.29,-32.24,-250.05
Children and Young Peoples Services,Head of Early Help Inclusion & Vulnerable Children.,088109,Spennymoor & Shildon 0-19 Community Family Hub,Supplies and Services,304259,Equipment and Materials,02-Nov-2020,000007365119788,ARGOS LTD,5310,Equipment-purchase and rental,454.95,0.00,454.95
Children and Young Peoples Services,Head of Early Help Inclusion & Vulnerable Children.,085801,CDYJS - Support,Supplies and Services,304403,Equipment and Materials,02-Nov-2020,000007365120316,AMZNMKTPLACE AMAZON.CO,5999,Other consumables,17.76,2.96,14.80
Children and Young Peoples Services,Head of Education and Skills,070169,Durham SSP,Supplies and Services,384199,Miscellaneous Expenses,02-Nov-2020,000007365120380,ZOOM.GBP,5968,Other hired and contracted services,14.39,2.40,11.99
Children and Young Peoples Services,Head of Education and Skills,071801,Selby Cottage Childcare Centre,Supplies and Services,324117,Provisions E324,03-Nov-2020,000007365118500,TESCO STORES 2371,5411,Catering costs - provisions,71.22,0.00,71.22
"Regeneration, Economy and Growth",Development and Housing,031576,B& B - Temp Accom,Supplies and Services,364320,Grants to Voluntary Organisations,03-Nov-2020,000007365118538,BUDGET H EXPRESS HOTEL,7011,Accommodation assistance,76.26,12.71,63.55
"Regeneration, Economy and Growth",Development and Housing,031576,B& B - Temp Accom,Supplies and Services,364320,Grants to Voluntary Organisations,03-Nov-2020,000007365118538 - 1,BUDGET H EXPRESS HOTEL,7011,Accommodation assistance,190.74,,190.74
Resources BK0010,Business Support,065461,Business Support 065461,Employees,040149,Recruitment Instruction and Training,03-Nov-2020,000007365118578,Pluralsight,8299,Training-all costs,245.00,0.00,245.00
Resources BK0010,Business Support,065461,Business Support 065461,Employees,040149,Recruitment Instruction and Training,03-Nov-2020,000007365118592,Pluralsight,8299,Training-all costs,245.00,0.00,245.00
Resources BK0010,Business Support,065461,Business Support 065461,Employees,040149,Recruitment Instruction and Training,03-Nov-2020,000007365118598,Pluralsight,8299,Training-all costs,245.00,0.00,245.00
Children and Young Peoples Services,Head of Education and Skills,075021,Youth Employment Initiative,Supplies and Services,364301,Grants to Voluntary Organisations,03-Nov-2020,000007365118672,WWW.COLLEGEKITSDIRECT.,5999,Hardship,54.80,0.00,54.80
Children and Young Peoples Services,Head of Education and Skills,075021,Youth Employment Initiative,Supplies and Services,364301,Grants to Voluntary Organisations,03-Nov-2020,000007365118682,SCREWFIX DIRECT,5211,Hardship,94.80,15.80,79.00
Children and Young Peoples Services,Head of Education and Skills,075021,Youth Employment Initiative,Supplies and Services,364301,Grants to Voluntary Organisations,03-Nov-2020,000007365118682 - 1,SCREWFIX DIRECT,5211,Hardship,25.11,,25.11
Neighbourhoods and Climate Change,Environmental Services,010383,C&G - South Street Cleansing,Supplies and Services,304221,Equipment and Materials,03-Nov-2020,000007365118688,TRAVIS PERKINS,5211,Direct materials,16.56,2.76,13.80
Neighbourhoods and Climate Change,Environmental Services,010383,C&G - South Street Cleansing,Supplies and Services,304221,Equipment and Materials,03-Nov-2020,000007365118696,SCREWFIX DIRECT,5211,Direct materials,14.99,0.00,14.99
Children and Young Peoples Services,Head of Childrens Social Care,085332,Middlestone Moor CU,Supplies and Services,324117,Provisions E324,03-Nov-2020,000007365118706,TESCO STORES 2371,5411,Catering costs - provisions,135.89,0.00,135.89
Children and Young Peoples Services,Head of Childrens Social Care,085626,Families First Shildon/Chilton,Supplies and Services,364301,Grants to Voluntary Organisations,03-Nov-2020,000007365118878,ARGOS LTD,5310,Hardship,24.99,4.17,20.82
"Regeneration, Economy and Growth",Culture Sport and Tourism,054233,Bishop Auckland Town Hall Library,Supplies and Services,324117,Provisions E324,03-Nov-2020,000007365118904,HERON FOODS LTD,5499,Catering costs - provisions,4.94,0.00,4.94
"Regeneration, Economy and Growth",Culture Sport and Tourism,054233,Bishop Auckland Town Hall Library,Supplies and Services,328041,Clothing uniforms and laundry E328,03-Nov-2020,000007365118912,POUNDLAND LTD 1390,5310,Clothing uniforms and laundry,2.00,0.00,2.00
Children and Young Peoples Services,Head of Early Help Inclusion & Vulnerable Children.,085952,Secure Education,Supplies and Services,342033,Computers and Communications,03-Nov-2020,000007365118964,VERY,5964,Computer hardware,93.98,0.00,93.98
"Regeneration, Economy and Growth",Development and Housing,030772,CLLD South,Supplies and Services,324117,Provisions E324,03-Nov-2020,000007365118992,ASDA GEORGE COM LEEDS,5411,Catering costs - provisions,70.00,0.00,70.00
Children and Young Peoples Services,Head of Childrens Social Care,085362,LAC & Permanence Team 2,Supplies and Services,304403,Equipment and Materials,03-Nov-2020,000007365119000,WWW.DURHAM.GOV.UK,9399,Other consumables,11.00,0.00,11.00
Children and Young Peoples Services,Head of Childrens Social Care,085362,LAC & Permanence Team 2,Supplies and Services,304403,Equipment and Materials,03-Nov-2020,000007365119006,WWW.DURHAM.GOV.UK,9399,Other consumables,11.00,0.00,11.00
Children and Young Peoples Services,Head of Early Help Inclusion & Vulnerable Children.,073998,TTF-Co-ordinator Grant,Transfer Payments,525033,Other,03-Nov-2020,000007365119066,FRANKS THE FLOORING ST,5713,Grants to individuals,250.00,0.00,250.00
Children and Young Peoples Services,Head of Childrens Social Care,085352,Tow Law CU,Supplies and Services,324117,Provisions E324,03-Nov-2020,000007365119124,SAINSBURYS 0776,5411,Catering costs - provisions,70.38,0.00,70.38
Children and Young Peoples Services,Head of Childrens Social Care,085352,Tow Law CU,Supplies and Services,304403,Equipment and Materials,03-Nov-2020,000007365119132,CEX LTD,5065,Other consumables,123.60,0.00,123.60
Children and Young Peoples Services,Head of Childrens Social Care,085352,Tow Law CU,Supplies and Services,384999,Miscellaneous Expenses,03-Nov-2020,000007365119134,SMYTHS TOYS DURHAM,5945,Other expenses,90.98,0.00,90.98
Children and Young Peoples Services,Head of Childrens Social Care,085352,Tow Law CU,Supplies and Services,384999,Miscellaneous Expenses,03-Nov-2020,000007365119142,SMYTHS TOYS DURHAM,5945,Other expenses,428.01,0.00,428.01
Neighbourhoods and Climate Change,Environmental Services,010900,Fleet - Meadowfield Fleet,Transport,215013,Running Costs of Vehicles,03-Nov-2020,000007365119150,DVLA VEHICLE TAX,9311,Vehicle Excise Duty (VED),267.50,0.00,267.50
Neighbourhoods and Climate Change,Environmental Services,010900,Fleet - Meadowfield Fleet,Transport,215013,Running Costs of Vehicles,03-Nov-2020,000007365119156,DVLA VEHICLE TAX,9311,Vehicle Excise Duty (VED),267.50,0.00,267.50
Neighbourhoods and Climate Change,Environmental Services,010900,Fleet - Meadowfield Fleet,Transport,215013,Running Costs of Vehicles,03-Nov-2020,000007365119164,DVLA VEHICLE TAX,9311,Vehicle Excise Duty (VED),267.50,0.00,267.50
Neighbourhoods and Climate Change,Environmental Services,010900,Fleet - Meadowfield Fleet,Transport,215013,Running Costs of Vehicles,03-Nov-2020,000007365119168,DVLA VEHICLE TAX,9311,Vehicle Excise Duty (VED),267.50,0.00,267.50
Neighbourhoods and Climate Change,Environmental Services,010900,Fleet - Meadowfield Fleet,Transport,215013,Running Costs of Vehicles,03-Nov-2020,000007365119176,DVLA VEHICLE TAX,9311,Vehicle Excise Duty (VED),267.50,0.00,267.50
Neighbourhoods and Climate Change,Environmental Services,010561,Fleet - Morrison Busty Fleet,Transport,215013,Running Costs of Vehicles,03-Nov-2020,000007365119180,DVLA VEHICLE TAX,9311,Vehicle Excise Duty (VED),267.50,0.00,267.50
Neighbourhoods and Climate Change,Environmental Services,010551,Fleet - Chilton Fleet,Transport,215013,Running Costs of Vehicles,03-Nov-2020,000007365119188,DVLA VEHICLE TAX,9311,Vehicle Excise Duty (VED),267.50,0.00,267.50
Neighbourhoods and Climate Change,Environmental Services,010864,Fleet - Hackworth Road Fleet,Transport,215013,Running Costs of Vehicles,03-Nov-2020,000007365119192,DVLA VEHICLE TAX,9311,Vehicle Excise Duty (VED),267.50,0.00,267.50
Neighbourhoods and Climate Change,Environmental Services,010551,Fleet - Chilton Fleet,Transport,215013,Running Costs of Vehicles,03-Nov-2020,000007365119200,DVLA VEHICLE TAX,9311,Vehicle Excise Duty (VED),267.50,0.00,267.50
Neighbourhoods and Climate Change,Environmental Services,010900,Fleet - Meadowfield Fleet,Transport,215013,Running Costs of Vehicles,03-Nov-2020,000007365119204,DVLA VEHICLE TAX,9311,Vehicle Excise Duty (VED),267.50,0.00,267.50
Neighbourhoods and Climate Change,Environmental Services,010900,Fleet - Meadowfield Fleet,Transport,215013,Running Costs of Vehicles,03-Nov-2020,000007365119210,DVLA VEHICLE TAX,9311,Vehicle Excise Duty (VED),267.50,0.00,267.50
Neighbourhoods and Climate Change,Environmental Services,010561,Fleet - Morrison Busty Fleet,Transport,215013,Running Costs of Vehicles,03-Nov-2020,000007365119214,DVLA VEHICLE TAX,9311,Vehicle Excise Duty (VED),267.50,0.00,267.50
Neighbourhoods and Climate Change,Environmental Services,010864,Fleet - Hackworth Road Fleet,Transport,215013,Running Costs of Vehicles,03-Nov-2020,000007365119220,DVLA VEHICLE TAX,9311,Vehicle Excise Duty (VED),267.50,0.00,267.50
Neighbourhoods and Climate Change,Environmental Services,010864,Fleet - Hackworth Road Fleet,Transport,215013,Running Costs of Vehicles,03-Nov-2020,000007365119224,DVLA VEHICLE TAX,9311,Vehicle Excise Duty (VED),267.50,0.00,267.50
Neighbourhoods and Climate Change,Environmental Services,010864,Fleet - Hackworth Road Fleet,Transport,215013,Running Costs of Vehicles,03-Nov-2020,000007365119230,DVLA VEHICLE TAX,9311,Vehicle Excise Duty (VED),267.50,0.00,267.50
Neighbourhoods and Climate Change,Environmental Services,010551,Fleet - Chilton Fleet,Transport,215013,Running Costs of Vehicles,03-Nov-2020,000007365119234,DVLA VEHICLE TAX,9311,Vehicle Excise Duty (VED),267.50,0.00,267.50
Neighbourhoods and Climate Change,Environmental Services,010900,Fleet - Meadowfield Fleet,Transport,215013,Running Costs of Vehicles,03-Nov-2020,000007365119246,DVLA VEHICLE TAX,9311,Vehicle Excise Duty (VED),267.50,0.00,267.50
Neighbourhoods and Climate Change,Environmental Services,010900,Fleet - Meadowfield Fleet,Transport,215013,Running Costs of Vehicles,03-Nov-2020,000007365119252,DVLA VEHICLE TAX,9311,Vehicle Excise Duty (VED),267.50,0.00,267.50
Neighbourhoods and Climate Change,Environmental Services,010900,Fleet - Meadowfield Fleet,Transport,215013,Running Costs of Vehicles,03-Nov-2020,000007365119260,DVLA VEHICLE TAX,9311,Vehicle Excise Duty (VED),267.50,0.00,267.50
Neighbourhoods and Climate Change,Environmental Services,010900,Fleet - Meadowfield Fleet,Transport,215013,Running Costs of Vehicles,03-Nov-2020,000007365119264,DVLA VEHICLE TAX,9311,Vehicle Excise Duty (VED),267.50,0.00,267.50
Neighbourhoods and Climate Change,Environmental Services,010900,Fleet - Meadowfield Fleet,Transport,215013,Running Costs of Vehicles,03-Nov-2020,000007365119270,DVLA VEHICLE TAX,9311,Vehicle Excise Duty (VED),267.50,0.00,267.50
Neighbourhoods and Climate Change,Environmental Services,010864,Fleet - Hackworth Road Fleet,Transport,215013,Running Costs of Vehicles,03-Nov-2020,000007365119276,DVLA VEHICLE TAX,9311,Vehicle Excise Duty (VED),267.50,0.00,267.50
Neighbourhoods and Climate Change,Environmental Services,010900,Fleet - Meadowfield Fleet,Transport,215013,Running Costs of Vehicles,03-Nov-2020,000007365119280,DVLA VEHICLE TAX,9311,Vehicle Excise Duty (VED),267.50,0.00,267.50
Neighbourhoods and Climate Change,Environmental Services,010900,Fleet - Meadowfield Fleet,Transport,215013,Running Costs of Vehicles,03-Nov-2020,000007365119286,DVLA VEHICLE TAX,9311,Vehicle Excise Duty (VED),267.50,0.00,267.50
Neighbourhoods and Climate Change,Environmental Services,010900,Fleet - Meadowfield Fleet,Transport,215013,Running Costs of Vehicles,03-Nov-2020,000007365119294,DVLA VEHICLE TAX,9311,Vehicle Excise Duty (VED),267.50,0.00,267.50
Resources BK0010,Digital and Customer Services,065481,Technical Services 065481,Supplies and Services,372009,Subscriptions E372,03-Nov-2020,000007365119352,WEB NETWORKSOLUTIONS,5968,Subscriptions 372009,55.85,0.00,55.85
Children and Young Peoples Services,Head of Early Help Inclusion & Vulnerable Children.,088109,Spennymoor & Shildon 0-19 Community Family Hub,Supplies and Services,384302,Miscellaneous Expenses,03-Nov-2020,000007365119372,POUNDSTRETCHER 692,5331,Activity expenses,63.45,0.00,63.45
Children and Young Peoples Services,Head of Early Help Inclusion & Vulnerable Children.,088109,Spennymoor & Shildon 0-19 Community Family Hub,Supplies and Services,384302,Miscellaneous Expenses,03-Nov-2020,000007365119380,B&M 035 - SHILDON,5399,Activity expenses,63.69,0.00,63.69
Children and Young Peoples Services,Head of Early Help Inclusion & Vulnerable Children.,088109,Spennymoor & Shildon 0-19 Community Family Hub,Supplies and Services,384302,Miscellaneous Expenses,03-Nov-2020,000007365119388,HOME BARGAINS,5251,Activity expenses,9.79,0.00,9.79
Children and Young Peoples Services,Head of Early Help Inclusion & Vulnerable Children.,088109,Spennymoor & Shildon 0-19 Community Family Hub,Supplies and Services,384302,Miscellaneous Expenses,03-Nov-2020,000007365119392,LIDL GB SPENNYMOOR,5411,Activity expenses,3.80,0.00,3.80
"Regeneration, Economy and Growth",Culture Sport and Tourism,054967,Theatre - Technical Staffing,Supplies and Services,328041,Clothing uniforms and laundry E328,03-Nov-2020,000007365119450,WWW.FLINTS.CO.UK,5691,Clothing uniforms and laundry,206.08,0.00,206.08
Children and Young Peoples Services,Head of Childrens Social Care,085334,West Rainton Satelite Home,Supplies and Services,304221,Equipment and Materials,03-Nov-2020,000007365119466,ARBOR TIMBER AND BUILD,5211,Direct materials,50.15,0.00,50.15
Children and Young Peoples Services,Head of Childrens Social Care,085334,West Rainton Satelite Home,Supplies and Services,324117,Provisions E324,03-Nov-2020,000007365119478,TESCO STORES 2371,5411,Catering costs - provisions,4.00,0.00,4.00
Children and Young Peoples Services,Head of Childrens Social Care,085334,West Rainton Satelite Home,Supplies and Services,328041,Clothing uniforms and laundry E328,03-Nov-2020,000007365119484,The Range,5311,Clothing uniforms and laundry,59.96,0.00,59.96
"Regeneration, Economy and Growth",Development and Housing,030771,Durham Advance Flexible Fund,Supplies and Services,324117,Provisions E324,03-Nov-2020,000007365119556,GREGGS,5462,Catering costs - provisions,20.00,0.00,20.00
Children and Young Peoples Services,Head of Early Help Inclusion & Vulnerable Children.,071445,Chester le Street One Point Hub,Supplies and Services,304259,Equipment and Materials,03-Nov-2020,000007365119576,HARTLEPOOL BC,9399,Equipment-purchase and rental,11.00,0.00,11.00
Children and Young Peoples Services,Head of Early Help Inclusion & Vulnerable Children.,071445,Chester le Street One Point Hub,Supplies and Services,304259,Equipment and Materials,03-Nov-2020,000007365119582,WALSALL COUNCIL,9399,Equipment-purchase and rental,72.00,0.00,72.00
Children and Young Peoples Services,Head of Early Help Inclusion & Vulnerable Children.,071445,Chester le Street One Point Hub,Supplies and Services,304259,Equipment and Materials,03-Nov-2020,000007365119590,Durham County CNCL,9399,Equipment-purchase and rental,22.00,0.00,22.00
Children and Young Peoples Services,Head of Early Help Inclusion & Vulnerable Children.,085965,Barnard,Transfer Payments,515140,Social Services Clients,03-Nov-2020,000007365119600,Foot Locker Europe.com,5661,Clothing allowances,99.99,0.00,99.99
Children and Young Peoples Services,Head of Early Help Inclusion & Vulnerable Children.,085954,Walworth,Transfer Payments,515140,Social Services Clients,03-Nov-2020,000007365119608,Foot Locker Europe.com,5661,Clothing allowances,79.99,0.00,79.99
Children and Young Peoples Services,Head of Childrens Social Care,085352,Tow Law CU,Supplies and Services,328041,Clothing uniforms and laundry E328,03-Nov-2020,000007365119768,T K MAXX,5331,Clothing uniforms and laundry,7.48,0.00,7.48
Children and Young Peoples Services,Head of Childrens Social Care,085331,New Lea Childrens Home,Supplies and Services,328041,Clothing uniforms and laundry E328,03-Nov-2020,000007365119796,FOOT LOCKER UK 4299,5661,Clothing uniforms and laundry,20.04,0.00,20.04
Children and Young Peoples Services,Head of Childrens Social Care,085331,New Lea Childrens Home,Supplies and Services,328041,Clothing uniforms and laundry E328,03-Nov-2020,000007365119800,FOOT LOCKER UK 4299,5661,Clothing uniforms and laundry,55.02,0.00,55.02
Children and Young Peoples Services,Head of Childrens Social Care,085331,New Lea Childrens Home,Supplies and Services,328041,Clothing uniforms and laundry E328,03-Nov-2020,000007365119806,T K MAXX,5331,Clothing uniforms and laundry,19.99,0.00,19.99
Children and Young Peoples Services,Head of Childrens Social Care,085331,New Lea Childrens Home,Supplies and Services,324117,Provisions E324,03-Nov-2020,000007365119810,ASDA SUPERSTORE,5411,Catering costs - provisions,86.30,0.00,86.30
Children and Young Peoples Services,Head of Childrens Social Care,085331,New Lea Childrens Home,Supplies and Services,324117,Provisions E324,03-Nov-2020,000007365119818,MARKS&SPENCER PLC,5411,Catering costs - provisions,3.00,0.00,3.00
Children and Young Peoples Services,Head of Childrens Social Care,085341,High Etherley Satelite Home,Supplies and Services,328041,Clothing uniforms and laundry E328,03-Nov-2020,000007365119832,PRETTYLITTLETHING.COM,5691,Clothing uniforms and laundry,34.99,0.00,34.99
Children and Young Peoples Services,Head of Childrens Social Care,085341,High Etherley Satelite Home,Supplies and Services,324117,Provisions E324,03-Nov-2020,000007365119840,ASDA SUPERSTORE 4987,5411,Catering costs - provisions,35.85,0.00,35.85
Neighbourhoods and Climate Change,Environmental Services,010367,C&G - South Grounds Maintenance,Supplies and Services,304221,Equipment and Materials,03-Nov-2020,000007365119864,WWWTUDORENVIRONMENTALC,5261,Direct materials,496.80,0.00,496.80
Adult and Health Services,Head of Adults,055643,Hawthorn House LD Respite Unit,Supplies and Services,324117,Provisions E324,03-Nov-2020,000007365119944,TESCO STORES 2371,5411,Catering costs - provisions,10.73,0.00,10.73
Children and Young Peoples Services,Head of Childrens Social Care,085333,Coxhoe Satelite Home,Supplies and Services,324117,Provisions E324,03-Nov-2020,000007365119954,TESCO STORES 2371,5411,Catering costs - provisions,163.21,0.00,163.21
Children and Young Peoples Services,Head of Childrens Social Care,085333,Coxhoe Satelite Home,Supplies and Services,324117,Provisions E324,03-Nov-2020,000007365119960,TESCO STORES 2371,5411,Catering costs - provisions,25.00,0.00,25.00
Children and Young Peoples Services,Head of Childrens Social Care,085342,16 Hickstead Rise (previously 9 Cedar Ave),Supplies and Services,324117,Provisions E324,03-Nov-2020,000007365119968,TESCO STORES 2916,5411,Catering costs - provisions,34.48,0.00,34.48
Children and Young Peoples Services,Head of Childrens Social Care,085342,16 Hickstead Rise (previously 9 Cedar Ave),Supplies and Services,324117,Provisions E324,03-Nov-2020,000007365119976,TESCO STORES 2916,5411,Catering costs - provisions,3.25,0.00,3.25
Children and Young Peoples Services,Head of Early Help Inclusion & Vulnerable Children.,071616,Seaham Childrens Centre,Supplies and Services,308011,Furniture,03-Nov-2020,000007365119984,WWW.FURNITUREATWORK.CO,5712,Furniture repair and replacement,406.80,0.00,406.80
Children and Young Peoples Services,Head of Early Help Inclusion & Vulnerable Children.,071616,Seaham Childrens Centre,Supplies and Services,308011,Furniture,03-Nov-2020,000007365119992,WWW.FURNITUREATWORK.CO,5712,Furniture repair and replacement,135.60,0.00,135.60
Children and Young Peoples Services,Head of Early Help Inclusion & Vulnerable Children.,071616,Seaham Childrens Centre,Supplies and Services,308011,Furniture,03-Nov-2020,000007365119996,WWW.FURNITUREATWORK.CO,5712,Furniture repair and replacement,406.80,0.00,406.80
Children and Young Peoples Services,Head of Childrens Social Care,085352,Tow Law CU,Supplies and Services,304403,Equipment and Materials,03-Nov-2020,000007365120088,CEX (TRINITY SQUARE),5065,Other consumables,120.00,0.00,120.00
Children and Young Peoples Services,Head of Childrens Social Care,085352,Tow Law CU,Supplies and Services,324117,Provisions E324,03-Nov-2020,000007365120098,ASDA GROCERIES ONLINE,5411,Catering costs - provisions,102.19,0.00,102.19
Children and Young Peoples Services,Head of Childrens Social Care,085352,Tow Law CU,Supplies and Services,324117,Provisions E324,03-Nov-2020,000007365120104,ASDA SUPERSTORE 4987,5411,Catering costs - provisions,11.50,0.00,11.50
Children and Young Peoples Services,Head of Childrens Social Care,085352,Tow Law CU,Supplies and Services,324117,Provisions E324,03-Nov-2020,000007365120114,ASDA GROCERIES ONLINE,5411,Catering costs - provisions,-1.18,0.00,-1.18
Adult and Health Services,Head of Adults,055306,Spennymoor Pathways,Supplies and Services,324117,Provisions E324,03-Nov-2020,000007365120128,ASDA SUPERSTORE 4987,5411,Catering costs - provisions,3.27,0.00,3.27
"Regeneration, Economy and Growth",Culture Sport and Tourism,054399,Local Delivery-Libraries,Supplies and Services,304259,Equipment and Materials,03-Nov-2020,000007365120156,AMZNMktplace,5999,Equipment-purchase and rental,71.99,0.00,71.99
Resources BK0010,Digital and Customer Services,065335,School Services - Implementations,Supplies and Services,304639,Equipment and Materials,03-Nov-2020,000007365120192,DHL EXPRESS(UK) LT,4215,Technicians-supplies,63.97,0.00,63.97
Children and Young Peoples Services,Head of Early Help Inclusion & Vulnerable Children.,085957,Secure Management,Supplies and Services,384999,Miscellaneous Expenses,03-Nov-2020,000007365120242,Amazon MP3,5735,Other expenses,10.49,0.00,10.49
Resources BK0010,Business Support,052986,CYPS - Locality and Operational Support,Supplies and Services,328041,Clothing uniforms and laundry E328,03-Nov-2020,000007365120254,ARGOS LTD,5310,Clothing uniforms and laundry,179.99,0.00,179.99
Resources BK0010,Business Support,052986,CYPS - Locality and Operational Support,Supplies and Services,328041,Clothing uniforms and laundry E328,03-Nov-2020,000007365120260,ARGOS LTD,5310,Clothing uniforms and laundry,179.99,0.00,179.99
Children and Young Peoples Services,Head of Early Help Inclusion & Vulnerable Children.,088107,Ferryhill & Newton Aycliffe 0-19 Community Family Hub,Supplies and Services,304403,Equipment and Materials,03-Nov-2020,000007365120404,AMZNMKTPLACE AMAZON.CO,5999,Other consumables,59.90,10.00,49.90
Children and Young Peoples Services,Head of Early Help Inclusion & Vulnerable Children.,088107,Ferryhill & Newton Aycliffe 0-19 Community Family Hub,Supplies and Services,304403,Equipment and Materials,03-Nov-2020,000007365120414,AMZNMktplace,5999,Other consumables,33.12,5.52,27.60
Children and Young Peoples Services,Head of Early Help Inclusion & Vulnerable Children.,088107,Ferryhill & Newton Aycliffe 0-19 Community Family Hub,Supplies and Services,304403,Equipment and Materials,03-Nov-2020,000007365120414 - 1,AMZNMktplace,5999,Other consumables,0.18,,0.18
Children and Young Peoples Services,Head of Childrens Social Care,085331,New Lea Childrens Home,Supplies and Services,308011,Furniture,03-Nov-2020,000007365120492,IKEA LTD 143 GATESHEAD,5712,Furniture repair and replacement,89.00,0.00,89.00
Children and Young Peoples Services,Head of Childrens Social Care,085331,New Lea Childrens Home,Supplies and Services,348037,Subsistence E348,03-Nov-2020,000007365120496,STARBUCKS,5814,Subsistence,8.50,0.00,8.50
Children and Young Peoples Services,Head of Childrens Social Care,085331,New Lea Childrens Home,Supplies and Services,324117,Provisions E324,03-Nov-2020,000007365120502,TESCO STORES 6334,5411,Catering costs - provisions,2.00,0.00,2.00
Adult and Health Services,Head of Adults,055310,Positive Journeys (Tudhoe),Supplies and Services,324117,Provisions E324,03-Nov-2020,000007365120536,TESCO STORES 4358,5411,Catering costs - provisions,3.97,0.00,3.97
"Regeneration, Economy and Growth",Development and Housing,030771,Durham Advance Flexible Fund,Supplies and Services,304999,Equipment and Materials,03-Nov-2020,000007365120674,HIGHSPEEDTRAINING.CO.U,8244,Misc equipment tools and materials,54.00,9.00,45.00
Children and Young Peoples Services,Head of Early Help Inclusion & Vulnerable Children.,085952,Secure Education,Supplies and Services,304403,Equipment and Materials,03-Nov-2020,000007368115768,AMZNMKTPLACE AMAZON.CO,5999,Other consumables,71.94,12.00,59.94
Children and Young Peoples Services,Head of Childrens Social Care,085331,New Lea Childrens Home,Supplies and Services,348037,Subsistence E348,03-Nov-2020,000007368116428,CAFFE NERO NEWCASTLE M,5812,Subsistence,21.40,0.00,21.40
Resources BK0010,Digital and Customer Services,065481,Technical Services 065481,Supplies and Services,372009,Subscriptions E372,04-Nov-2020,000007365119362,WEB NETWORKSOLUTIONS,5968,Subscriptions 372009,1.54,0.00,1.54
"Regeneration, Economy and Growth",Development and Housing,030771,Durham Advance Flexible Fund,Supplies and Services,384700,Miscellaneous Expenses,04-Nov-2020,000007365119530,AMZNMktplace,5999,Miscellaneous grants,15.99,2.67,13.32
"Regeneration, Economy and Growth",Business Durham CL0850,030694,Plexus 2,Supplies and Services,304403,Equipment and Materials,04-Nov-2020,000007365120722,AMZNMktplace,5999,Other consumables,18.47,0.00,18.47
"Regeneration, Economy and Growth",Business Durham CL0850,030689,Inward Investment and Aftercare,Supplies and Services,336005,Advertising E336,04-Nov-2020,000007368115340,GOOGLE ADS6853017821,7311,Advertising other than for staff,67.12,0.00,67.12
"Regeneration, Economy and Growth",Business Durham CL0850,030689,Inward Investment and Aftercare,Supplies and Services,342033,Computers and Communications,04-Nov-2020,000007368115348,STK Shutterstock,7333,Computer hardware,19.00,0.00,19.00
"Regeneration, Economy and Growth",Business Durham CL0850,030689,Inward Investment and Aftercare,Supplies and Services,342222,Computers and Communications,04-Nov-2020,000007368115352,FASTHOSTS INTERNET,4816,Comp hardware purch-network servers,7.54,0.00,7.54
Children and Young Peoples Services,Head of Education and Skills,071801,Selby Cottage Childcare Centre,Supplies and Services,304403,Equipment and Materials,04-Nov-2020,000007368115400,AMZNMktplace,5999,Other consumables,89.00,14.84,74.16
Children and Young Peoples Services,Head of Education and Skills,071801,Selby Cottage Childcare Centre,Supplies and Services,304403,Equipment and Materials,04-Nov-2020,000007368115404,AMZNMktplace,5999,Other consumables,7.99,1.33,6.66
Children and Young Peoples Services,Head of Education and Skills,071801,Selby Cottage Childcare Centre,Supplies and Services,304403,Equipment and Materials,04-Nov-2020,000007368115410,AMZNMktplace,5999,Other consumables,18.99,3.17,15.82
Children and Young Peoples Services,Head of Education and Skills,071801,Selby Cottage Childcare Centre,Supplies and Services,304403,Equipment and Materials,04-Nov-2020,000007368115416,AMZNMktplace,5999,Other consumables,7.59,1.27,6.32
Resources BK0010,Business Support,065461,Business Support 065461,Employees,040149,Recruitment Instruction and Training,04-Nov-2020,000007368115438,Pluralsight,8299,Training-all costs,245.00,0.00,245.00
Resources BK0010,Business Support,065461,Business Support 065461,Supplies and Services,304403,Equipment and Materials,04-Nov-2020,000007368115446,AMZNMKTPLACE AMAZON.CO,5999,Other consumables,57.35,0.00,57.35
Resources BK0010,Business Support,065461,Business Support 065461,Supplies and Services,304403,Equipment and Materials,04-Nov-2020,000007368115452,AMZNMktplace,5999,Other consumables,5.95,0.99,4.96
Resources BK0010,Business Support,065461,Business Support 065461,Supplies and Services,304403,Equipment and Materials,04-Nov-2020,000007368115458,AMZNMKTPLACE AMAZON.CO,5999,Other consumables,13.98,2.34,11.64
Children and Young Peoples Services,Head of Childrens Social Care,085501,Child Care Cases Legal Expenses,Supplies and Services,304403,Equipment and Materials,04-Nov-2020,000007368115510,SUNDERLAND CC,7523,Other consumables,22.00,0.00,22.00
"Regeneration, Economy and Growth",Culture Sport and Tourism,011286,Wolsingham School Leisure Centre,Supplies and Services,304259,Equipment and Materials,04-Nov-2020,000007368115544,ST JOHN AMBULANCE,8398,Equipment-purchase and rental,52.26,0.00,52.26
Children and Young Peoples Services,Head of Childrens Social Care,085342,16 Hickstead Rise (previously 9 Cedar Ave),Supplies and Services,348037,Subsistence E348,04-Nov-2020,000007368115562,MCDONALDS,5814,Subsistence,3.96,0.00,3.96
Dedicated Schools Grant BG0015,DSG High Needs Block,079050,SENSS-Sensory,Supplies and Services,332047,Printing Stationery and Gen Off Exps,04-Nov-2020,000007368115572,AMZNMktplace,5999,Stationery,20.98,3.50,17.48
Children and Young Peoples Services,Head of Childrens Social Care,085332,Middlestone Moor CU,Supplies and Services,324117,Provisions E324,04-Nov-2020,000007368115586,B&M 410 - DARLINGTON,5399,Catering costs - provisions,19.77,0.00,19.77
Children and Young Peoples Services,Head of Childrens Social Care,085332,Middlestone Moor CU,Supplies and Services,324117,Provisions E324,04-Nov-2020,000007368115592,WILKO RETAIL LIMITED,5399,Catering costs - provisions,20.20,0.00,20.20
Children and Young Peoples Services,Head of Childrens Social Care,085332,Middlestone Moor CU,Supplies and Services,328041,Clothing uniforms and laundry E328,04-Nov-2020,000007368115600,W BOYES & CO LTD NEWTO,5310,Clothing uniforms and laundry,5.60,0.00,5.60
Children and Young Peoples Services,Head of Childrens Social Care,085332,Middlestone Moor CU,Supplies and Services,324117,Provisions E324,04-Nov-2020,000007368115604,WALKERS BUTCHERS & BAK,5499,Catering costs - provisions,9.60,0.00,9.60
Children and Young Peoples Services,Head of Childrens Social Care,085332,Middlestone Moor CU,Supplies and Services,324117,Provisions E324,04-Nov-2020,000007368115608,ALDI 74 774,5411,Catering costs - provisions,3.91,0.00,3.91
Children and Young Peoples Services,Head of Early Help Inclusion & Vulnerable Children.,088105,BA/BC/Crook 0-19 Community Family Hub,Supplies and Services,324117,Provisions E324,04-Nov-2020,000007368115704,ASDA GROCERIES ONLINE,5411,Catering costs - provisions,344.15,0.00,344.15
Children and Young Peoples Services,Head of Early Help Inclusion & Vulnerable Children.,088105,BA/BC/Crook 0-19 Community Family Hub,Supplies and Services,324117,Provisions E324,04-Nov-2020,000007368115710,ASDA GROCERIES ONLINE,5411,Catering costs - provisions,-7.66,0.00,-7.66
"Regeneration, Economy and Growth",Culture Sport and Tourism,054233,Bishop Auckland Town Hall Library,Supplies and Services,324117,Provisions E324,04-Nov-2020,000007368115720,HERON FOODS LTD,5499,Catering costs - provisions,3.94,0.00,3.94
Children and Young Peoples Services,Head of Early Help Inclusion & Vulnerable Children.,085956,Lumley,Supplies and Services,304403,Equipment and Materials,04-Nov-2020,000007368115774,AMZNMKTPLACE AMAZON.CO,5999,Other consumables,33.70,0.00,33.70
Children and Young Peoples Services,Head of Early Help Inclusion & Vulnerable Children.,085956,Lumley,Supplies and Services,304403,Equipment and Materials,04-Nov-2020,000007368115778,AMZNMktplace,5999,Other consumables,8.99,1.50,7.49
Children and Young Peoples Services,Head of Early Help Inclusion & Vulnerable Children.,085956,Lumley,Supplies and Services,304403,Equipment and Materials,04-Nov-2020,000007368115784,AMZ Philip Jones Jewel,5999,Other consumables,-8.99,-1.50,-7.49
Children and Young Peoples Services,Head of Early Help Inclusion & Vulnerable Children.,088109,Spennymoor & Shildon 0-19 Community Family Hub,Supplies and Services,384302,Miscellaneous Expenses,04-Nov-2020,000007368115898,ASDA STORES,5411,Activity expenses,7.14,0.00,7.14
Children and Young Peoples Services,Head of Education and Skills,071732,Dean Bank Childcare,Supplies and Services,324117,Provisions E324,04-Nov-2020,000007368115916,B&M 035 - SHILDON,5399,Catering costs - provisions,15.96,0.00,15.96
Children and Young Peoples Services,Head of Education and Skills,071732,Dean Bank Childcare,Supplies and Services,324117,Provisions E324,04-Nov-2020,000007368115918,CO-OP GROUP 010503,5411,Catering costs - provisions,10.55,0.00,10.55
Children and Young Peoples Services,Head of Childrens Social Care,085334,West Rainton Satelite Home,Supplies and Services,304403,Equipment and Materials,04-Nov-2020,000007368116052,AMZNMKTPLACE AMAZON.CO,5999,Other consumables,12.90,0.00,12.90
Children and Young Peoples Services,Head of Childrens Social Care,085334,West Rainton Satelite Home,Supplies and Services,304221,Equipment and Materials,04-Nov-2020,000007368116056,B & Q 1343,5200,Direct materials,10.00,0.00,10.00
"Regeneration, Economy and Growth",Development and Housing,030776,LINKCD Flexible Fund,Supplies and Services,304259,Equipment and Materials,04-Nov-2020,000007368116124,GEN REGISTER OFFICE,9399,Equipment-purchase and rental,14.00,0.00,14.00
Children and Young Peoples Services,Head of Childrens Social Care,085334,West Rainton Satelite Home,Supplies and Services,384999,Miscellaneous Expenses,04-Nov-2020,000007368116136,Amazon.co.uk M72LK9LP4,5969,Other expenses,15.56,0.00,15.56
Children and Young Peoples Services,Head of Childrens Social Care,085334,West Rainton Satelite Home,Supplies and Services,304403,Equipment and Materials,04-Nov-2020,000007368116140,AMZNMktplace,5999,Other consumables,34.97,0.00,34.97
Children and Young Peoples Services,Head of Early Help Inclusion & Vulnerable Children.,085962,Aycliffe Secure - Durham,Supplies and Services,304649,Equipment and Materials,04-Nov-2020,000007368116150,CEX LTD,5065,Toys,21.95,0.00,21.95
Children and Young Peoples Services,Head of Early Help Inclusion & Vulnerable Children.,085962,Aycliffe Secure - Durham,Supplies and Services,324117,Provisions E324,04-Nov-2020,000007368116156,TESCO STORES 6329,5411,Catering costs - provisions,88.60,0.00,88.60
Neighbourhoods and Climate Change,Environmental Services,011060,C&G - Hardwick Park Catering,Supplies and Services,304083,Equipment and Materials,04-Nov-2020,000007368116190,AMZNMktplace,5999,Catering equipment,15.98,2.66,13.32
Neighbourhoods and Climate Change,Environmental Services,011060,C&G - Hardwick Park Catering,Supplies and Services,324117,Provisions E324,04-Nov-2020,000007368116198,JR HOLLAND FOODSERVICE,5499,Catering costs - provisions,11.51,0.00,11.51
Resources BK0010,People & Talent Management,010984,Training and Development,Supplies and Services,304999,Equipment and Materials,04-Nov-2020,000007368116258,THE GRANARY,7991,Misc equipment tools and materials,126.50,0.00,126.50
Children and Young Peoples Services,Head of Childrens Social Care,085551,Short Break Services-Park Hse Sher,Supplies and Services,324117,Provisions E324,04-Nov-2020,000007368116376,ALDI 12 774,5411,Catering costs - provisions,55.18,0.00,55.18
Children and Young Peoples Services,Head of Early Help Inclusion & Vulnerable Children.,088109,Spennymoor & Shildon 0-19 Community Family Hub,Supplies and Services,304259,Equipment and Materials,04-Nov-2020,000007368116404,SMYTHSTOYS.COM,5945,Equipment-purchase and rental,126.93,0.00,126.93
Children and Young Peoples Services,Head of Early Help Inclusion & Vulnerable Children.,088108,Spennymoor & Shildon 0-19 Targeted Family Support,Supplies and Services,304259,Equipment and Materials,04-Nov-2020,000007368116408,BLACKPOOL COUNCIL,9399,Equipment-purchase and rental,-14.00,0.00,-14.00
Children and Young Peoples Services,Head of Childrens Social Care,085331,New Lea Childrens Home,Supplies and Services,304403,Equipment and Materials,04-Nov-2020,000007368116432,LICKETY SPLIT,5999,Other consumables,11.55,0.00,11.55
Children and Young Peoples Services,Head of Childrens Social Care,085331,New Lea Childrens Home,Supplies and Services,312009,Newspapers books and periodicals E312,04-Nov-2020,000007368116436,THE BACK PAGE,5942,Newspapers books and periodicals,5.99,0.00,5.99
Children and Young Peoples Services,Head of Childrens Social Care,085331,New Lea Childrens Home,Supplies and Services,312009,Newspapers books and periodicals E312,04-Nov-2020,000007368116438,THE BACK PAGE,5942,Newspapers books and periodicals,11.98,0.00,11.98
Children and Young Peoples Services,Head of Childrens Social Care,085331,New Lea Childrens Home,Supplies and Services,304403,Equipment and Materials,04-Nov-2020,000007368116442,CARD FACTORY,5947,Other consumables,3.51,0.00,3.51
Neighbourhoods and Climate Change,Environmental Services,010367,C&G - South Grounds Maintenance,Supplies and Services,304221,Equipment and Materials,04-Nov-2020,000007368116454,CARRS BILLINGTON SPENN,5599,Direct materials,78.41,0.00,78.41
Neighbourhoods and Climate Change,Environmental Services,010367,C&G - South Grounds Maintenance,Supplies and Services,304999,Equipment and Materials,04-Nov-2020,000007368116458,Snowballs,5251,Misc equipment tools and materials,161.79,0.00,161.79
Adult and Health Services,Head of Adults,055643,Hawthorn House LD Respite Unit,Supplies and Services,324117,Provisions E324,04-Nov-2020,000007368116516,WILKO RETAIL LIMITED,5399,Catering costs - provisions,5.00,0.00,5.00
Adult and Health Services,Head of Adults,055643,Hawthorn House LD Respite Unit,Supplies and Services,324117,Provisions E324,04-Nov-2020,000007368116520,SAINSBURYS 0776,5411,Catering costs - provisions,11.40,0.00,11.40
Children and Young Peoples Services,Head of Childrens Social Care,085333,Coxhoe Satelite Home,Supplies and Services,324117,Provisions E324,04-Nov-2020,000007368116548,TESCO STORES 2371,5411,Catering costs - provisions,89.06,0.00,89.06
Children and Young Peoples Services,Head of Childrens Social Care,085342,16 Hickstead Rise (previously 9 Cedar Ave),Supplies and Services,324117,Provisions E324,04-Nov-2020,000007368116560,B&M 410 - DARLINGTON,5399,Catering costs - provisions,6.00,0.00,6.00
Adult and Health Services,Head of Adults,055643,Hawthorn House LD Respite Unit,Supplies and Services,324117,Provisions E324,04-Nov-2020,000007368116606,JR HOLLAND FOODSERVICE,5499,Catering costs - provisions,9.74,0.00,9.74
Children and Young Peoples Services,Head of Education and Skills,070264,EDC Premises,Third Party Payments,430100,Rendered by Private Contractors,04-Nov-2020,000007368116624,EB NAHT EARLY YEARS A,7399,Payments to sub-contractors,230.00,0.00,230.00
Children and Young Peoples Services,Head of Early Help Inclusion & Vulnerable Children.,088103,Consett & Stanley 0-19 Community Family Hub,Supplies and Services,384302,Miscellaneous Expenses,04-Nov-2020,000007368116662,Amazon.co.uk M797J8Z94,5969,Activity expenses,10.72,0.00,10.72
Children and Young Peoples Services,Head of Early Help Inclusion & Vulnerable Children.,088103,Consett & Stanley 0-19 Community Family Hub,Supplies and Services,384302,Miscellaneous Expenses,04-Nov-2020,000007368116666,WWW.THEWORKS.CO.UK,5310,Activity expenses,295.00,0.00,295.00
Resources BK0010,Digital and Customer Services,065335,School Services - Implementations,Supplies and Services,304639,Equipment and Materials,04-Nov-2020,000007368116682,AMZNMKTPLACE AMAZON.CO,5999,Technicians-supplies,68.00,11.33,56.67
Resources BK0010,Digital and Customer Services,065335,School Services - Implementations,Supplies and Services,304639,Equipment and Materials,04-Nov-2020,000007368116684,PAYPAL APPLIANCES,5722,Technicians-supplies,17.79,0.00,17.79
Resources BK0010,Digital and Customer Services,065335,School Services - Implementations,Supplies and Services,304639,Equipment and Materials,04-Nov-2020,000007368116690,AMZNMKTPLACE AMAZON.CO,5999,Technicians-supplies,13.99,0.00,13.99
Resources BK0010,Digital and Customer Services,065335,School Services - Implementations,Supplies and Services,304303,Equipment and Materials,04-Nov-2020,000007368116696,PAYPAL SPATIAL,5732,Network for resale,-249.00,0.00,-249.00
Children and Young Peoples Services,Head of Childrens Social Care,085334,West Rainton Satelite Home,Supplies and Services,324117,Provisions E324,04-Nov-2020,000007368116708,B&M 681 - DURHAM,5399,Catering costs - provisions,7.00,0.00,7.00
Children and Young Peoples Services,Head of Childrens Social Care,085334,West Rainton Satelite Home,Supplies and Services,324117,Provisions E324,04-Nov-2020,000007368116718,ALDI 12 774,5411,Catering costs - provisions,15.65,0.00,15.65
Resources BK0010,Business Support,065502,Business Support - Crook,Supplies and Services,304403,Equipment and Materials,04-Nov-2020,000007368116782,AMZNMktplace,5999,Other consumables,3.99,0.00,3.99
Resources BK0010,Business Support,052986,CYPS - Locality and Operational Support,Supplies and Services,304259,Equipment and Materials,04-Nov-2020,000007368116790,HM PASSPORT OFFICE,9399,Equipment-purchase and rental,75.50,0.00,75.50
Resources BK0010,Business Support,052986,CYPS - Locality and Operational Support,Supplies and Services,304259,Equipment and Materials,04-Nov-2020,000007368116798,HM PASSPORT OFFICE,9399,Equipment-purchase and rental,75.50,0.00,75.50
Resources BK0010,Business Support,052986,CYPS - Locality and Operational Support,Supplies and Services,304259,Equipment and Materials,04-Nov-2020,000007368116802,HM PASSPORT OFFICE,9399,Equipment-purchase and rental,75.50,0.00,75.50
Children and Young Peoples Services,Head of Education and Skills,070169,Durham SSP,Supplies and Services,384199,Miscellaneous Expenses,04-Nov-2020,000007368116894,AMZNMktplace,5999,Other hired and contracted services,12.69,0.00,12.69
Children and Young Peoples Services,Head of Childrens Social Care,085332,Middlestone Moor CU,Supplies and Services,304999,Equipment and Materials,04-Nov-2020,000007368116918,BOOTS/5002,5912,Misc equipment tools and materials,37.50,0.00,37.50
Children and Young Peoples Services,Head of Childrens Social Care,085332,Middlestone Moor CU,Supplies and Services,328041,Clothing uniforms and laundry E328,04-Nov-2020,000007368116922,HOUSE OF FRASER,5311,Clothing uniforms and laundry,95.05,0.00,95.05
Children and Young Peoples Services,Head of Early Help Inclusion & Vulnerable Children.,088107,Ferryhill & Newton Aycliffe 0-19 Community Family Hub,Supplies and Services,304403,Equipment and Materials,04-Nov-2020,000007368116928,AMZNMktplace,5999,Other consumables,20.33,3.40,16.93
Children and Young Peoples Services,Head of Early Help Inclusion & Vulnerable Children.,088107,Ferryhill & Newton Aycliffe 0-19 Community Family Hub,Supplies and Services,304403,Equipment and Materials,04-Nov-2020,000007368116934,AMZNMktplace,5999,Other consumables,60.98,10.16,50.82
Children and Young Peoples Services,Head of Early Help Inclusion & Vulnerable Children.,088107,Ferryhill & Newton Aycliffe 0-19 Community Family Hub,Supplies and Services,304403,Equipment and Materials,04-Nov-2020,000007368116936,AMZNMktplace,5999,Other consumables,18.30,3.05,15.25
Children and Young Peoples Services,Head of Early Help Inclusion & Vulnerable Children.,088107,Ferryhill & Newton Aycliffe 0-19 Community Family Hub,Supplies and Services,304403,Equipment and Materials,04-Nov-2020,000007368116936 - 1,AMZNMktplace,5999,Other consumables,0.10,,0.10
Children and Young Peoples Services,Head of Early Help Inclusion & Vulnerable Children.,088107,Ferryhill & Newton Aycliffe 0-19 Community Family Hub,Supplies and Services,328041,Clothing uniforms and laundry E328,04-Nov-2020,000007368116940,WWW.THEWORKS.CO.UK,5310,Clothing uniforms and laundry,30.00,0.00,30.00
"Regeneration, Economy and Growth",Development and Housing,031500,Housing Solutions - Core Team,Supplies and Services,304999,Equipment and Materials,04-Nov-2020,000007368116962,DUNCAN BELTON TA K,6513,Misc equipment tools and materials,500.00,0.00,500.00
Adult and Health Services,Head of Adults,051613,OP/PD Easington 051613,Supplies and Services,332048,Printing Stationery and Gen Off Exps,04-Nov-2020,000007368117012,AMZNMktplace,5999,Administrative stationery etc,38.97,6.51,32.46
Neighbourhoods and Climate Change,Environmental Services,031200,North Pennines Core,Supplies and Services,344033,Telephones,04-Nov-2020,000007368117098,ZOOM.US 888-799-9666,4814,Telephones general-all costs,14.39,0.00,14.39
Resources BK0010,Business Support,065461,Business Support 065461,Supplies and Services,304403,Equipment and Materials,04-Nov-2020,000007371023374,AMZNMKTPLACE AMAZON.CO,5999,Other consumables,30.99,5.17,25.82
Children and Young Peoples Services,Head of Childrens Social Care,085342,16 Hickstead Rise (previously 9 Cedar Ave),Supplies and Services,348037,Subsistence E348,04-Nov-2020,000007371023504,DOWNEYS,5814,Subsistence,25.70,0.00,25.70
"Regeneration, Economy and Growth",Culture Sport and Tourism,054967,Theatre - Technical Staffing,Supplies and Services,304221,Equipment and Materials,04-Nov-2020,000007371023906,SCREWFIX DIRECT,5211,Direct materials,32.73,0.00,32.73
"Regeneration, Economy and Growth",Culture Sport and Tourism,054967,Theatre - Technical Staffing,Supplies and Services,304221,Equipment and Materials,04-Nov-2020,000007371023912,SCREWFIX DIRECT,5211,Direct materials,5.95,0.00,5.95
Children and Young Peoples Services,Head of Early Help Inclusion & Vulnerable Children.,085962,Aycliffe Secure - Durham,Supplies and Services,304403,Equipment and Materials,04-Nov-2020,000007371024014,CEX LTD,5065,Other consumables,46.75,0.00,46.75
Children and Young Peoples Services,Head of Early Help Inclusion & Vulnerable Children.,085962,Aycliffe Secure - Durham,Supplies and Services,308011,Furniture,04-Nov-2020,000007371024106,Dunelm,5712,Furniture repair and replacement,54.00,0.00,54.00
Children and Young Peoples Services,Head of Childrens Social Care,085331,New Lea Childrens Home,Supplies and Services,328041,Clothing uniforms and laundry E328,04-Nov-2020,000007371024296,POUNDLAND LTD 1037,5310,Clothing uniforms and laundry,14.00,0.00,14.00
Resources BK0010,Digital and Customer Services,065335,School Services - Implementations,Supplies and Services,304303,Equipment and Materials,04-Nov-2020,000007371024454,AMZNMKTPLACE AMAZON.CO,5999,Network for resale,254.78,42.46,212.32
Neighbourhoods and Climate Change,Partnerships & Community Engagement Div.,060473,COVID19 Shopping Community Hub,Supplies and Services,342506,Provisions E324,04-Nov-2020,000007371024578,BATLEYS PERTH,5300,Shopping Provision COVID19,923.16,153.86,769.30
Neighbourhoods and Climate Change,Partnerships & Community Engagement Div.,060473,COVID19 Shopping Community Hub,Supplies and Services,342506,Provisions E324,04-Nov-2020,000007371024578 - 1,BATLEYS PERTH,5300,Shopping Provision COVID19,"10,838.68",,10838.68
Neighbourhoods and Climate Change,Partnerships & Community Engagement Div.,060473,COVID19 Shopping Community Hub,Supplies and Services,342506,Provisions E324,04-Nov-2020,000007371024586,BATLEYS PERTH,5300,Shopping Provision COVID19,198.42,33.07,165.35
Neighbourhoods and Climate Change,Environmental Services,010367,C&G - South Grounds Maintenance,Supplies and Services,304221,Equipment and Materials,04-Nov-2020,000007374690958,BTL TIMBER AND HARDWAR,5099,Direct materials,162.14,0.00,162.14
Resources BK0010,Business Support,065461,Business Support 065461,Supplies and Services,304403,Equipment and Materials,05-Nov-2020,000007368115462,AMZNMktplace,5999,Other consumables,28.95,4.83,24.12
Resources BK0010,Business Support,065461,Business Support 065461,Supplies and Services,304403,Equipment and Materials,05-Nov-2020,000007368115466,AMZNMktplace,5999,Other consumables,28.95,4.83,24.12
Children and Young Peoples Services,Head of Childrens Social Care,085352,Tow Law CU,Supplies and Services,304403,Equipment and Materials,05-Nov-2020,000007368116578,AMZNMktplace,5999,Other consumables,23.98,0.00,23.98
Children and Young Peoples Services,Head of Early Help Inclusion & Vulnerable Children.,088107,Ferryhill & Newton Aycliffe 0-19 Community Family Hub,Supplies and Services,304403,Equipment and Materials,05-Nov-2020,000007368116942,AMZNMktplace,5999,Other consumables,3.95,0.00,3.95
Children and Young Peoples Services,Head of Early Help Inclusion & Vulnerable Children.,088107,Ferryhill & Newton Aycliffe 0-19 Community Family Hub,Supplies and Services,304403,Equipment and Materials,05-Nov-2020,000007368116944,AMZNMktplace,5999,Other consumables,38.92,6.49,32.43
Children and Young Peoples Services,Head of Education and Skills,071801,Selby Cottage Childcare Centre,Supplies and Services,304403,Equipment and Materials,05-Nov-2020,000007371023338,AMZNMktplace,5999,Other consumables,43.90,7.32,36.58
Children and Young Peoples Services,Head of Education and Skills,071801,Selby Cottage Childcare Centre,Supplies and Services,304403,Equipment and Materials,05-Nov-2020,000007371023342,AMZNMktplace,5999,Other consumables,44.99,7.50,37.49
Children and Young Peoples Services,Head of Education and Skills,054640,Durham Learning Resources 054640,Supplies and Services,304403,Equipment and Materials,05-Nov-2020,000007371023360,AMZ mcrltd,5999,Other consumables,-63.39,-10.56,-52.83
Children and Young Peoples Services,Head of Childrens Social Care,085501,Child Care Cases Legal Expenses,Supplies and Services,304403,Equipment and Materials,05-Nov-2020,000007371023414,DARLINGTON BC INTERNET,9399,Other consumables,11.00,0.00,11.00
Children and Young Peoples Services,Head of Education and Skills,075021,Youth Employment Initiative,Supplies and Services,364301,Grants to Voluntary Organisations,05-Nov-2020,000007371023420,SUNDERLAND CC,7523,Hardship,11.00,0.00,11.00
Children and Young Peoples Services,Head of Education and Skills,075021,Youth Employment Initiative,Supplies and Services,364301,Grants to Voluntary Organisations,05-Nov-2020,000007371023426,ASDA GEORGE COM LEEDS,5411,Hardship,20.95,0.00,20.95
Children and Young Peoples Services,Head of Education and Skills,075024,Durham Directions,Supplies and Services,332048,Printing Stationery and Gen Off Exps,05-Nov-2020,000007371023430,Amazon.co.uk M72ZZ63J4,5969,Administrative stationery etc,5.91,0.99,4.92
Adult and Health Services,Head of Adults,055302,Durham Pathways,Supplies and Services,384999,Miscellaneous Expenses,05-Nov-2020,000007371023444,Amazon.co.uk M774H9ZA4,5969,Other expenses,75.00,12.50,62.50
Adult and Health Services,Head of Adults,055302,Durham Pathways,Supplies and Services,384999,Miscellaneous Expenses,05-Nov-2020,000007371023450,Amazon.co.uk M79ON5NN4,5969,Other expenses,49.99,8.33,41.66
Adult and Health Services,Head of Adults,055302,Durham Pathways,Supplies and Services,304259,Equipment and Materials,05-Nov-2020,000007371023454,CURRYS ONLINE,5732,Equipment-purchase and rental,263.99,0.00,263.99
"Regeneration, Economy and Growth",Culture Sport and Tourism,011286,Wolsingham School Leisure Centre,Premises,145015,Cleaning and Domestic Supplies,05-Nov-2020,000007371023462,FULLI`S PAPERWARE,5072,Cleaning and domestic equipment,60.07,0.00,60.07
Neighbourhoods and Climate Change,Environmental Services,010367,C&G - South Grounds Maintenance,Supplies and Services,304221,Equipment and Materials,05-Nov-2020,000007371023602,WWW.JPARKERS.CO.UK,5261,Direct materials,387.84,0.00,387.84
Neighbourhoods and Climate Change,Environmental Services,010367,C&G - South Grounds Maintenance,Supplies and Services,304221,Equipment and Materials,05-Nov-2020,000007371023604,SCREWFIX DIRECT,5211,Direct materials,28.86,4.81,24.05
"Regeneration, Economy and Growth",Development and Housing,030772,CLLD South,Supplies and Services,304259,Equipment and Materials,05-Nov-2020,000007371023736,Durham County CNCL,9399,Equipment-purchase and rental,11.00,0.00,11.00
Children and Young Peoples Services,Head of Early Help Inclusion & Vulnerable Children.,073998,TTF-Co-ordinator Grant,Transfer Payments,525033,Other,05-Nov-2020,000007371023772,MAGUIRE TA LTD,5713,Grants to individuals,250.00,0.00,250.00
"Regeneration, Economy and Growth",Development and Housing,031576,B& B - Temp Accom,Supplies and Services,364320,Grants to Voluntary Organisations,05-Nov-2020,000007371023790,HI NEWCASTLE WASHI,7011,Accommodation assistance,285.00,0.00,285.00
Resources BK0010,Digital and Customer Services,070204,School Services - Systems,Supplies and Services,372009,Subscriptions E372,05-Nov-2020,000007371023868,WEB NETWORKSOLUTIONS,5968,Subscriptions 372009,92.79,0.00,92.79
"Regeneration, Economy and Growth",Culture Sport and Tourism,054967,Theatre - Technical Staffing,Supplies and Services,304403,Equipment and Materials,05-Nov-2020,000007371023918,AMZNMktplace,5999,Other consumables,28.99,0.00,28.99
Children and Young Peoples Services,Head of Childrens Social Care,085334,West Rainton Satelite Home,Supplies and Services,328041,Clothing uniforms and laundry E328,05-Nov-2020,000007371023978,REDBUBBLE.COM,5691,Clothing uniforms and laundry,14.38,0.00,14.38
Children and Young Peoples Services,Head of Early Help Inclusion & Vulnerable Children.,085962,Aycliffe Secure - Durham,Supplies and Services,304259,Equipment and Materials,05-Nov-2020,000007371024016,JD SPORTS INTERNET,5941,Equipment-purchase and rental,22.00,0.00,22.00
Children and Young Peoples Services,Head of Early Help Inclusion & Vulnerable Children.,085957,Secure Management,Supplies and Services,304403,Equipment and Materials,05-Nov-2020,000007371024100,AMZNMKTPLACE AMAZON.CO,5999,Other consumables,21.84,3.64,18.20
Children and Young Peoples Services,Head of Early Help Inclusion & Vulnerable Children.,085965,Barnard,Supplies and Services,304403,Equipment and Materials,05-Nov-2020,000007371024112,WALLPAPERDIRECT.CO,5211,Other consumables,56.87,0.00,56.87
Neighbourhoods and Climate Change,Environmental Services,026591,C&G - Hardwick Park,Supplies and Services,332047,Printing Stationery and Gen Off Exps,05-Nov-2020,000007371024122,Amazon.co.uk M75FW3344,5969,Stationery,44.84,7.48,37.36
Resources BK0010,People & Talent Management,010984,Training and Development,Supplies and Services,384999,Miscellaneous Expenses,05-Nov-2020,000007371024146,Amazon.co.uk M75O30NH4,5969,Other expenses,30.56,0.00,30.56
Resources BK0010,People & Talent Management,010984,Training and Development,Supplies and Services,304403,Equipment and Materials,05-Nov-2020,000007371024150,AMZNMktplace,5999,Other consumables,27.31,0.00,27.31
Resources BK0010,People & Talent Management,010984,Training and Development,Supplies and Services,384999,Miscellaneous Expenses,05-Nov-2020,000007371024154,Amazon.co.uk M70R97304,5969,Other expenses,31.48,0.00,31.48
Children and Young Peoples Services,Head of Childrens Social Care,085331,New Lea Childrens Home,Supplies and Services,324117,Provisions E324,05-Nov-2020,000007371024192,PPOINT_ PVR and CO LTD,5499,Catering costs - provisions,13.04,0.00,13.04
"Regeneration, Economy and Growth",Development and Housing,031576,B& B - Temp Accom,Supplies and Services,364320,Grants to Voluntary Organisations,05-Nov-2020,000007371024244,HI NEWCASTLE WASHI,7011,Accommodation assistance,455.00,0.00,455.00
Children and Young Peoples Services,Head of Early Help Inclusion & Vulnerable Children.,088108,Spennymoor & Shildon 0-19 Targeted Family Support,Supplies and Services,338045,Services,05-Nov-2020,000007371024288,LCC TELEPHONE PAYMENT,9399,Legal expenses 338045,13.00,0.00,13.00
Children and Young Peoples Services,Head of Early Help Inclusion & Vulnerable Children.,088106,Ferryhill & N.Aycliffe 0-19 Targeted Family Support,Supplies and Services,364301,Grants to Voluntary Organisations,05-Nov-2020,000007371024290,ARGOS LTD,5310,Hardship,13.00,0.00,13.00
Neighbourhoods and Climate Change,Environmental Services,010367,C&G - South Grounds Maintenance,Supplies and Services,304999,Equipment and Materials,05-Nov-2020,000007371024338,Snowballs,5251,Misc equipment tools and materials,24.60,0.00,24.60
Adult and Health Services,Head of Adults,055643,Hawthorn House LD Respite Unit,Supplies and Services,324117,Provisions E324,05-Nov-2020,000007371024356,CO-OP GROUP 010465,5411,Catering costs - provisions,46.65,0.00,46.65
Neighbourhoods and Climate Change,Environmental Services,019100,Fleet - Strategic Fleet,Supplies and Services,304999,Equipment and Materials,05-Nov-2020,000007371024388,DVSA,9399,Misc equipment tools and materials,"1,000.00",0.00,1000.00
Neighbourhoods and Climate Change,Environmental Services,019100,Fleet - Strategic Fleet,Supplies and Services,384999,Miscellaneous Expenses,05-Nov-2020,000007371024392,DVSA,9399,Other expenses,"1,000.00",0.00,1000.00
"Regeneration, Economy and Growth",Development and Housing,031576,B& B - Temp Accom,Supplies and Services,364320,Grants to Voluntary Organisations,05-Nov-2020,000007371024416,H52STANLEY,7011,Accommodation assistance,327.00,0.00,327.00
Neighbourhoods and Climate Change,Environmental Services,031202,North Pennines - Peatscapes,Supplies and Services,384199,Miscellaneous Expenses,05-Nov-2020,000007371024430,NORTHUMBERLAND CC CRD,9399,Other hired and contracted services,50.00,0.00,50.00
Children and Young Peoples Services,Head of Early Help Inclusion & Vulnerable Children.,088103,Consett & Stanley 0-19 Community Family Hub,Supplies and Services,384302,Miscellaneous Expenses,05-Nov-2020,000007371024448,WWW.THEWORKS.CO.UK,5310,Activity expenses,295.00,0.00,295.00
Resources BK0010,Digital and Customer Services,065335,School Services - Implementations,Supplies and Services,304639,Equipment and Materials,05-Nov-2020,000007371024460,AMZ Hupan TEC,5999,Technicians-supplies,-12.99,0.00,-12.99
"Regeneration, Economy and Growth",Development and Housing,030771,Durham Advance Flexible Fund,Supplies and Services,304403,Equipment and Materials,05-Nov-2020,000007371024504,ACCESS SCREENING,5734,Other consumables,49.39,0.00,49.39
Children and Young Peoples Services,Head of Early Help Inclusion & Vulnerable Children.,085957,Secure Management,Supplies and Services,304245,Equipment and Materials,05-Nov-2020,000007371024508,SCREWFIX DIRECT,5211,Materials,40.00,0.00,40.00
Resources BK0010,Business Support,052986,CYPS - Locality and Operational Support,Supplies and Services,308011,Furniture,05-Nov-2020,000007371024526,MAGUIRES,5713,Furniture repair and replacement,293.00,0.00,293.00
Resources BK0010,Business Support,052986,CYPS - Locality and Operational Support,Supplies and Services,308011,Furniture,05-Nov-2020,000007371024532,FRANKS THE FLOORING ST,5713,Furniture repair and replacement,330.00,0.00,330.00
Children and Young Peoples Services,Head of Early Help Inclusion & Vulnerable Children.,088110,Easington & Peterlee 0-19 Targeted Family Support,Supplies and Services,324117,Provisions E324,05-Nov-2020,000007371024540,ASDA GEORGE COM LEEDS,5411,Catering costs - provisions,80.50,0.00,80.50
"Regeneration, Economy and Growth",Development and Housing,031576,B& B - Temp Accom,Supplies and Services,364320,Grants to Voluntary Organisations,05-Nov-2020,000007371024618,H52STANLEY,7011,Accommodation assistance,359.00,0.00,359.00
"Regeneration, Economy and Growth",Development and Housing,031576,B& B - Temp Accom,Supplies and Services,364320,Grants to Voluntary Organisations,05-Nov-2020,000007371024624,H52STANLEY,7011,Accommodation assistance,327.00,0.00,327.00
"Regeneration, Economy and Growth",Development and Housing,031576,B& B - Temp Accom,Supplies and Services,364320,Grants to Voluntary Organisations,05-Nov-2020,000007371024626,HI NEWCASTLE WASHI,7011,Accommodation assistance,295.00,0.00,295.00
Children and Young Peoples Services,Head of Education and Skills,070169,Durham SSP,Supplies and Services,384199,Miscellaneous Expenses,05-Nov-2020,000007371024638,NORTH EAST TROPHIES,5094,Other hired and contracted services,84.03,14.01,70.02
Children and Young Peoples Services,Head of Early Help Inclusion & Vulnerable Children.,088107,Ferryhill & Newton Aycliffe 0-19 Community Family Hub,Supplies and Services,304403,Equipment and Materials,05-Nov-2020,000007371024652,AMZNMktplace,5999,Other consumables,21.99,3.67,18.32
Children and Young Peoples Services,Head of Early Help Inclusion & Vulnerable Children.,088107,Ferryhill & Newton Aycliffe 0-19 Community Family Hub,Supplies and Services,304403,Equipment and Materials,05-Nov-2020,000007371024656,AMZNMktplace,5999,Other consumables,4.80,0.80,4.00
Children and Young Peoples Services,Head of Early Help Inclusion & Vulnerable Children.,088107,Ferryhill & Newton Aycliffe 0-19 Community Family Hub,Supplies and Services,304403,Equipment and Materials,05-Nov-2020,000007371024660,AMZNMktplace,5999,Other consumables,19.80,3.30,16.50
Children and Young Peoples Services,Head of Early Help Inclusion & Vulnerable Children.,088107,Ferryhill & Newton Aycliffe 0-19 Community Family Hub,Supplies and Services,304403,Equipment and Materials,05-Nov-2020,000007371024660 - 1,AMZNMktplace,5999,Other consumables,0.10,,0.10
Children and Young Peoples Services,Head of Early Help Inclusion & Vulnerable Children.,088107,Ferryhill & Newton Aycliffe 0-19 Community Family Hub,Supplies and Services,304403,Equipment and Materials,05-Nov-2020,000007371024664,AMZNMktplace,5999,Other consumables,45.96,7.66,38.30
Children and Young Peoples Services,Head of Childrens Social Care,085331,New Lea Childrens Home,Transport,215995,Running Costs of Vehicles,05-Nov-2020,000007371024716,MEADOWFIELD FILL STN,5541,Vehicle running expenses,20.01,0.00,20.01
Children and Young Peoples Services,Head of Childrens Social Care,085331,New Lea Childrens Home,Supplies and Services,324117,Provisions E324,05-Nov-2020,000007371024722,ASDA SUPERSTORE,5411,Catering costs - provisions,18.67,0.00,18.67
Children and Young Peoples Services,Head of Childrens Social Care,085331,New Lea Childrens Home,Supplies and Services,324117,Provisions E324,05-Nov-2020,000007371024726,TESCO STORES 2916,5411,Catering costs - provisions,95.85,0.00,95.85
Neighbourhoods and Climate Change,Community Protection,011035,Consumer Protection 011035,Supplies and Services,340001,Postages E340,05-Nov-2020,000007371024740,ROYAL MAIL ONLINE SHOP,9402,Postages,19.69,0.00,19.69
Resources BK0010,COVID19 - Resources,091007,COVID19 - Resources,Supplies and Services,342033,Computers and Communications,05-Nov-2020,000007371024742,AMZNMktplace,5999,Computer hardware,17.98,3.00,14.98
Adult and Health Services,Head of Adults,055310,Positive Journeys (Tudhoe),Supplies and Services,324117,Provisions E324,05-Nov-2020,000007371024746,TESCO STORES 4358,5411,Catering costs - provisions,2.09,0.00,2.09
"Regeneration, Economy and Growth",Development and Housing,031500,Housing Solutions - Core Team,Supplies and Services,352001,Conference Expenses,05-Nov-2020,000007371024778,H52STANLEY,7011,Conferencesseminars fees etc,479.00,0.00,479.00
"Regeneration, Economy and Growth",Development and Housing,030771,Durham Advance Flexible Fund,Supplies and Services,384999,Miscellaneous Expenses,05-Nov-2020,000007371024862,KARENDAVIES,5970,Other expenses,180.90,0.00,180.90
"Regeneration, Economy and Growth",Development and Housing,030771,Durham Advance Flexible Fund,Supplies and Services,304221,Equipment and Materials,05-Nov-2020,000007371024866,KITE ON LINE TERMINAL,5085,Direct materials,122.66,20.44,102.22
"Regeneration, Economy and Growth",Development and Housing,030771,Durham Advance Flexible Fund,Supplies and Services,324117,Provisions E324,05-Nov-2020,000007371024870,WWW.CHOCOLATETRADINGCO,5441,Catering costs - provisions,5.94,0.99,4.95
"Regeneration, Economy and Growth",Development and Housing,030771,Durham Advance Flexible Fund,Supplies and Services,324117,Provisions E324,05-Nov-2020,000007371024870 - 1,WWW.CHOCOLATETRADINGCO,5441,Catering costs - provisions,68.22,,68.22
Neighbourhoods and Climate Change,Environmental Services,011060,C&G - Hardwick Park Catering,Supplies and Services,324117,Provisions E324,05-Nov-2020,000007374692004,BATLEYS PERTH,5300,Catering costs - provisions,149.40,24.90,124.50
Neighbourhoods and Climate Change,Environmental Services,011060,C&G - Hardwick Park Catering,Supplies and Services,324117,Provisions E324,05-Nov-2020,000007374692004 - 1,BATLEYS PERTH,5300,Catering costs - provisions,75.60,,75.60
Neighbourhoods and Climate Change,Environmental Services,011060,C&G - Hardwick Park Catering,Supplies and Services,324117,Provisions E324,05-Nov-2020,000007374692010,BATLEYS PERTH,5300,Catering costs - provisions,13.32,2.22,11.10
Neighbourhoods and Climate Change,Environmental Services,011060,C&G - Hardwick Park Catering,Supplies and Services,324117,Provisions E324,05-Nov-2020,000007374692010 - 1,BATLEYS PERTH,5300,Catering costs - provisions,7.15,,7.15
"Regeneration, Economy and Growth",Corporate Property and Land,030691,Catering - Durham Dales Centre,Supplies and Services,324117,Provisions E324,05-Nov-2020,000007374692868,BATLEYS PERTH,5300,Catering costs - provisions,-20.33,0.00,-20.33
Resources BK0010,Business Support,052986,CYPS - Locality and Operational Support,Supplies and Services,352001,Conference Expenses,05-Nov-2020,000007374693290,TVLICENSING.CO.UK,7392,Conferencesseminars fees etc,157.50,0.00,157.50
Resources BK0010,Business Support,052986,CYPS - Locality and Operational Support,Supplies and Services,352001,Conference Expenses,05-Nov-2020,000007374693298,TVLICENSING.CO.UK,7392,Conferencesseminars fees etc,157.50,0.00,157.50
Resources BK0010,Business Support,052986,CYPS - Locality and Operational Support,Supplies and Services,352001,Conference Expenses,05-Nov-2020,000007374693310,TVLICENSING.CO.UK,7392,Conferencesseminars fees etc,157.50,0.00,157.50
Resources BK0010,Digital and Customer Services,070204,School Services - Systems,Supplies and Services,372009,Subscriptions E372,06-Nov-2020,000007371023874,WEB NETWORKSOLUTIONS,5968,Subscriptions 372009,2.55,0.00,2.55
Children and Young Peoples Services,Head of Childrens Social Care,085341,High Etherley Satelite Home,Supplies and Services,324117,Provisions E324,06-Nov-2020,000007374690114,TESCO STORES 6329,5411,Catering costs - provisions,13.02,0.00,13.02
Children and Young Peoples Services,Head of Education and Skills,054640,Durham Learning Resources 054640,Supplies and Services,304403,Equipment and Materials,06-Nov-2020,000007374690246,AMZNMKTPLACE AMAZON.CO,5999,Other consumables,34.56,5.76,28.80
Children and Young Peoples Services,Head of Education and Skills,075021,Youth Employment Initiative,Supplies and Services,364301,Grants to Voluntary Organisations,06-Nov-2020,000007374690322,HARTLEPOOL BC,9399,Hardship,11.00,0.00,11.00
"Regeneration, Economy and Growth",Culture Sport and Tourism,030708,VCD - Marketing & Information,Supplies and Services,384199,Miscellaneous Expenses,06-Nov-2020,000007374690374,GOOGLE Google Play Ap,5968,Other hired and contracted services,18.99,0.00,18.99
Children and Young Peoples Services,Head of Childrens Social Care,085332,Middlestone Moor CU,Supplies and Services,328041,Clothing uniforms and laundry E328,06-Nov-2020,000007374690406,POUNDSTRETCHER 128,5331,Clothing uniforms and laundry,8.26,0.00,8.26
Children and Young Peoples Services,Head of Childrens Social Care,085332,Middlestone Moor CU,Supplies and Services,324117,Provisions E324,06-Nov-2020,000007374690414,TESCO STORES 2371,5411,Catering costs - provisions,57.07,0.00,57.07
Children and Young Peoples Services,Head of Childrens Social Care,085332,Middlestone Moor CU,Supplies and Services,324117,Provisions E324,06-Nov-2020,000007374690422,TESCO STORES 2916,5411,Catering costs - provisions,8.00,0.00,8.00
Children and Young Peoples Services,Head of Childrens Social Care,085332,Middlestone Moor CU,Supplies and Services,304403,Equipment and Materials,06-Nov-2020,000007374690432,WWW.RANSOMSPARES.CO.UK,5065,Other consumables,20.80,0.00,20.80
Children and Young Peoples Services,Head of Childrens Social Care,085341,High Etherley Satelite Home,Supplies and Services,324117,Provisions E324,06-Nov-2020,000007374690666,CO-OP GROUP 010989,5411,Catering costs - provisions,10.99,0.00,10.99
Neighbourhoods and Climate Change,Environmental Services,010367,C&G - South Grounds Maintenance,Supplies and Services,304221,Equipment and Materials,06-Nov-2020,000007374690788,WWW.PRIMROSE.CO.UK,5261,Direct materials,149.98,0.00,149.98
Children and Young Peoples Services,Head of Early Help Inclusion & Vulnerable Children.,079599,Psychological-HQ,Supplies and Services,304403,Equipment and Materials,06-Nov-2020,000007374691082,AMZNMKTPLACE AMAZON.CO,5999,Other consumables,122.64,0.00,122.64
Children and Young Peoples Services,Head of Childrens Social Care,085511,Emergency Duty Team,Supplies and Services,324117,Provisions E324,06-Nov-2020,000007374691094,ASDA SUPERSTORE,5411,Catering costs - provisions,30.00,0.00,30.00
Children and Young Peoples Services,Head of Childrens Social Care,085361,LAC & Permanence Team 1,Supplies and Services,304403,Equipment and Materials,06-Nov-2020,000007374691224,WWW.DURHAM.GOV.UK,9399,Other consumables,11.00,0.00,11.00
Children and Young Peoples Services,Head of Early Help Inclusion & Vulnerable Children.,088109,Spennymoor & Shildon 0-19 Community Family Hub,Supplies and Services,384302,Miscellaneous Expenses,06-Nov-2020,000007374691446,HOME BARGAINS,5251,Activity expenses,2.07,0.00,2.07
Children and Young Peoples Services,Head of Early Help Inclusion & Vulnerable Children.,088109,Spennymoor & Shildon 0-19 Community Family Hub,Supplies and Services,384302,Miscellaneous Expenses,06-Nov-2020,000007374691458,TESCO STORES 2916,5411,Activity expenses,11.30,0.00,11.30
Children and Young Peoples Services,Head of Education and Skills,071732,Dean Bank Childcare,Supplies and Services,324117,Provisions E324,06-Nov-2020,000007374691556,CO-OP GROUP 010503,5411,Catering costs - provisions,8.20,0.00,8.20
Children and Young Peoples Services,Head of Childrens Social Care,085334,West Rainton Satelite Home,Supplies and Services,304403,Equipment and Materials,06-Nov-2020,000007374691670,AMZNMktplace,5999,Other consumables,43.98,0.00,43.98
Children and Young Peoples Services,Head of Childrens Social Care,085334,West Rainton Satelite Home,Supplies and Services,324117,Provisions E324,06-Nov-2020,000007374691676,TESCO STORES 2371,5411,Catering costs - provisions,74.72,0.00,74.72
Children and Young Peoples Services,Head of Childrens Social Care,085334,West Rainton Satelite Home,Supplies and Services,328041,Clothing uniforms and laundry E328,06-Nov-2020,000007374691684,The Range,5311,Clothing uniforms and laundry,5.99,0.00,5.99
Children and Young Peoples Services,Head of Early Help Inclusion & Vulnerable Children.,085965,Barnard,Supplies and Services,324117,Provisions E324,06-Nov-2020,000007374691938,TESCO STORES 6329,5411,Catering costs - provisions,87.05,0.00,87.05
Children and Young Peoples Services,Head of Early Help Inclusion & Vulnerable Children.,088112,Seaham & Central Durham 0-19 Targeted Family Support,Supplies and Services,304403,Equipment and Materials,06-Nov-2020,000007374691996,AMZNMktplace,5999,Other consumables,683.46,0.00,683.46
Neighbourhoods and Climate Change,Environmental Services,011060,C&G - Hardwick Park Catering,Supplies and Services,324117,Provisions E324,06-Nov-2020,000007374692016,HOPWELLS LTD,5811,Catering costs - provisions,57.00,9.50,47.50
Neighbourhoods and Climate Change,Environmental Services,011060,C&G - Hardwick Park Catering,Supplies and Services,324117,Provisions E324,06-Nov-2020,000007374692016 - 1,HOPWELLS LTD,5811,Catering costs - provisions,84.46,,84.46
Neighbourhoods and Climate Change,Environmental Services,011060,C&G - Hardwick Park Catering,Supplies and Services,324117,Provisions E324,06-Nov-2020,000007374692022,JR HOLLAND FOODSERVICE,5499,Catering costs - provisions,67.31,0.00,67.31
Resources BK0010,People & Talent Management,010984,Training and Development,Supplies and Services,304403,Equipment and Materials,06-Nov-2020,000007374692082,AMZNMktplace,5999,Other consumables,3.29,0.00,3.29
Children and Young Peoples Services,Head of Childrens Social Care,085551,Short Break Services-Park Hse Sher,Supplies and Services,324117,Provisions E324,06-Nov-2020,000007374692318,ALDI 12 774,5411,Catering costs - provisions,48.09,0.00,48.09
Children and Young Peoples Services,Head of Childrens Social Care,085625,Families First Spennymoor,Supplies and Services,338045,Services,06-Nov-2020,000007374692358,WWW.HMCOURT-SERVIC,9222,Legal expenses 338045,215.00,0.00,215.00
Neighbourhoods and Climate Change,Environmental Services,010367,C&G - South Grounds Maintenance,Supplies and Services,304221,Equipment and Materials,06-Nov-2020,000007374692470,WWWTUDORENVIRONMENTALC,5261,Direct materials,183.30,0.00,183.30
Children and Young Peoples Services,Head of Education and Skills,071802,Louisa Cent Nursery,Supplies and Services,324117,Provisions E324,06-Nov-2020,000007374692690,ASDA GROCERIES ONLINE,5411,Catering costs - provisions,117.58,0.00,117.58
"Regeneration, Economy and Growth",Corporate Property and Land,010814,Bldg Serv - R&M General,Supplies and Services,304259,Equipment and Materials,06-Nov-2020,000007374692710,AMZNMKTPLACE AMAZON.CO,5999,Equipment-purchase and rental,499.20,83.20,416.00
"Regeneration, Economy and Growth",Corporate Property and Land,010814,Bldg Serv - R&M General,Supplies and Services,304259,Equipment and Materials,06-Nov-2020,000007374692710 - 1,AMZNMKTPLACE AMAZON.CO,5999,Equipment-purchase and rental,0.40,,0.40
"Regeneration, Economy and Growth",Corporate Property and Land,015015,Spectrum 8 Seaham,Supplies and Services,304259,Equipment and Materials,06-Nov-2020,000007374692718,BIN SHOP,5085,Equipment-purchase and rental,198.00,33.00,165.00
"Regeneration, Economy and Growth",Corporate Property and Land,011007,Civic Centre Crook,Supplies and Services,304259,Equipment and Materials,06-Nov-2020,000007374692722,BIN SHOP,5085,Equipment-purchase and rental,66.00,11.00,55.00
Children and Young Peoples Services,Head of Childrens Social Care,085333,Coxhoe Satelite Home,Supplies and Services,324117,Provisions E324,06-Nov-2020,000007374692736,ASDA SUPERSTORE 4987,5411,Catering costs - provisions,134.41,0.00,134.41
Children and Young Peoples Services,Head of Childrens Social Care,085352,Tow Law CU,Supplies and Services,324117,Provisions E324,06-Nov-2020,000007374692854,CO-OP GROUP 010989,5411,Catering costs - provisions,15.90,0.00,15.90
Adult and Health Services,Head of Adults,055643,Hawthorn House LD Respite Unit,Supplies and Services,324117,Provisions E324,06-Nov-2020,000007374692938,JR HOLLAND FOODSERVICE,5499,Catering costs - provisions,21.25,0.00,21.25
Adult and Health Services,Head of Adults,055643,Hawthorn House LD Respite Unit,Supplies and Services,324117,Provisions E324,06-Nov-2020,000007374692948,JR HOLLAND FOODSERVICE,5499,Catering costs - provisions,15.33,0.00,15.33
Children and Young Peoples Services,Head of Education and Skills,070264,EDC Premises,Employees,040149,Recruitment Instruction and Training,06-Nov-2020,000007374693026,COL OF TEACHING,8398,Training-all costs,45.00,0.00,45.00
Children and Young Peoples Services,Head of Education and Skills,070264,EDC Premises,Supplies and Services,304221,Equipment and Materials,06-Nov-2020,000007374693038,BREWERS,5211,Direct materials,51.74,0.00,51.74
Resources BK0010,Digital and Customer Services,065335,School Services - Implementations,Supplies and Services,304639,Equipment and Materials,06-Nov-2020,000007374693066,AMZNMKTPLACE AMAZON.CO,5999,Technicians-supplies,25.00,0.00,25.00
Resources BK0010,Digital and Customer Services,065335,School Services - Implementations,Supplies and Services,304639,Equipment and Materials,06-Nov-2020,000007374693074,SCAN COMPUTERS INT LTD,5732,Technicians-supplies,85.48,0.00,85.48
Children and Young Peoples Services,Head of Childrens Social Care,085334,West Rainton Satelite Home,Supplies and Services,324117,Provisions E324,06-Nov-2020,000007374693118,TESCO STORES 2371,5411,Catering costs - provisions,206.01,0.00,206.01
Children and Young Peoples Services,Head of Childrens Social Care,085334,West Rainton Satelite Home,Supplies and Services,324117,Provisions E324,06-Nov-2020,000007374693130,TESCO STORES 2371,5411,Catering costs - provisions,34.20,0.00,34.20
Children and Young Peoples Services,Head of Early Help Inclusion & Vulnerable Children.,085962,Aycliffe Secure - Durham,Supplies and Services,304649,Equipment and Materials,06-Nov-2020,000007374693200,SP ORZLY.COM,5945,Toys,39.98,0.00,39.98
Children and Young Peoples Services,Head of Early Help Inclusion & Vulnerable Children.,085957,Secure Management,Supplies and Services,304245,Equipment and Materials,06-Nov-2020,000007374693208,SCREWFIX DIRECT,5211,Materials,42.63,0.00,42.63
Children and Young Peoples Services,COVID19 - Children and Young Peoples Services,091002,COVID19 - Children and Young Peoples Services,Supplies and Services,304403,Equipment and Materials,06-Nov-2020,000007374693262,AMZNMktplace,5999,Other consumables,107.96,0.00,107.96
Children and Young Peoples Services,Head of Education and Skills,073911,Pupil Premium,Supplies and Services,384999,Miscellaneous Expenses,06-Nov-2020,000007374693272,Amazon.co.uk M73RR0J84,5969,Other expenses,61.33,0.00,61.33
Resources BK0010,Business Support,052986,CYPS - Locality and Operational Support,Supplies and Services,304259,Equipment and Materials,06-Nov-2020,000007374693318,HARTLEPOOL BC,9399,Equipment-purchase and rental,35.00,0.00,35.00
Children and Young Peoples Services,Head of Childrens Social Care,085332,Middlestone Moor CU,Supplies and Services,324117,Provisions E324,06-Nov-2020,000007374693614,WM MORRISONS STORE,5411,Catering costs - provisions,41.99,0.00,41.99
Children and Young Peoples Services,Head of Childrens Social Care,085332,Middlestone Moor CU,Supplies and Services,340001,Postages E340,06-Nov-2020,000007374693622,POST OFFICE COUNTER,9402,Postages,20.00,0.00,20.00
"Regeneration, Economy and Growth",Development and Housing,031500,Housing Solutions - Core Team,Supplies and Services,304999,Equipment and Materials,06-Nov-2020,000007374693666,DUNCAN BELTON TA K,6513,Misc equipment tools and materials,500.00,0.00,500.00
"Regeneration, Economy and Growth",Development and Housing,031500,Housing Solutions - Core Team,Supplies and Services,352001,Conference Expenses,06-Nov-2020,000007374693862,THE MANOR HOUSE,7011,Conferencesseminars fees etc,215.00,0.00,215.00
"Regeneration, Economy and Growth",Development and Housing,031500,Housing Solutions - Core Team,Supplies and Services,352001,Conference Expenses,06-Nov-2020,000007374693864,THE MANOR HOUSE,7011,Conferencesseminars fees etc,215.00,0.00,215.00
"Regeneration, Economy and Growth",Corporate Property and Land,021235,Catering - Wharton Park,Supplies and Services,324117,Provisions E324,06-Nov-2020,000007374693904,JR HOLLAND FOODSERVICE,5499,Catering costs - provisions,12.06,0.00,12.06
Children and Young Peoples Services,Head of Early Help Inclusion & Vulnerable Children.,085810,CDYJS - Interventions Team,Supplies and Services,384999,Miscellaneous Expenses,06-Nov-2020,000007374694124,Amazon.co.uk M75CQ2JC4,5969,Other expenses,1.99,0.33,1.66
Neighbourhoods and Climate Change,Environmental Services,011060,C&G - Hardwick Park Catering,Supplies and Services,324117,Provisions E324,06-Nov-2020,000007381620162,BATLEYS PERTH,5300,Catering costs - provisions,149.10,24.85,124.25
Neighbourhoods and Climate Change,Environmental Services,011060,C&G - Hardwick Park Catering,Supplies and Services,324117,Provisions E324,06-Nov-2020,000007381620162 - 1,BATLEYS PERTH,5300,Catering costs - provisions,106.34,,106.34
Neighbourhoods and Climate Change,Environmental Services,011060,C&G - Hardwick Park Catering,Supplies and Services,324117,Provisions E324,06-Nov-2020,000007381620200,BATLEYS PERTH,5300,Catering costs - provisions,-4.05,0.00,-4.05
Adult and Health Services,Head of Adults,055643,Hawthorn House LD Respite Unit,Supplies and Services,324117,Provisions E324,06-Nov-2020,000007381620782,BATLEYS PERTH,5300,Catering costs - provisions,47.10,7.85,39.25
Adult and Health Services,Head of Adults,055643,Hawthorn House LD Respite Unit,Supplies and Services,324117,Provisions E324,06-Nov-2020,000007381620782 - 1,BATLEYS PERTH,5300,Catering costs - provisions,145.86,,145.86
Adult and Health Services,Head of Adults,055643,Hawthorn House LD Respite Unit,Supplies and Services,324117,Provisions E324,06-Nov-2020,000007381620792,BATLEYS PERTH,5300,Catering costs - provisions,3.30,0.55,2.75
Resources BK0010,Business Support,065461,Business Support 065461,Supplies and Services,342033,Computers and Communications,07-Nov-2020,000007374690270,WPMU DEV INCSUBFEE.COM,7372,Computer hardware,14.53,0.00,14.53
Adult and Health Services,Head of Adults,055302,Durham Pathways,Supplies and Services,384999,Miscellaneous Expenses,07-Nov-2020,000007374690364,Amazon.co.uk M75UY2T64,5969,Other expenses,15.99,0.00,15.99
Children and Young Peoples Services,Head of Childrens Social Care,085352,Tow Law CU,Supplies and Services,348037,Subsistence E348,07-Nov-2020,000007374691410,Just Eat,5814,Subsistence,26.60,0.00,26.60
Children and Young Peoples Services,Head of Childrens Social Care,085342,16 Hickstead Rise (previously 9 Cedar Ave),Supplies and Services,348037,Subsistence E348,07-Nov-2020,000007374691474,ShakeNCake,5812,Subsistence,9.50,0.00,9.50
Children and Young Peoples Services,Head of Education and Skills,071732,Dean Bank Childcare,Supplies and Services,304403,Equipment and Materials,07-Nov-2020,000007374691566,AMZNMKTPLACE AMAZON.CO,5999,Other consumables,50.98,0.00,50.98
Children and Young Peoples Services,Head of Education and Skills,071732,Dean Bank Childcare,Supplies and Services,304403,Equipment and Materials,07-Nov-2020,000007374691568,AMZNMKTPLACE AMAZON.CO,5999,Other consumables,121.00,0.00,121.00
Children and Young Peoples Services,Head of Childrens Social Care,085334,West Rainton Satelite Home,Supplies and Services,384999,Miscellaneous Expenses,07-Nov-2020,000007374691696,Amazon.co.uk M78135TD4,5969,Other expenses,32.30,0.00,32.30
Children and Young Peoples Services,Head of Early Help Inclusion & Vulnerable Children.,085956,Lumley,Supplies and Services,324117,Provisions E324,07-Nov-2020,000007374691948,TESCO STORES 6329,5411,Catering costs - provisions,103.80,0.00,103.80
Adult and Health Services,Head of Adults,055643,Hawthorn House LD Respite Unit,Supplies and Services,324117,Provisions E324,07-Nov-2020,000007374692570,SAINSBURYS 0776,5411,Catering costs - provisions,10.10,0.00,10.10
Adult and Health Services,Head of Adults,055643,Hawthorn House LD Respite Unit,Supplies and Services,324117,Provisions E324,07-Nov-2020,000007374692678,SAINSBURYS 0776,5411,Catering costs - provisions,92.00,0.00,92.00
Children and Young Peoples Services,Head of Early Help Inclusion & Vulnerable Children.,085962,Aycliffe Secure - Durham,Supplies and Services,304649,Equipment and Materials,07-Nov-2020,000007374693234,Amazon.co.uk M75NX7TC4,5969,Toys,279.99,46.67,233.32
Resources BK0010,Business Support,052986,CYPS - Locality and Operational Support,Supplies and Services,384999,Miscellaneous Expenses,07-Nov-2020,000007374693330,Amazon.co.uk M77QP8J44,5969,Other expenses,30.98,0.00,30.98
Children and Young Peoples Services,Head of Childrens Social Care,085331,New Lea Childrens Home,Transport,215995,Running Costs of Vehicles,07-Nov-2020,000007374693804,BP THINFORD NORTH,5541,Vehicle running expenses,40.02,0.00,40.02
Children and Young Peoples Services,Head of Childrens Social Care,085331,New Lea Childrens Home,Supplies and Services,324117,Provisions E324,07-Nov-2020,000007374693812,TESCO STORES 2371,5411,Catering costs - provisions,29.16,0.00,29.16
"Regeneration, Economy and Growth",Business Durham CL0850,030689,Inward Investment and Aftercare,Supplies and Services,304259,Equipment and Materials,08-Nov-2020,000007374690160,CANVA 02868-6226010,7221,Equipment-purchase and rental,107.88,0.00,107.88
Children and Young Peoples Services,Head of Education and Skills,071801,Selby Cottage Childcare Centre,Supplies and Services,304999,Equipment and Materials,08-Nov-2020,000007374690232,Amazon Prime M79IZ9AH4,5968,Misc equipment tools and materials,7.99,1.33,6.66
Children and Young Peoples Services,Head of Childrens Social Care,085334,West Rainton Satelite Home,Supplies and Services,328041,Clothing uniforms and laundry E328,08-Nov-2020,000007374691692,REDBUBBLE.COM,5691,Clothing uniforms and laundry,17.78,0.00,17.78
Children and Young Peoples Services,Head of Childrens Social Care,085551,Short Break Services-Park Hse Sher,Supplies and Services,324117,Provisions E324,08-Nov-2020,000007374692332,ALDI 15 774,5411,Catering costs - provisions,17.95,0.00,17.95
Children and Young Peoples Services,Head of Childrens Social Care,085352,Tow Law CU,Supplies and Services,324117,Provisions E324,08-Nov-2020,000007374692346,WILKO.COM,5399,Catering costs - provisions,40.00,0.00,40.00
Children and Young Peoples Services,Head of Education and Skills,071802,Louisa Cent Nursery,Supplies and Services,324117,Provisions E324,08-Nov-2020,000007374692700,ALDI STORES,5411,Catering costs - provisions,17.69,0.00,17.69
Children and Young Peoples Services,Head of Childrens Social Care,085333,Coxhoe Satelite Home,Supplies and Services,324117,Provisions E324,08-Nov-2020,000007374692744,SAINSBURYS 2199,5411,Catering costs - provisions,48.85,0.00,48.85
Children and Young Peoples Services,Head of Childrens Social Care,085333,Coxhoe Satelite Home,Supplies and Services,324117,Provisions E324,08-Nov-2020,000007374692752,SAINSBURYS 2199,5411,Catering costs - provisions,25.64,0.00,25.64
Children and Young Peoples Services,Head of Early Help Inclusion & Vulnerable Children.,085962,Aycliffe Secure - Durham,Supplies and Services,304649,Equipment and Materials,08-Nov-2020,000007374693218,Amazon.co.uk M75JE3AT4,5969,Toys,17.99,3.00,14.99
Children and Young Peoples Services,Head of Early Help Inclusion & Vulnerable Children.,085957,Secure Management,Supplies and Services,384999,Miscellaneous Expenses,08-Nov-2020,000007374693224,Amazon.co.uk M75J28AU4,5969,Other expenses,11.00,1.83,9.17
Children and Young Peoples Services,Head of Early Help Inclusion & Vulnerable Children.,085962,Aycliffe Secure - Durham,Supplies and Services,304649,Equipment and Materials,08-Nov-2020,000007374693238,Amazon.co.uk M79J07AR4,5969,Toys,33.99,5.67,28.32
Children and Young Peoples Services,Head of Early Help Inclusion & Vulnerable Children.,085957,Secure Management,Supplies and Services,384999,Miscellaneous Expenses,08-Nov-2020,000007374693244,AMZNMktplace,5999,Other expenses,5.89,0.98,4.91
Children and Young Peoples Services,Head of Early Help Inclusion & Vulnerable Children.,085957,Secure Management,Supplies and Services,384999,Miscellaneous Expenses,08-Nov-2020,000007374693250,AMZNMktplace,5999,Other expenses,44.99,7.50,37.49
Children and Young Peoples Services,Head of Childrens Social Care,085333,Coxhoe Satelite Home,Supplies and Services,328041,Clothing uniforms and laundry E328,08-Nov-2020,000007374693344,ARGOS LTD,5310,Clothing uniforms and laundry,19.99,0.00,19.99
Children and Young Peoples Services,Head of Education and Skills,070169,Durham SSP,Supplies and Services,384199,Miscellaneous Expenses,08-Nov-2020,000007374693560,B&Q DIRECT,5200,Other hired and contracted services,15.08,0.00,15.08
Children and Young Peoples Services,Head of Childrens Social Care,085332,Middlestone Moor CU,Supplies and Services,328041,Clothing uniforms and laundry E328,08-Nov-2020,000007374693626,BOOHOO.COM,5691,Clothing uniforms and laundry,44.79,0.00,44.79
Children and Young Peoples Services,Head of Early Help Inclusion & Vulnerable Children.,088107,Ferryhill & Newton Aycliffe 0-19 Community Family Hub,Supplies and Services,304403,Equipment and Materials,08-Nov-2020,000007374693640,AMZNMktplace,5999,Other consumables,10.44,1.74,8.70
Children and Young Peoples Services,Head of Early Help Inclusion & Vulnerable Children.,088107,Ferryhill & Newton Aycliffe 0-19 Community Family Hub,Supplies and Services,304403,Equipment and Materials,08-Nov-2020,000007374693640 - 1,AMZNMktplace,5999,Other consumables,0.03,,0.03
Children and Young Peoples Services,Head of Early Help Inclusion & Vulnerable Children.,088107,Ferryhill & Newton Aycliffe 0-19 Community Family Hub,Supplies and Services,304403,Equipment and Materials,08-Nov-2020,000007374693652,AMZNMktplace,5999,Other consumables,20.88,3.48,17.40
Children and Young Peoples Services,Head of Early Help Inclusion & Vulnerable Children.,088107,Ferryhill & Newton Aycliffe 0-19 Community Family Hub,Supplies and Services,304403,Equipment and Materials,08-Nov-2020,000007374693652 - 1,AMZNMktplace,5999,Other consumables,0.06,,0.06
Children and Young Peoples Services,Head of Early Help Inclusion & Vulnerable Children.,085957,Secure Management,Supplies and Services,304649,Equipment and Materials,08-Nov-2020,000007379064190,AMZNMKTPLACE AMAZON.CO,5999,Toys,8.99,0.00,8.99
Children and Young Peoples Services,Head of Early Help Inclusion & Vulnerable Children.,085957,Secure Management,Supplies and Services,304649,Equipment and Materials,08-Nov-2020,000007379064206,AMZNMKTPLACE AMAZON.CO,5999,Toys,8.99,0.00,8.99
Resources BK0010,Business Support,065461,Business Support 065461,Supplies and Services,342033,Computers and Communications,09-Nov-2020,000007374690276,WPMU DEV INCSUBFEE.COM,7372,Computer hardware,0.40,0.00,0.40
Children and Young Peoples Services,Head of Childrens Social Care,085341,High Etherley Satelite Home,Supplies and Services,324117,Provisions E324,09-Nov-2020,000007379060866,TESCO STORES 6329,5411,Catering costs - provisions,148.24,0.00,148.24
"Regeneration, Economy and Growth",Business Durham CL0850,030689,Inward Investment and Aftercare,Supplies and Services,304999,Equipment and Materials,09-Nov-2020,000007379060880,MAILCHIMP MONTHLY,5968,Misc equipment tools and materials,80.73,0.00,80.73
"Regeneration, Economy and Growth",Business Durham CL0850,030689,Inward Investment and Aftercare,Supplies and Services,342222,Computers and Communications,09-Nov-2020,000007379060892,FASTHOSTS INTERNET,4816,Comp hardware purch-network servers,13.19,0.00,13.19
"Regeneration, Economy and Growth",Development and Housing,030773,CLLD North,Supplies and Services,304259,Equipment and Materials,09-Nov-2020,000007379061052,DVLA DRIVER ONLINE,9399,Equipment-purchase and rental,34.00,0.00,34.00
Children and Young Peoples Services,Head of Childrens Social Care,085332,Middlestone Moor CU,Supplies and Services,324117,Provisions E324,09-Nov-2020,000007379061170,LIDL GB SPENNYMOOR,5411,Catering costs - provisions,3.98,0.00,3.98
Neighbourhoods and Climate Change,Environmental Services,010367,C&G - South Grounds Maintenance,Supplies and Services,304221,Equipment and Materials,09-Nov-2020,000007379061460,RICHARDSONS GARDEN CEN,5261,Direct materials,16.99,2.83,14.16
"Regeneration, Economy and Growth",Development and Housing,030776,LINKCD Flexible Fund,Supplies and Services,324117,Provisions E324,09-Nov-2020,000007379061518,TESCO STORES 5395,5411,Catering costs - provisions,15.00,0.00,15.00
Children and Young Peoples Services,Head of Early Help Inclusion & Vulnerable Children.,088104,BA/BC/Crook 0-19 Targeted Family Support,Supplies and Services,332047,Printing Stationery and Gen Off Exps,09-Nov-2020,000007379061570,Amazon.co.uk M708870V4,5969,Stationery,14.36,2.40,11.96
Children and Young Peoples Services,Head of Early Help Inclusion & Vulnerable Children.,088104,BA/BC/Crook 0-19 Targeted Family Support,Supplies and Services,304259,Equipment and Materials,09-Nov-2020,000007379061604,AMZNMktplace,5999,Equipment-purchase and rental,7.29,1.22,6.07
Children and Young Peoples Services,Head of Early Help Inclusion & Vulnerable Children.,085952,Secure Education,Supplies and Services,324117,Provisions E324,09-Nov-2020,000007379061796,TESCO STORES 6329,5411,Catering costs - provisions,93.83,0.00,93.83
Children and Young Peoples Services,Head of Early Help Inclusion & Vulnerable Children.,073998,TTF-Co-ordinator Grant,Transfer Payments,525033,Other,09-Nov-2020,000007379061930,ASDA GEORGE COM LEEDS,5411,Grants to individuals,77.00,12.83,64.17
"Regeneration, Economy and Growth",Development and Housing,031576,B& B - Temp Accom,Supplies and Services,364320,Grants to Voluntary Organisations,09-Nov-2020,000007379061992,BUDGET H EXPRESS HOTEL,7011,Accommodation assistance,142.86,23.81,119.05
"Regeneration, Economy and Growth",Development and Housing,031576,B& B - Temp Accom,Supplies and Services,364320,Grants to Voluntary Organisations,09-Nov-2020,000007379061992 - 1,BUDGET H EXPRESS HOTEL,7011,Accommodation assistance,357.14,,357.14
"Regeneration, Economy and Growth",Development and Housing,031576,B& B - Temp Accom,Supplies and Services,364320,Grants to Voluntary Organisations,09-Nov-2020,000007379062004,BUDGET H EXPRESS HOTEL,7011,Accommodation assistance,123.00,0.00,123.00
"Regeneration, Economy and Growth",Development and Housing,031576,B& B - Temp Accom,Supplies and Services,364320,Grants to Voluntary Organisations,09-Nov-2020,000007379062014,BUDGET H EXPRESS HOTEL,7011,Accommodation assistance,50.88,8.48,42.40
"Regeneration, Economy and Growth",Development and Housing,031576,B& B - Temp Accom,Supplies and Services,364320,Grants to Voluntary Organisations,09-Nov-2020,000007379062014 - 1,BUDGET H EXPRESS HOTEL,7011,Accommodation assistance,127.12,,127.12
Children and Young Peoples Services,Head of Childrens Social Care,085352,Tow Law CU,Supplies and Services,324117,Provisions E324,09-Nov-2020,000007379062056,SAINSBURYS LOC (4320),5411,Catering costs - provisions,4.60,0.00,4.60
Neighbourhoods and Climate Change,Environmental Services,010561,Fleet - Morrison Busty Fleet,Transport,215013,Running Costs of Vehicles,09-Nov-2020,000007379062086,DVLA VEHICLE TAX,9311,Vehicle Excise Duty (VED),302.50,0.00,302.50
Neighbourhoods and Climate Change,Environmental Services,010561,Fleet - Morrison Busty Fleet,Transport,215013,Running Costs of Vehicles,09-Nov-2020,000007379062104,DVLA VEHICLE TAX,9311,Vehicle Excise Duty (VED),107.50,0.00,107.50
Neighbourhoods and Climate Change,Environmental Services,010561,Fleet - Morrison Busty Fleet,Transport,215013,Running Costs of Vehicles,09-Nov-2020,000007379062126,DVLA VEHICLE TAX,9311,Vehicle Excise Duty (VED),302.50,0.00,302.50
Neighbourhoods and Climate Change,Environmental Services,010900,Fleet - Meadowfield Fleet,Transport,215013,Running Costs of Vehicles,09-Nov-2020,000007379062144,DVLA VEHICLE TAX,9311,Vehicle Excise Duty (VED),272.50,0.00,272.50
Neighbourhoods and Climate Change,Environmental Services,010561,Fleet - Morrison Busty Fleet,Transport,215013,Running Costs of Vehicles,09-Nov-2020,000007379062152,DVLA VEHICLE TAX,9311,Vehicle Excise Duty (VED),107.50,0.00,107.50
Resources BK0010,Digital and Customer Services,070204,School Services - Systems,Supplies and Services,372009,Subscriptions E372,09-Nov-2020,000007379062228,NOMINET UK,7392,Subscriptions 372009,374.40,62.40,312.00
Children and Young Peoples Services,Head of Early Help Inclusion & Vulnerable Children.,088109,Spennymoor & Shildon 0-19 Community Family Hub,Supplies and Services,384302,Miscellaneous Expenses,09-Nov-2020,000007379062252,AVON COSMETICS LTD,5977,Activity expenses,54.50,0.00,54.50
Children and Young Peoples Services,Head of Education and Skills,071732,Dean Bank Childcare,Supplies and Services,324117,Provisions E324,09-Nov-2020,000007379062312,ASDA GROCERIES ONLINE,5411,Catering costs - provisions,87.60,0.00,87.60
Children and Young Peoples Services,Head of Education and Skills,071732,Dean Bank Childcare,Supplies and Services,324117,Provisions E324,09-Nov-2020,000007379062332,ASDA GROCERIES ONLINE,5411,Catering costs - provisions,51.83,0.00,51.83
Children and Young Peoples Services,Head of Education and Skills,071732,Dean Bank Childcare,Supplies and Services,324117,Provisions E324,09-Nov-2020,000007379062358,CO-OP GROUP 010503,5411,Catering costs - provisions,20.32,0.00,20.32
Children and Young Peoples Services,Head of Childrens Social Care,085334,West Rainton Satelite Home,Supplies and Services,304999,Equipment and Materials,09-Nov-2020,000007379062420,T.L.GREY CHEMIST,5912,Misc equipment tools and materials,4.55,0.00,4.55
Children and Young Peoples Services,Head of Childrens Social Care,085334,West Rainton Satelite Home,Supplies and Services,324117,Provisions E324,09-Nov-2020,000007379062782,ASDA SUPERSTORE 4987,5411,Catering costs - provisions,21.36,0.00,21.36
Neighbourhoods and Climate Change,Environmental Services,011060,C&G - Hardwick Park Catering,Supplies and Services,324117,Provisions E324,09-Nov-2020,000007379062958,JR HOLLAND FOODSERVICE,5499,Catering costs - provisions,34.38,0.00,34.38
Resources BK0010,People & Talent Management,010984,Training and Development,Employees,040149,Recruitment Instruction and Training,09-Nov-2020,000007379063000,CHARTERED INSTITUTE OF,8398,Training-all costs,495.00,0.00,495.00
Children and Young Peoples Services,Head of Early Help Inclusion & Vulnerable Children.,088106,Ferryhill & N.Aycliffe 0-19 Targeted Family Support,Supplies and Services,304259,Equipment and Materials,09-Nov-2020,000007379063300,Amazon.co.uk M74LE31F4,5969,Equipment-purchase and rental,43.56,7.26,36.30
Children and Young Peoples Services,Head of Early Help Inclusion & Vulnerable Children.,088106,Ferryhill & N.Aycliffe 0-19 Targeted Family Support,Supplies and Services,304259,Equipment and Materials,09-Nov-2020,000007379063300 - 1,Amazon.co.uk M74LE31F4,5969,Equipment-purchase and rental,0.06,,0.06
Children and Young Peoples Services,Head of Early Help Inclusion & Vulnerable Children.,088106,Ferryhill & N.Aycliffe 0-19 Targeted Family Support,Supplies and Services,304259,Equipment and Materials,09-Nov-2020,000007379063316,ARGOS LTD,5310,Equipment-purchase and rental,79.92,0.00,79.92
Children and Young Peoples Services,Head of Education and Skills,071802,Louisa Cent Nursery,Supplies and Services,304999,Equipment and Materials,09-Nov-2020,000007379063592,HOME BARGAINS,5251,Misc equipment tools and materials,35.72,0.00,35.72
Children and Young Peoples Services,Head of Childrens Social Care,085352,Tow Law CU,Supplies and Services,324117,Provisions E324,09-Nov-2020,000007379063760,ASDA STORES,5411,Catering costs - provisions,157.91,0.00,157.91
Resources BK0010,Business Support,052986,CYPS - Locality and Operational Support,Transport,235057,Public Transport,09-Nov-2020,000007379063888,GO NORTH EAST LIMITED,4131,Staff travelling,20.00,0.00,20.00
Adult and Health Services,Head of Adults,055643,Hawthorn House LD Respite Unit,Supplies and Services,324117,Provisions E324,09-Nov-2020,000007379063908,JR HOLLAND FOODSERVICE,5499,Catering costs - provisions,15.98,0.00,15.98
Children and Young Peoples Services,Head of Childrens Social Care,085334,West Rainton Satelite Home,Supplies and Services,304999,Equipment and Materials,09-Nov-2020,000007379064084,HOME BARGAINS,5251,Misc equipment tools and materials,18.27,0.00,18.27
Children and Young Peoples Services,Head of Childrens Social Care,085334,West Rainton Satelite Home,Supplies and Services,304999,Equipment and Materials,09-Nov-2020,000007379064108,HOME BARGAINS,5251,Misc equipment tools and materials,5.18,0.00,5.18
Children and Young Peoples Services,Head of Childrens Social Care,085334,West Rainton Satelite Home,Supplies and Services,304999,Equipment and Materials,09-Nov-2020,000007379064122,HOME BARGAINS,5251,Misc equipment tools and materials,1.99,0.00,1.99
Children and Young Peoples Services,Head of Early Help Inclusion & Vulnerable Children.,085962,Aycliffe Secure - Durham,Supplies and Services,308011,Furniture,09-Nov-2020,000007379064216,AMZNMKTPLACE AMAZON.CO,5999,Furniture repair and replacement,22.95,3.83,19.12
Children and Young Peoples Services,Head of Early Help Inclusion & Vulnerable Children.,085962,Aycliffe Secure - Durham,Supplies and Services,312009,Newspapers books and periodicals E312,09-Nov-2020,000007379064226,Amazon.co.uk M77TS10K4,5969,Newspapers books and periodicals,3.50,0.00,3.50
Children and Young Peoples Services,Head of Early Help Inclusion & Vulnerable Children.,085962,Aycliffe Secure - Durham,Supplies and Services,304690,Equipment and Materials,09-Nov-2020,000007379064242,AMZNMktplace,5999,Video and DVD,11.28,0.00,11.28
Children and Young Peoples Services,Head of Early Help Inclusion & Vulnerable Children.,085957,Secure Management,Supplies and Services,304245,Equipment and Materials,09-Nov-2020,000007379064256,SCREWFIX DIRECT,5211,Materials,14.99,0.00,14.99
Children and Young Peoples Services,Head of Early Help Inclusion & Vulnerable Children.,088110,Easington & Peterlee 0-19 Targeted Family Support,Supplies and Services,324117,Provisions E324,09-Nov-2020,000007379064358,ASDA GEORGE COM LEEDS,5411,Catering costs - provisions,-10.50,-0.50,-10.00
"Regeneration, Economy and Growth",Development and Housing,031576,B& B - Temp Accom,Supplies and Services,364320,Grants to Voluntary Organisations,09-Nov-2020,000007379064522,MANOR HOUSE FERRYHILL,5812,Accommodation assistance,300.00,0.00,300.00
"Regeneration, Economy and Growth",Development and Housing,031576,B& B - Temp Accom,Supplies and Services,364320,Grants to Voluntary Organisations,09-Nov-2020,000007379064538,H52STANLEY,7011,Accommodation assistance,234.00,0.00,234.00
"Regeneration, Economy and Growth",Development and Housing,031576,B& B - Temp Accom,Supplies and Services,364320,Grants to Voluntary Organisations,09-Nov-2020,000007379064550,BUDGET H EXPRESS HOTEL,7011,Accommodation assistance,178.00,0.00,178.00
"Regeneration, Economy and Growth",Development and Housing,031576,B& B - Temp Accom,Supplies and Services,364320,Grants to Voluntary Organisations,09-Nov-2020,000007379064562,HI NEWCASTLE WASHI,7011,Accommodation assistance,244.00,0.00,244.00
Children and Young Peoples Services,Head of Education and Skills,070169,Durham SSP,Supplies and Services,384199,Miscellaneous Expenses,09-Nov-2020,000007379064688,Amazon.co.uk M75B521D4,5969,Other hired and contracted services,18.00,0.00,18.00
Resources BK0010,Corporate Finance & Commercial Services,069800,Corporate Procurement 069800,Supplies and Services,312009,Newspapers books and periodicals E312,09-Nov-2020,000007379064734,PERLEGO SUBSCRIPTION,5192,Newspapers books and periodicals,96.00,0.00,96.00
Children and Young Peoples Services,Head of Childrens Social Care,085332,Middlestone Moor CU,Supplies and Services,324117,Provisions E324,09-Nov-2020,000007379064774,TESCO STORES 2278,5411,Catering costs - provisions,8.00,0.00,8.00
"Regeneration, Economy and Growth",Development and Housing,031576,B& B - Temp Accom,Supplies and Services,364320,Grants to Voluntary Organisations,09-Nov-2020,000007379064802,H52STANLEY,7011,Accommodation assistance,78.00,0.00,78.00
"Regeneration, Economy and Growth",Development and Housing,031581,Prevention Fund,Supplies and Services,384999,Miscellaneous Expenses,09-Nov-2020,000007379064818,GEN REGISTER OFFICE,9399,Other expenses,14.00,0.00,14.00
Chief Executive's Office,Communications Management,060270,Communications and Marketing,Supplies and Services,336005,Advertising E336,09-Nov-2020,000007379064922,FACEBK Y5T47XN4B2,7311,Advertising other than for staff,500.00,0.00,500.00
"Regeneration, Economy and Growth",Development and Housing,031500,Housing Solutions - Core Team,Transport,235057,Public Transport,09-Nov-2020,000007379064980,BLUE LINE TAXIS,4121,Staff travelling,19.00,0.00,19.00
"Regeneration, Economy and Growth",Development and Housing,031500,Housing Solutions - Core Team,Supplies and Services,352001,Conference Expenses,09-Nov-2020,000007379064990,H52STANLEY,7011,Conferencesseminars fees etc,204.00,0.00,204.00
"Regeneration, Economy and Growth",Development and Housing,031500,Housing Solutions - Core Team,Supplies and Services,352001,Conference Expenses,09-Nov-2020,000007379065002,H52STANLEY,7011,Conferencesseminars fees etc,234.00,0.00,234.00
Neighbourhoods and Climate Change,Environmental Services,031217,North Pennines - Cold Blooded & Spineless,Supplies and Services,348037,Subsistence E348,09-Nov-2020,000007379065048,COSTA COFFEE 43036670,5814,Subsistence,4.84,0.00,4.84
Adult and Health Services,Head of Adults,055309,Peterlee Pathways,Supplies and Services,304403,Equipment and Materials,09-Nov-2020,000007379065056,AMZNMktplace,5999,Other consumables,33.99,5.67,28.32
Children and Young Peoples Services,Head of Early Help Inclusion & Vulnerable Children.,085810,CDYJS - Interventions Team,Supplies and Services,348037,Subsistence E348,09-Nov-2020,000007379065322,McDonalds UK,5814,Subsistence,19.19,0.00,19.19
Resources BK0010,Business Support,065461,Business Support 065461,Supplies and Services,304403,Equipment and Materials,09-Nov-2020,000007381618728,AMZNMKTPLACE AMAZON.CO,5999,Other consumables,29.95,4.99,24.96
Children and Young Peoples Services,Head of Childrens Social Care,085341,High Etherley Satelite Home,Supplies and Services,304259,Equipment and Materials,09-Nov-2020,000007381620522,SPORTSDIRECT.COM,5941,Equipment-purchase and rental,52.99,0.00,52.99
"Regeneration, Economy and Growth",Business Durham CL0850,030689,Inward Investment and Aftercare,Supplies and Services,304999,Equipment and Materials,10-Nov-2020,000007379060908,MAILCHIMP MONTHLY,5968,Misc equipment tools and materials,2.22,0.00,2.22
Resources BK0010,Business Support,065461,Business Support 065461,Supplies and Services,304403,Equipment and Materials,10-Nov-2020,000007379060988,AMZNMktplace,5999,Other consumables,27.96,4.68,23.28
Resources BK0010,COVID19 - Resources,091007,COVID19 - Resources,Supplies and Services,304999,Equipment and Materials,10-Nov-2020,000007379064932,AMZNMktplace,5999,Misc equipment tools and materials,13.98,2.33,11.65
"Regeneration, Economy and Growth",Business Durham CL0850,030689,Inward Investment and Aftercare,Third Party Payments,430100,Rendered by Private Contractors,10-Nov-2020,000007381618684,BLS monday.com,7399,Payments to sub-contractors,148.80,0.00,148.80
Children and Young Peoples Services,Head of Education and Skills,071801,Selby Cottage Childcare Centre,Supplies and Services,324117,Provisions E324,10-Nov-2020,000007381618702,ASDA GROCERIES ONLINE,5411,Catering costs - provisions,45.27,0.00,45.27
Children and Young Peoples Services,Head of Education and Skills,054640,Durham Learning Resources 054640,Supplies and Services,384999,Miscellaneous Expenses,10-Nov-2020,000007381618716,BAKER ROSS LTD,5970,Other expenses,23.45,0.00,23.45
Resources BK0010,Business Support,065461,Business Support 065461,Supplies and Services,304403,Equipment and Materials,10-Nov-2020,000007381618740,AMZNMktplace,5999,Other consumables,11.95,1.99,9.96
Children and Young Peoples Services,Head of Education and Skills,075021,Youth Employment Initiative,Supplies and Services,332048,Printing Stationery and Gen Off Exps,10-Nov-2020,000007381618774,Amazon.co.uk M72KB0GP4,5969,Administrative stationery etc,5.91,0.99,4.92
Children and Young Peoples Services,Head of Education and Skills,075021,Youth Employment Initiative,Supplies and Services,364301,Grants to Voluntary Organisations,10-Nov-2020,000007381618788,GO NORTH EAST LIMITED,4131,Hardship,23.40,0.00,23.40
Adult and Health Services,Head of Adults,055302,Durham Pathways,Supplies and Services,304403,Equipment and Materials,10-Nov-2020,000007381618806,AMZNMKTPLACE AMAZON.CO,5999,Other consumables,4.80,0.80,4.00
Adult and Health Services,Head of Adults,055302,Durham Pathways,Supplies and Services,304403,Equipment and Materials,10-Nov-2020,000007381618816,AMZNMKTPLACE AMAZON.CO,5999,Other consumables,9.95,1.66,8.29
Adult and Health Services,Head of Adults,055302,Durham Pathways,Supplies and Services,304403,Equipment and Materials,10-Nov-2020,000007381618820,AMZNMKTPLACE AMAZON.CO,5999,Other consumables,3.99,0.67,3.32
Adult and Health Services,Head of Adults,055302,Durham Pathways,Supplies and Services,304403,Equipment and Materials,10-Nov-2020,000007381618830,AMZNMKTPLACE AMAZON.CO,5999,Other consumables,6.71,1.12,5.59
Adult and Health Services,Head of Adults,055302,Durham Pathways,Supplies and Services,304403,Equipment and Materials,10-Nov-2020,000007381618840,AMZNMKTPLACE AMAZON.CO,5999,Other consumables,10.02,0.00,10.02
Children and Young Peoples Services,Head of Childrens Social Care,085332,Middlestone Moor CU,Supplies and Services,324117,Provisions E324,10-Nov-2020,000007381618886,TESCO STORES 2371,5411,Catering costs - provisions,48.55,0.00,48.55
Children and Young Peoples Services,Head of Childrens Social Care,085341,High Etherley Satelite Home,Supplies and Services,324117,Provisions E324,10-Nov-2020,000007381619104,TESCO STORES 6329,5411,Catering costs - provisions,37.48,0.00,37.48
Neighbourhoods and Climate Change,Environmental Services,010367,C&G - South Grounds Maintenance,Supplies and Services,304403,Equipment and Materials,10-Nov-2020,000007381619210,MAXWELLS DIY,5231,Other consumables,14.00,2.33,11.67
Neighbourhoods and Climate Change,Environmental Services,010367,C&G - South Grounds Maintenance,Supplies and Services,304221,Equipment and Materials,10-Nov-2020,000007381619220,SCREWFIX DIRECT,5211,Direct materials,14.99,2.50,12.49
Neighbourhoods and Climate Change,Environmental Services,010367,C&G - South Grounds Maintenance,Supplies and Services,304221,Equipment and Materials,10-Nov-2020,000007381619234,SCREWFIX DIRECT,5211,Direct materials,61.08,10.18,50.90
"Regeneration, Economy and Growth",Development and Housing,031576,B& B - Temp Accom,Supplies and Services,364320,Grants to Voluntary Organisations,10-Nov-2020,000007381619340,H52STANLEY,7011,Accommodation assistance,93.00,0.00,93.00
Children and Young Peoples Services,Head of Childrens Social Care,085362,LAC & Permanence Team 2,Supplies and Services,308011,Furniture,10-Nov-2020,000007381619516,AMZNMktplace,5999,Furniture repair and replacement,169.99,28.33,141.66
Children and Young Peoples Services,Head of Childrens Social Care,085352,Tow Law CU,Supplies and Services,332047,Printing Stationery and Gen Off Exps,10-Nov-2020,000007381619580,VIKING UK,5111,Stationery,104.36,0.00,104.36
Children and Young Peoples Services,Head of Childrens Social Care,085352,Tow Law CU,Supplies and Services,328041,Clothing uniforms and laundry E328,10-Nov-2020,000007381619590,BOOHOO.COM,5691,Clothing uniforms and laundry,242.74,0.00,242.74
Children and Young Peoples Services,Head of Childrens Social Care,085352,Tow Law CU,Supplies and Services,324117,Provisions E324,10-Nov-2020,000007381619600,LIDL GB DURHAM,5411,Catering costs - provisions,40.95,0.00,40.95
Children and Young Peoples Services,Head of Childrens Social Care,085352,Tow Law CU,Supplies and Services,332047,Printing Stationery and Gen Off Exps,10-Nov-2020,000007381619612,MONKEYOFFICE.CO.UK,5943,Stationery,-43.82,0.00,-43.82
Neighbourhoods and Climate Change,Environmental Services,010864,Fleet - Hackworth Road Fleet,Transport,215013,Running Costs of Vehicles,10-Nov-2020,000007381619622,DVLA VEHICLE TAX,9311,Vehicle Excise Duty (VED),267.50,0.00,267.50
Neighbourhoods and Climate Change,Environmental Services,010551,Fleet - Chilton Fleet,Transport,215013,Running Costs of Vehicles,10-Nov-2020,000007381619630,DVLA VEHICLE TAX,9311,Vehicle Excise Duty (VED),267.50,0.00,267.50
Neighbourhoods and Climate Change,Environmental Services,010864,Fleet - Hackworth Road Fleet,Transport,215013,Running Costs of Vehicles,10-Nov-2020,000007381619634,DVLA VEHICLE TAX,9311,Vehicle Excise Duty (VED),267.50,0.00,267.50
Neighbourhoods and Climate Change,Environmental Services,010551,Fleet - Chilton Fleet,Transport,215013,Running Costs of Vehicles,10-Nov-2020,000007381619642,DVLA VEHICLE TAX,9311,Vehicle Excise Duty (VED),267.50,0.00,267.50
Neighbourhoods and Climate Change,Environmental Services,010900,Fleet - Meadowfield Fleet,Transport,215013,Running Costs of Vehicles,10-Nov-2020,000007381619650,DVLA VEHICLE TAX,9311,Vehicle Excise Duty (VED),267.50,0.00,267.50
Neighbourhoods and Climate Change,Environmental Services,010551,Fleet - Chilton Fleet,Transport,215013,Running Costs of Vehicles,10-Nov-2020,000007381619658,DVLA VEHICLE TAX,9311,Vehicle Excise Duty (VED),267.50,0.00,267.50
Neighbourhoods and Climate Change,Environmental Services,010900,Fleet - Meadowfield Fleet,Transport,215013,Running Costs of Vehicles,10-Nov-2020,000007381619666,DVLA VEHICLE TAX,9311,Vehicle Excise Duty (VED),267.50,0.00,267.50
Neighbourhoods and Climate Change,Environmental Services,010900,Fleet - Meadowfield Fleet,Transport,215013,Running Costs of Vehicles,10-Nov-2020,000007381619672,DVLA VEHICLE TAX,9311,Vehicle Excise Duty (VED),167.50,0.00,167.50
Neighbourhoods and Climate Change,Environmental Services,010900,Fleet - Meadowfield Fleet,Transport,215013,Running Costs of Vehicles,10-Nov-2020,000007381619682,DVLA VEHICLE TAX,9311,Vehicle Excise Duty (VED),267.50,0.00,267.50
Neighbourhoods and Climate Change,Environmental Services,010900,Fleet - Meadowfield Fleet,Transport,215013,Running Costs of Vehicles,10-Nov-2020,000007381619690,DVLA VEHICLE TAX,9311,Vehicle Excise Duty (VED),267.50,0.00,267.50
Neighbourhoods and Climate Change,Environmental Services,010900,Fleet - Meadowfield Fleet,Transport,215013,Running Costs of Vehicles,10-Nov-2020,000007381619696,DVLA VEHICLE TAX,9311,Vehicle Excise Duty (VED),267.50,0.00,267.50
Neighbourhoods and Climate Change,Environmental Services,010864,Fleet - Hackworth Road Fleet,Transport,215013,Running Costs of Vehicles,10-Nov-2020,000007381619704,DVLA VEHICLE TAX,9311,Vehicle Excise Duty (VED),267.50,0.00,267.50
Neighbourhoods and Climate Change,Environmental Services,010900,Fleet - Meadowfield Fleet,Transport,215013,Running Costs of Vehicles,10-Nov-2020,000007381619710,DVLA VEHICLE TAX,9311,Vehicle Excise Duty (VED),167.50,0.00,167.50
Neighbourhoods and Climate Change,Environmental Services,010900,Fleet - Meadowfield Fleet,Transport,215013,Running Costs of Vehicles,10-Nov-2020,000007381619718,DVLA VEHICLE TAX,9311,Vehicle Excise Duty (VED),267.50,0.00,267.50
Neighbourhoods and Climate Change,Environmental Services,010900,Fleet - Meadowfield Fleet,Transport,215013,Running Costs of Vehicles,10-Nov-2020,000007381619726,DVLA VEHICLE TAX,9311,Vehicle Excise Duty (VED),167.50,0.00,167.50
Neighbourhoods and Climate Change,Environmental Services,010551,Fleet - Chilton Fleet,Transport,215013,Running Costs of Vehicles,10-Nov-2020,000007381619734,DVLA VEHICLE TAX,9311,Vehicle Excise Duty (VED),267.50,0.00,267.50
Neighbourhoods and Climate Change,Environmental Services,010561,Fleet - Morrison Busty Fleet,Transport,215013,Running Costs of Vehicles,10-Nov-2020,000007381619742,DVLA VEHICLE TAX,9311,Vehicle Excise Duty (VED),167.50,0.00,167.50
Neighbourhoods and Climate Change,Environmental Services,010900,Fleet - Meadowfield Fleet,Transport,215013,Running Costs of Vehicles,10-Nov-2020,000007381619748,DVLA VEHICLE TAX,9311,Vehicle Excise Duty (VED),167.50,0.00,167.50
Neighbourhoods and Climate Change,Environmental Services,010900,Fleet - Meadowfield Fleet,Transport,215013,Running Costs of Vehicles,10-Nov-2020,000007381619756,DVLA VEHICLE TAX,9311,Vehicle Excise Duty (VED),267.50,0.00,267.50
Neighbourhoods and Climate Change,Environmental Services,010900,Fleet - Meadowfield Fleet,Transport,215013,Running Costs of Vehicles,10-Nov-2020,000007381619758,DVLA VEHICLE TAX,9311,Vehicle Excise Duty (VED),267.50,0.00,267.50
Neighbourhoods and Climate Change,Environmental Services,010900,Fleet - Meadowfield Fleet,Transport,215013,Running Costs of Vehicles,10-Nov-2020,000007381619768,DVLA VEHICLE TAX,9311,Vehicle Excise Duty (VED),352.50,0.00,352.50
Neighbourhoods and Climate Change,Environmental Services,010864,Fleet - Hackworth Road Fleet,Transport,215013,Running Costs of Vehicles,10-Nov-2020,000007381619776,DVLA VEHICLE TAX,9311,Vehicle Excise Duty (VED),267.50,0.00,267.50
Neighbourhoods and Climate Change,Environmental Services,010864,Fleet - Hackworth Road Fleet,Transport,215013,Running Costs of Vehicles,10-Nov-2020,000007381619780,DVLA VEHICLE TAX,9311,Vehicle Excise Duty (VED),167.50,0.00,167.50
Neighbourhoods and Climate Change,Environmental Services,010900,Fleet - Meadowfield Fleet,Transport,215013,Running Costs of Vehicles,10-Nov-2020,000007381619790,DVLA VEHICLE TAX,9311,Vehicle Excise Duty (VED),267.50,0.00,267.50
Neighbourhoods and Climate Change,Environmental Services,010900,Fleet - Meadowfield Fleet,Transport,215013,Running Costs of Vehicles,10-Nov-2020,000007381619794,DVLA VEHICLE TAX,9311,Vehicle Excise Duty (VED),167.50,0.00,167.50
Resources BK0010,Digital and Customer Services,070204,School Services - Systems,Supplies and Services,372009,Subscriptions E372,10-Nov-2020,000007381619822,WEB NETWORKSOLUTIONS,5968,Subscriptions 372009,91.46,0.00,91.46
Children and Young Peoples Services,Head of Early Help Inclusion & Vulnerable Children.,088109,Spennymoor & Shildon 0-19 Community Family Hub,Supplies and Services,384302,Miscellaneous Expenses,10-Nov-2020,000007381619840,ASDA GEORGE COM LEEDS,5411,Activity expenses,243.00,0.00,243.00
Children and Young Peoples Services,Head of Education and Skills,071732,Dean Bank Childcare,Supplies and Services,304403,Equipment and Materials,10-Nov-2020,000007381619864,AMZNMKTPLACE AMAZON.CO,5999,Other consumables,21.83,0.00,21.83
Children and Young Peoples Services,Head of Childrens Social Care,085334,West Rainton Satelite Home,Supplies and Services,304403,Equipment and Materials,10-Nov-2020,000007381619880,AMZNMKTPLACE AMAZON.CO,5999,Other consumables,28.99,0.00,28.99
"Regeneration, Economy and Growth",Development and Housing,030771,Durham Advance Flexible Fund,Supplies and Services,328041,Clothing uniforms and laundry E328,10-Nov-2020,000007381619924,ARGOS LTD,5310,Clothing uniforms and laundry,34.99,0.00,34.99
Children and Young Peoples Services,Head of Early Help Inclusion & Vulnerable Children.,085956,Lumley,Supplies and Services,304403,Equipment and Materials,10-Nov-2020,000007381620016,AMZNMktplace,5999,Other consumables,7.92,1.32,6.60
Children and Young Peoples Services,Head of Early Help Inclusion & Vulnerable Children.,085956,Lumley,Supplies and Services,304403,Equipment and Materials,10-Nov-2020,000007381620016 - 1,AMZNMktplace,5999,Other consumables,0.06,,0.06
Children and Young Peoples Services,Head of Early Help Inclusion & Vulnerable Children.,085956,Lumley,Supplies and Services,304403,Equipment and Materials,10-Nov-2020,000007381620030,AMZNMktplace,5999,Other consumables,8.00,1.33,6.67
Children and Young Peoples Services,Head of Early Help Inclusion & Vulnerable Children.,085956,Lumley,Transfer Payments,515140,Social Services Clients,10-Nov-2020,000007381620040,BOOHOO.COM,5691,Clothing allowances,18.00,0.00,18.00
Children and Young Peoples Services,Head of Early Help Inclusion & Vulnerable Children.,085962,Aycliffe Secure - Durham,Supplies and Services,304649,Equipment and Materials,10-Nov-2020,000007381620046,CEX LTD,5065,Toys,31.35,0.00,31.35
Children and Young Peoples Services,Head of Early Help Inclusion & Vulnerable Children.,085956,Lumley,Transfer Payments,515140,Social Services Clients,10-Nov-2020,000007381620056,PRETTYLITTLETHING.COM,5691,Clothing allowances,40.00,0.00,40.00
Children and Young Peoples Services,Head of Early Help Inclusion & Vulnerable Children.,085956,Lumley,Transfer Payments,515140,Social Services Clients,10-Nov-2020,000007381620064,PRETTYLITTLETHING.COM,5691,Clothing allowances,15.00,0.00,15.00
Children and Young Peoples Services,Head of Early Help Inclusion & Vulnerable Children.,085965,Barnard,Supplies and Services,304403,Equipment and Materials,10-Nov-2020,000007381620074,ARGOS LTD,5310,Other consumables,99.97,0.00,99.97
Children and Young Peoples Services,Head of Early Help Inclusion & Vulnerable Children.,085965,Barnard,Transfer Payments,515140,Social Services Clients,10-Nov-2020,000007381620080,JD SPORTS INTERNET,5941,Clothing allowances,125.00,0.00,125.00
Children and Young Peoples Services,Head of Early Help Inclusion & Vulnerable Children.,085965,Barnard,Transfer Payments,515140,Social Services Clients,10-Nov-2020,000007381620086,JD SPORTS INTERNET,5941,Clothing allowances,72.00,0.00,72.00
Children and Young Peoples Services,Head of Early Help Inclusion & Vulnerable Children.,085957,Secure Management,Transfer Payments,515140,Social Services Clients,10-Nov-2020,000007381620098,JD SPORTS INTERNET,5941,Clothing allowances,58.99,0.00,58.99
Children and Young Peoples Services,Head of Early Help Inclusion & Vulnerable Children.,085954,Walworth,Transfer Payments,515140,Social Services Clients,10-Nov-2020,000007381620110,JD SPORTS INTERNET,5941,Clothing allowances,130.00,0.00,130.00
Neighbourhoods and Climate Change,Environmental Services,011060,C&G - Hardwick Park Catering,Premises,145009,Cleaning and Domestic Supplies,10-Nov-2020,000007381620176,ALLIANCE DISPOSABLES L,2842,Other cleaning and domestic costs,90.74,15.12,75.62
Neighbourhoods and Climate Change,Environmental Services,011060,C&G - Hardwick Park Catering,Premises,145009,Cleaning and Domestic Supplies,10-Nov-2020,000007381620186,ALLIANCE DISPOSABLES L,2842,Other cleaning and domestic costs,157.19,26.20,130.99
Neighbourhoods and Climate Change,Environmental Services,011060,C&G - Hardwick Park Catering,Premises,145009,Cleaning and Domestic Supplies,10-Nov-2020,000007381620192,ALLIANCE DISPOSABLES L,2842,Other cleaning and domestic costs,325.90,54.32,271.58
Neighbourhoods and Climate Change,Environmental Services,010367,C&G - South Grounds Maintenance,Supplies and Services,304221,Equipment and Materials,10-Nov-2020,000007381620584,JEWSON LTD,5211,Direct materials,131.86,0.00,131.86
Adult and Health Services,Head of Adults,055643,Hawthorn House LD Respite Unit,Supplies and Services,324117,Provisions E324,10-Nov-2020,000007381620652,WILKO RETAIL LIMITED,5399,Catering costs - provisions,3.00,0.00,3.00
Adult and Health Services,Head of Adults,055643,Hawthorn House LD Respite Unit,Supplies and Services,324117,Provisions E324,10-Nov-2020,000007381620662,SAINSBURYS 0776,5411,Catering costs - provisions,7.90,0.00,7.90
Children and Young Peoples Services,Head of Education and Skills,071802,Louisa Cent Nursery,Supplies and Services,324117,Provisions E324,10-Nov-2020,000007381620672,ASDA SUPERSTORE,5411,Catering costs - provisions,3.88,0.00,3.88
Children and Young Peoples Services,Head of Childrens Social Care,085342,16 Hickstead Rise (previously 9 Cedar Ave),Supplies and Services,324117,Provisions E324,10-Nov-2020,000007381620698,WILKO RETAIL LIMITED,5399,Catering costs - provisions,3.00,0.00,3.00
Children and Young Peoples Services,Head of Childrens Social Care,085342,16 Hickstead Rise (previously 9 Cedar Ave),Supplies and Services,324117,Provisions E324,10-Nov-2020,000007381620706,TESCO STORES 2916,5411,Catering costs - provisions,28.43,0.00,28.43
Children and Young Peoples Services,Head of Early Help Inclusion & Vulnerable Children.,085962,Aycliffe Secure - Durham,Supplies and Services,304649,Equipment and Materials,10-Nov-2020,000007381620900,Amazon.co.uk M71F28GF4,5969,Toys,14.78,0.00,14.78
Children and Young Peoples Services,Head of Early Help Inclusion & Vulnerable Children.,085952,Secure Education,Supplies and Services,384999,Miscellaneous Expenses,10-Nov-2020,000007381620908,AMZNMktplace,5999,Other expenses,30.00,5.00,25.00
"Regeneration, Economy and Growth",Transport and Contracted Services,032170,Integrated Passenger Transport,Supplies and Services,384999,Miscellaneous Expenses,10-Nov-2020,000007381620928,ROTATING ELECTRICS,5533,Other expenses,44.42,0.00,44.42
Resources BK0010,Business Support,052986,CYPS - Locality and Operational Support,Supplies and Services,328041,Clothing uniforms and laundry E328,10-Nov-2020,000007381620938,ARGOS LTD,5310,Clothing uniforms and laundry,116.50,0.00,116.50
Resources BK0010,Business Support,052986,CYPS - Locality and Operational Support,Supplies and Services,328041,Clothing uniforms and laundry E328,10-Nov-2020,000007381620950,ARGOS LTD,5310,Clothing uniforms and laundry,221.95,0.00,221.95
Resources BK0010,Business Support,052986,CYPS - Locality and Operational Support,Supplies and Services,328041,Clothing uniforms and laundry E328,10-Nov-2020,000007381620958,ARGOS LTD,5310,Clothing uniforms and laundry,409.98,0.00,409.98
Resources BK0010,Business Support,052986,CYPS - Locality and Operational Support,Supplies and Services,328041,Clothing uniforms and laundry E328,10-Nov-2020,000007381620970,ARGOS LTD,5310,Clothing uniforms and laundry,43.00,0.00,43.00
Adult and Health Services,Head of Adults,055301,Stanley Pathways,Supplies and Services,324117,Provisions E324,10-Nov-2020,000007381621070,WILKO RETAIL LIMITED,5399,Catering costs - provisions,2.25,0.00,2.25
Children and Young Peoples Services,Head of Childrens Social Care,085351,Framwellgate Moor CU,Supplies and Services,304259,Equipment and Materials,10-Nov-2020,000007381621168,M and M Direct Ltd,5941,Equipment-purchase and rental,92.94,0.00,92.94
Children and Young Peoples Services,Head of Childrens Social Care,085351,Framwellgate Moor CU,Supplies and Services,304259,Equipment and Materials,10-Nov-2020,000007381621172,M and M Direct Ltd,5941,Equipment-purchase and rental,44.98,0.00,44.98
Children and Young Peoples Services,Head of Childrens Social Care,085351,Framwellgate Moor CU,Supplies and Services,324117,Provisions E324,10-Nov-2020,000007381621178,SAINSBURYS 0776,5411,Catering costs - provisions,114.31,0.00,114.31
"Regeneration, Economy and Growth",Development and Housing,031500,Housing Solutions - Core Team,Supplies and Services,352001,Conference Expenses,10-Nov-2020,000007381621248,H52STANLEY,7011,Conferencesseminars fees etc,78.00,0.00,78.00
"Regeneration, Economy and Growth",Transport and Contracted Services,032164,Durham Bus Station 032164,Supplies and Services,332048,Printing Stationery and Gen Off Exps,10-Nov-2020,000007381621358,Amazon.co.uk M71153GI4,5969,Administrative stationery etc,12.21,2.04,10.17
"Regeneration, Economy and Growth",Development and Housing,031500,Housing Solutions - Core Team,Supplies and Services,352001,Conference Expenses,10-Nov-2020,000007381621376,H52STANLEY,7011,Conferencesseminars fees etc,60.00,0.00,60.00
Adult and Health Services,Head of Adults,055302,Durham Pathways,Supplies and Services,304403,Equipment and Materials,10-Nov-2020,000007384359658,AMZNMKTPLACE AMAZON.CO,5999,Other consumables,5.45,0.91,4.54
Adult and Health Services,Head of Adults,055302,Durham Pathways,Supplies and Services,304403,Equipment and Materials,10-Nov-2020,000007384359666,AMZNMKTPLACE AMAZON.CO,5999,Other consumables,5.45,0.91,4.54
Adult and Health Services,Head of Adults,055302,Durham Pathways,Supplies and Services,304403,Equipment and Materials,10-Nov-2020,000007384359682,AMZNMKTPLACE AMAZON.CO,5999,Other consumables,9.80,1.64,8.16
Children and Young Peoples Services,Head of Education and Skills,070264,EDC Premises,Supplies and Services,384999,Miscellaneous Expenses,10-Nov-2020,000007384361038,PAYPAL TEACHERHEAD,8211,Other expenses,70.00,0.00,70.00
"Regeneration, Economy and Growth",Business Durham CL0850,030690,Durham Dales Centre - Tourist Information Centre,Supplies and Services,304221,Equipment and Materials,10-Nov-2020,000007384361234,A AND K HOSIERY LTD,5099,Direct materials,345.96,0.00,345.96
Children and Young Peoples Services,Head of Early Help Inclusion & Vulnerable Children.,085965,Barnard,Supplies and Services,304403,Equipment and Materials,10-Nov-2020,000009266823043,BOOTS.COM,5912,Other consumables,21.49,0.00,21.49
Resources BK0010,Digital and Customer Services,070204,School Services - Systems,Supplies and Services,372009,Subscriptions E372,11-Nov-2020,000007381619828,WEB NETWORKSOLUTIONS,5968,Subscriptions 372009,2.52,0.00,2.52
Children and Young Peoples Services,Head of Childrens Social Care,085341,High Etherley Satelite Home,Supplies and Services,324117,Provisions E324,11-Nov-2020,000007384359444,TESCO STORES 6329,5411,Catering costs - provisions,5.28,0.00,5.28
Children and Young Peoples Services,Head of Childrens Social Care,085341,High Etherley Satelite Home,Supplies and Services,324117,Provisions E324,11-Nov-2020,000007384359454,TESCO STORES 6329,5411,Catering costs - provisions,2.50,0.00,2.50
"Regeneration, Economy and Growth",Development and Housing,031617,Project Beta Sustainability Fund,Supplies and Services,324117,Provisions E324,11-Nov-2020,000007384359480,ASDA STORES LTD,5411,Catering costs - provisions,52.26,0.00,52.26
Children and Young Peoples Services,Head of Education and Skills,054640,Durham Learning Resources 054640,Supplies and Services,304403,Equipment and Materials,11-Nov-2020,000007384359500,AMZNMktplace,5999,Other consumables,19.00,0.00,19.00
Resources BK0010,Business Support,065461,Business Support 065461,Employees,040149,Recruitment Instruction and Training,11-Nov-2020,000007384359546,KNOWLEDGE EXCHANGE GRO,8699,Training-all costs,300.00,0.00,300.00
Children and Young Peoples Services,Head of Education and Skills,075021,Youth Employment Initiative,Supplies and Services,364301,Grants to Voluntary Organisations,11-Nov-2020,000007384359644,VUE NCS CITB HS&E TEST,8299,Hardship,21.00,0.00,21.00
Children and Young Peoples Services,Head of Education and Skills,075021,Youth Employment Initiative,Supplies and Services,364301,Grants to Voluntary Organisations,11-Nov-2020,000007384359652,WWW.DAVINESONLINE.COM,7230,Hardship,45.59,0.00,45.59
Adult and Health Services,Head of Adults,055302,Durham Pathways,Supplies and Services,304403,Equipment and Materials,11-Nov-2020,000007384359672,AMZNMKTPLACE AMAZON.CO,5999,Other consumables,5.99,1.00,4.99
Adult and Health Services,Head of Adults,055302,Durham Pathways,Supplies and Services,304403,Equipment and Materials,11-Nov-2020,000007384359678,AMZNMKTPLACE AMAZON.CO,5999,Other consumables,8.59,1.43,7.16
Children and Young Peoples Services,Head of Childrens Social Care,085342,16 Hickstead Rise (previously 9 Cedar Ave),Supplies and Services,324117,Provisions E324,11-Nov-2020,000007384359694,TESCO STORES 2916,5411,Catering costs - provisions,72.77,0.00,72.77
Children and Young Peoples Services,Head of Childrens Social Care,085332,Middlestone Moor CU,Supplies and Services,324117,Provisions E324,11-Nov-2020,000007384359728,TESCO STORES 2916,5411,Catering costs - provisions,11.19,0.00,11.19
Children and Young Peoples Services,Head of Childrens Social Care,085352,Tow Law CU,Supplies and Services,304259,Equipment and Materials,11-Nov-2020,000007384359934,JD SPORTS INTERNET,5941,Equipment-purchase and rental,74.99,0.00,74.99
Children and Young Peoples Services,Head of Early Help Inclusion & Vulnerable Children.,071569,Woodhouse Close Childrens Centre,Supplies and Services,308011,Furniture,11-Nov-2020,000007384359972,WILKO.COM,5399,Furniture repair and replacement,118.00,19.67,98.33
Children and Young Peoples Services,Head of Early Help Inclusion & Vulnerable Children.,071569,Woodhouse Close Childrens Centre,Supplies and Services,308011,Furniture,11-Nov-2020,000007384359978,ASDA GEORGE COM LEEDS,5411,Furniture repair and replacement,32.55,0.00,32.55
Children and Young Peoples Services,Head of Early Help Inclusion & Vulnerable Children.,071569,Woodhouse Close Childrens Centre,Supplies and Services,304259,Equipment and Materials,11-Nov-2020,000007384359988,WWW.ALDI.CO.UK,5411,Equipment-purchase and rental,33.98,0.00,33.98
Children and Young Peoples Services,Head of Education and Skills,071732,Dean Bank Childcare,Supplies and Services,324117,Provisions E324,11-Nov-2020,000007384360218,SAINSBURYS SACAT (2303,5411,Catering costs - provisions,19.70,0.00,19.70
Children and Young Peoples Services,Head of Childrens Social Care,085334,West Rainton Satelite Home,Supplies and Services,304403,Equipment and Materials,11-Nov-2020,000007384360262,AMZNMktplace,5999,Other consumables,18.48,0.00,18.48
Children and Young Peoples Services,Head of Childrens Social Care,085334,West Rainton Satelite Home,Supplies and Services,304403,Equipment and Materials,11-Nov-2020,000007384360422,AMZNMktplace,5999,Other consumables,59.05,0.00,59.05
Children and Young Peoples Services,Head of Early Help Inclusion & Vulnerable Children.,071445,Chester le Street One Point Hub,Supplies and Services,304259,Equipment and Materials,11-Nov-2020,000007384360438,HM PASSPORT OFFICE,9399,Equipment-purchase and rental,49.00,0.00,49.00
Children and Young Peoples Services,Head of Early Help Inclusion & Vulnerable Children.,085965,Barnard,Supplies and Services,308011,Furniture,11-Nov-2020,000007384360448,AMZNMktplace,5999,Furniture repair and replacement,179.90,30.00,149.90
Children and Young Peoples Services,Head of Early Help Inclusion & Vulnerable Children.,085962,Aycliffe Secure - Durham,Supplies and Services,324117,Provisions E324,11-Nov-2020,000007384360456,TESCO STORES 6329,5411,Catering costs - provisions,86.84,0.00,86.84
Children and Young Peoples Services,Head of Early Help Inclusion & Vulnerable Children.,085962,Aycliffe Secure - Durham,Supplies and Services,304690,Equipment and Materials,11-Nov-2020,000007384360464,ARGOS LTD,5310,Video and DVD,63.94,0.00,63.94
Children and Young Peoples Services,Head of Childrens Social Care,085626,Families First Shildon/Chilton,Supplies and Services,304259,Equipment and Materials,11-Nov-2020,000007384360668,ARGOS LTD,5310,Equipment-purchase and rental,30.95,0.00,30.95
Children and Young Peoples Services,Head of Childrens Social Care,085341,High Etherley Satelite Home,Supplies and Services,324117,Provisions E324,11-Nov-2020,000007384360680,SAINSBURYS SACAT 2199,5411,Catering costs - provisions,6.50,0.00,6.50
Neighbourhoods and Climate Change,Environmental Services,010367,C&G - South Grounds Maintenance,Supplies and Services,304999,Equipment and Materials,11-Nov-2020,000007384360740,NEW ROW FARM NURSERIES,780,Misc equipment tools and materials,302.40,0.00,302.40
Adult and Health Services,Head of Adults,055643,Hawthorn House LD Respite Unit,Supplies and Services,324117,Provisions E324,11-Nov-2020,000007384360778,CO-OP GROUP 010465,5411,Catering costs - provisions,3.39,0.00,3.39
Children and Young Peoples Services,Head of Education and Skills,071802,Louisa Cent Nursery,Supplies and Services,324117,Provisions E324,11-Nov-2020,000007384360788,ASDA SUPERSTORE,5411,Catering costs - provisions,4.14,0.00,4.14
Children and Young Peoples Services,Head of Childrens Social Care,085333,Coxhoe Satelite Home,Supplies and Services,324117,Provisions E324,11-Nov-2020,000007384360800,TESCO STORES 2371,5411,Catering costs - provisions,142.99,0.00,142.99
Adult and Health Services,Head of Adults,055643,Hawthorn House LD Respite Unit,Supplies and Services,324117,Provisions E324,11-Nov-2020,000007384360980,JR HOLLAND FOODSERVICE,5499,Catering costs - provisions,9.74,0.00,9.74
Adult and Health Services,Head of Adults,055643,Hawthorn House LD Respite Unit,Supplies and Services,324117,Provisions E324,11-Nov-2020,000007384360988,JR HOLLAND FOODSERVICE,5499,Catering costs - provisions,20.98,0.00,20.98
Children and Young Peoples Services,Head of Childrens Social Care,085334,West Rainton Satelite Home,Supplies and Services,324117,Provisions E324,11-Nov-2020,000007384361050,SAINSBURYS 0776,5411,Catering costs - provisions,46.10,0.00,46.10
Resources BK0010,Digital and Customer Services,065335,School Services - Implementations,Supplies and Services,304639,Equipment and Materials,11-Nov-2020,000007384361070,AMZNMktplace,5999,Technicians-supplies,39.99,6.67,33.32
Children and Young Peoples Services,Head of Early Help Inclusion & Vulnerable Children.,085957,Secure Management,Supplies and Services,308011,Furniture,11-Nov-2020,000007384361098,INTERWEAVE TEXTILES,5712,Furniture repair and replacement,50.40,0.00,50.40
Children and Young Peoples Services,Head of Early Help Inclusion & Vulnerable Children.,085965,Barnard,Supplies and Services,384999,Miscellaneous Expenses,11-Nov-2020,000007384361110,SP BLACK HAIR CARE,7230,Other expenses,22.44,0.00,22.44
Children and Young Peoples Services,Head of Early Help Inclusion & Vulnerable Children.,085957,Secure Management,Supplies and Services,384999,Miscellaneous Expenses,11-Nov-2020,000007384361114,Amazon MP3,5735,Other expenses,0.99,0.00,0.99
Children and Young Peoples Services,Head of Early Help Inclusion & Vulnerable Children.,085957,Secure Management,Supplies and Services,384999,Miscellaneous Expenses,11-Nov-2020,000007384361122,Amazon.co.uk M78SV5XN4,5969,Other expenses,51.48,8.58,42.90
Children and Young Peoples Services,Head of Early Help Inclusion & Vulnerable Children.,085957,Secure Management,Supplies and Services,384999,Miscellaneous Expenses,11-Nov-2020,000007384361122 - 1,Amazon.co.uk M78SV5XN4,5969,Other expenses,0.04,,0.04
Children and Young Peoples Services,Head of Early Help Inclusion & Vulnerable Children.,085965,Barnard,Supplies and Services,384999,Miscellaneous Expenses,11-Nov-2020,000007384361126,AMZNMktplace,5999,Other expenses,11.96,2.00,9.96
Children and Young Peoples Services,Head of Early Help Inclusion & Vulnerable Children.,085957,Secure Management,Supplies and Services,304245,Equipment and Materials,11-Nov-2020,000007384361132,SCREWFIX DIRECT,5211,Materials,12.99,2.17,10.82
Resources BK0010,COVID19 - Resources,091007,COVID19 - Resources,Supplies and Services,384999,Miscellaneous Expenses,11-Nov-2020,000007384361156,AMZNMKTPLACE AMAZON.CO,5999,Other expenses,14.99,2.50,12.49
Resources BK0010,COVID19 - Resources,091007,COVID19 - Resources,Supplies and Services,384999,Miscellaneous Expenses,11-Nov-2020,000007384361168,AMZNMKTPLACE AMAZON.CO,5999,Other expenses,14.99,2.50,12.49
Resources BK0010,COVID19 - Resources,091007,COVID19 - Resources,Supplies and Services,384999,Miscellaneous Expenses,11-Nov-2020,000007384361178,AMZNMKTPLACE AMAZON.CO,5999,Other expenses,14.99,2.50,12.49
Neighbourhoods and Climate Change,Environmental Services,031118,E&D - Seascape,Supplies and Services,352001,Conference Expenses,11-Nov-2020,000007384361186,CMS COMMUNICATIONS,7372,Conferencesseminars fees etc,108.00,0.00,108.00
"Regeneration, Economy and Growth",Culture Sport and Tourism,011204,Festival and Events,Supplies and Services,304999,Equipment and Materials,11-Nov-2020,000007384361256,MailChimp,5818,Misc equipment tools and materials,147.08,0.00,147.08
"Regeneration, Economy and Growth",Development and Housing,031576,B& B - Temp Accom,Supplies and Services,364320,Grants to Voluntary Organisations,11-Nov-2020,000007384361340,H52STANLEY,7011,Accommodation assistance,93.00,0.00,93.00
"Regeneration, Economy and Growth",Development and Housing,031576,B& B - Temp Accom,Transport,235073,Public Transport,11-Nov-2020,000007384361346,BLUELINE TAXIS,4121,Travel-clients/students/children,22.50,0.00,22.50
"Regeneration, Economy and Growth",Development and Housing,031576,B& B - Temp Accom,Supplies and Services,364320,Grants to Voluntary Organisations,11-Nov-2020,000007384361350,BUDGET H EXPRESS HOTEL,7011,Accommodation assistance,178.00,0.00,178.00
Children and Young Peoples Services,Head of Early Help Inclusion & Vulnerable Children.,085801,CDYJS - Support,Supplies and Services,304403,Equipment and Materials,11-Nov-2020,000007384361376,AMZNMktplace,5999,Other consumables,30.36,5.07,25.29
Children and Young Peoples Services,Head of Childrens Social Care,085332,Middlestone Moor CU,Supplies and Services,304403,Equipment and Materials,11-Nov-2020,000007384361528,AMZNMKTPLACE AMAZON.CO,5999,Other consumables,14.99,2.50,12.49
Children and Young Peoples Services,Head of Childrens Social Care,085332,Middlestone Moor CU,Supplies and Services,384999,Miscellaneous Expenses,11-Nov-2020,000007384361534,Amazon.co.uk M79223XT4,5969,Other expenses,18.99,3.17,15.82
"Regeneration, Economy and Growth",Development and Housing,031500,Housing Solutions - Core Team,Supplies and Services,352001,Conference Expenses,11-Nov-2020,000007384361564,H52STANLEY,7011,Conferencesseminars fees etc,78.00,0.00,78.00
"Regeneration, Economy and Growth",Development and Housing,031500,Housing Solutions - Core Team,Supplies and Services,352001,Conference Expenses,11-Nov-2020,000007384361610,AYCLIFFE BIZ,7011,Conferencesseminars fees etc,380.00,0.00,380.00
"Regeneration, Economy and Growth",Development and Housing,031500,Housing Solutions - Core Team,Supplies and Services,352001,Conference Expenses,11-Nov-2020,000007384361616,BUDGET H EXPRESS HOTEL,7011,Conferencesseminars fees etc,178.00,0.00,178.00
Children and Young Peoples Services,Head of Education and Skills,076001,Music Service,Supplies and Services,384999,Miscellaneous Expenses,11-Nov-2020,000007384361684,WWW.BUZZCATERINGSUPPLI,5046,Other expenses,66.47,0.00,66.47
Children and Young Peoples Services,Head of Education and Skills,076001,Music Service,Supplies and Services,384999,Miscellaneous Expenses,11-Nov-2020,000007384361688,WWW.BUZZCATERINGSUPPLI,5046,Other expenses,170.98,0.00,170.98
Children and Young Peoples Services,Head of Education and Skills,076001,Music Service,Supplies and Services,384999,Miscellaneous Expenses,11-Nov-2020,000007384361694,WWW.BUZZCATERINGSUPPLI,5046,Other expenses,192.56,0.00,192.56
"Regeneration, Economy and Growth",Development and Housing,030771,Durham Advance Flexible Fund,Supplies and Services,304259,Equipment and Materials,11-Nov-2020,000007384361748,DISCLOSURE AND BARRING,9399,Equipment-purchase and rental,23.00,0.00,23.00
Children and Young Peoples Services,Head of Childrens Social Care,085333,Coxhoe Satelite Home,Supplies and Services,324117,Provisions E324,11-Nov-2020,000007384361764,B&M 681 - DURHAM,5399,Catering costs - provisions,38.48,0.00,38.48
Children and Young Peoples Services,Head of Childrens Social Care,085333,Coxhoe Satelite Home,Supplies and Services,304999,Equipment and Materials,11-Nov-2020,000007384361774,HOME BARGAINS,5251,Misc equipment tools and materials,14.33,2.39,11.94
Children and Young Peoples Services,Head of Childrens Social Care,085333,Coxhoe Satelite Home,Supplies and Services,304999,Equipment and Materials,11-Nov-2020,000007384361776,HOME BARGAINS,5251,Misc equipment tools and materials,19.99,3.33,16.66
Children and Young Peoples Services,Head of Childrens Social Care,085333,Coxhoe Satelite Home,Supplies and Services,324117,Provisions E324,11-Nov-2020,000007384361786,TESCO STORES 2371,5411,Catering costs - provisions,6.25,0.00,6.25
Resources BK0010,Business Support,065461,Business Support 065461,Supplies and Services,304403,Equipment and Materials,11-Nov-2020,000007387252780,AMZNMKTPLACE AMAZON.CO,5999,Other consumables,6.99,1.17,5.82
Adult and Health Services,Head of Adults,055302,Durham Pathways,Supplies and Services,304403,Equipment and Materials,11-Nov-2020,000007387252840,AMZNMKTPLACE AMAZON.CO,5999,Other consumables,4.99,0.00,4.99
Adult and Health Services,Head of Adults,055302,Durham Pathways,Supplies and Services,304403,Equipment and Materials,11-Nov-2020,000007387252846,AMZNMKTPLACE AMAZON.CO,5999,Other consumables,30.50,5.08,25.42
Children and Young Peoples Services,Head of Childrens Social Care,085342,16 Hickstead Rise (previously 9 Cedar Ave),Supplies and Services,304999,Equipment and Materials,11-Nov-2020,000007387253190,BOOTS.COM,5912,Misc equipment tools and materials,44.99,0.00,44.99
Children and Young Peoples Services,Head of Early Help Inclusion & Vulnerable Children.,085965,Barnard,Supplies and Services,304999,Equipment and Materials,11-Nov-2020,000007387253300,Klarna iwantwallpaper,5251,Misc equipment tools and materials,56.00,0.00,56.00
Children and Young Peoples Services,Head of Childrens Social Care,085334,West Rainton Satelite Home,Supplies and Services,328041,Clothing uniforms and laundry E328,11-Nov-2020,000007387253458,HTTPS://WWW.SAFCSTORE.,5655,Clothing uniforms and laundry,134.98,0.00,134.98
Children and Young Peoples Services,Head of Early Help Inclusion & Vulnerable Children.,085965,Barnard,Supplies and Services,304403,Equipment and Materials,11-Nov-2020,000007387253504,AMZNMKTPLACE AMAZON.CO,5999,Other consumables,13.20,2.20,11.00
Children and Young Peoples Services,Head of Early Help Inclusion & Vulnerable Children.,085965,Barnard,Supplies and Services,304403,Equipment and Materials,11-Nov-2020,000007387253504 - 1,AMZNMKTPLACE AMAZON.CO,5999,Other consumables,23.92,,23.92
Resources BK0010,Business Support,065461,Business Support 065461,Supplies and Services,304403,Equipment and Materials,12-Nov-2020,000007384359556,AMZNMktplace,5999,Other consumables,17.99,0.00,17.99
Children and Young Peoples Services,Head of Childrens Social Care,085332,Middlestone Moor CU,Supplies and Services,384999,Miscellaneous Expenses,12-Nov-2020,000007384361540,Amazon.co.uk M79QC95P4,5969,Other expenses,6.17,1.03,5.14
Children and Young Peoples Services,Head of Education and Skills,071801,Selby Cottage Childcare Centre,Supplies and Services,324117,Provisions E324,12-Nov-2020,000007387252768,Wm Morrisons Store Pic,5411,Catering costs - provisions,89.28,0.00,89.28
Resources BK0010,Finance & Transactional Services,065180,Collections,Supplies and Services,338048,Services,12-Nov-2020,000007387252776,WWW.HMCOURT-SERVIC,9222,Court costs 338048,100.00,0.00,100.00
Resources BK0010,Business Support,065461,Business Support 065461,Supplies and Services,304403,Equipment and Materials,12-Nov-2020,000007387252786,AMZNMktplace,5999,Other consumables,29.99,5.00,24.99
"Regeneration, Economy and Growth",Development and Housing,031576,B& B - Temp Accom,Supplies and Services,364320,Grants to Voluntary Organisations,12-Nov-2020,000007387252792,H52STANLEY,7011,Accommodation assistance,500.00,0.00,500.00
"Regeneration, Economy and Growth",Development and Housing,031576,B& B - Temp Accom,Supplies and Services,364320,Grants to Voluntary Organisations,12-Nov-2020,000007387252794,H52STANLEY,7011,Accommodation assistance,131.00,0.00,131.00
Children and Young Peoples Services,Head of Childrens Social Care,085501,Child Care Cases Legal Expenses,Supplies and Services,304403,Equipment and Materials,12-Nov-2020,000007387252814,SUNDERLAND CC,9399,Other consumables,3.12,0.52,2.60
Children and Young Peoples Services,Head of Childrens Social Care,085501,Child Care Cases Legal Expenses,Supplies and Services,304403,Equipment and Materials,12-Nov-2020,000007387252814 - 1,SUNDERLAND CC,9399,Other consumables,7.88,,7.88
"Regeneration, Economy and Growth",Development and Housing,030773,CLLD North,Supplies and Services,304403,Equipment and Materials,12-Nov-2020,000007387252820,ACCESS SCREENING,5734,Other consumables,49.39,0.00,49.39
Children and Young Peoples Services,Head of Education and Skills,075021,Youth Employment Initiative,Supplies and Services,332048,Printing Stationery and Gen Off Exps,12-Nov-2020,000007387252828,Amazon.co.uk M78HP0BF4,5969,Administrative stationery etc,6.98,1.16,5.82
Children and Young Peoples Services,Head of Childrens Social Care,085333,Coxhoe Satelite Home,Supplies and Services,324001,Provisions E324,12-Nov-2020,000007387252958,KASHS OFF LICENCE,5921,Bar supplies,2.00,0.00,2.00
Children and Young Peoples Services,Head of Early Help Inclusion & Vulnerable Children.,071569,Woodhouse Close Childrens Centre,Supplies and Services,308011,Furniture,12-Nov-2020,000007387252978,WILKO.COM,5399,Furniture repair and replacement,33.00,5.50,27.50
Children and Young Peoples Services,Head of Early Help Inclusion & Vulnerable Children.,079599,Psychological-HQ,Employees,040149,Recruitment Instruction and Training,12-Nov-2020,000007387253058,WWW.ELKLAN.CO.UK,8299,Training-all costs,96.00,0.00,96.00
Children and Young Peoples Services,Head of Early Help Inclusion & Vulnerable Children.,079599,Psychological-HQ,Employees,040149,Recruitment Instruction and Training,12-Nov-2020,000007387253064,WWW.ELKLAN.CO.UK,8299,Training-all costs,66.00,0.00,66.00
Children and Young Peoples Services,Head of Early Help Inclusion & Vulnerable Children.,085952,Secure Education,Supplies and Services,384999,Miscellaneous Expenses,12-Nov-2020,000007387253070,Amazon.co.uk M73QA0HB4,5969,Other expenses,74.99,12.50,62.49
Neighbourhoods and Climate Change,Environmental Services,010900,Fleet - Meadowfield Fleet,Transport,215013,Running Costs of Vehicles,12-Nov-2020,000007387253146,DVLA VEHICLE TAX,9311,Vehicle Excise Duty (VED),267.50,0.00,267.50
Children and Young Peoples Services,Head of Education and Skills,071732,Dean Bank Childcare,Supplies and Services,304403,Equipment and Materials,12-Nov-2020,000007387253216,AMZNMktplace,5999,Other consumables,35.36,0.00,35.36
Adult and Health Services,Head of Adults,055202,Support and Recovery,Supplies and Services,328041,Clothing uniforms and laundry E328,12-Nov-2020,000007387253248,ARGOS LTD,5310,Clothing uniforms and laundry,49.99,0.00,49.99
"Regeneration, Economy and Growth",Development and Housing,031500,Housing Solutions - Core Team,Supplies and Services,304999,Equipment and Materials,12-Nov-2020,000007387253256,DUNCAN BELTON TA K,6513,Misc equipment tools and materials,500.00,0.00,500.00
"Regeneration, Economy and Growth",Development and Housing,031500,Housing Solutions - Core Team,Supplies and Services,352001,Conference Expenses,12-Nov-2020,000007387253260,HI NEWCASTLE WASHI,7011,Conferencesseminars fees etc,500.00,0.00,500.00
"Regeneration, Economy and Growth",Development and Housing,031500,Housing Solutions - Core Team,Supplies and Services,352001,Conference Expenses,12-Nov-2020,000007387253264,HI NEWCASTLE WASHI,7011,Conferencesseminars fees etc,500.00,0.00,500.00
"Regeneration, Economy and Growth",Development and Housing,031500,Housing Solutions - Core Team,Supplies and Services,352001,Conference Expenses,12-Nov-2020,000007387253266,HI NEWCASTLE WASHI,7011,Conferencesseminars fees etc,250.00,0.00,250.00
Children and Young Peoples Services,Head of Childrens Social Care,085334,West Rainton Satelite Home,Supplies and Services,304403,Equipment and Materials,12-Nov-2020,000007387253296,AMZNMktplace,5999,Other consumables,13.59,0.00,13.59
Children and Young Peoples Services,Head of Childrens Social Care,085334,West Rainton Satelite Home,Supplies and Services,304403,Equipment and Materials,12-Nov-2020,000007387253298,AMZNMktplace,5999,Other consumables,8.41,0.00,8.41
Children and Young Peoples Services,Head of Early Help Inclusion & Vulnerable Children.,074000,TTF-Attachment and Results,Transport,235057,Public Transport,12-Nov-2020,000007387253304,GO NORTH EAST LIMITED,4131,Staff travelling,75.00,0.00,75.00
Neighbourhoods and Climate Change,Environmental Services,011060,C&G - Hardwick Park Catering,Supplies and Services,324117,Provisions E324,12-Nov-2020,000007387253310,JR HOLLAND FOODSERVICE,5499,Catering costs - provisions,14.65,0.00,14.65
"Regeneration, Economy and Growth",Development and Housing,031576,B& B - Temp Accom,Supplies and Services,364320,Grants to Voluntary Organisations,12-Nov-2020,000007387253372,HI NEWCASTLE WASHI,7011,Accommodation assistance,455.00,0.00,455.00
Neighbourhoods and Climate Change,Environmental Services,010367,C&G - South Grounds Maintenance,Supplies and Services,304221,Equipment and Materials,12-Nov-2020,000007387253448,SCREWFIX DIRECT,5211,Direct materials,35.50,0.00,35.50
"Regeneration, Economy and Growth",Culture Sport and Tourism,054500,Deerbolt Borstal,Supplies and Services,312009,Newspapers books and periodicals E312,12-Nov-2020,000007387253452,AMZNMktplace,5999,Newspapers books and periodicals,116.60,0.00,116.60
Children and Young Peoples Services,Head of Childrens Social Care,085334,West Rainton Satelite Home,Supplies and Services,304403,Equipment and Materials,12-Nov-2020,000007387253454,AMZNMktplace,5999,Other consumables,8.45,0.00,8.45
Children and Young Peoples Services,Head of Childrens Social Care,085334,West Rainton Satelite Home,Supplies and Services,324117,Provisions E324,12-Nov-2020,000007387253462,TESCO STORES 2371,5411,Catering costs - provisions,120.39,0.00,120.39
Children and Young Peoples Services,Head of Early Help Inclusion & Vulnerable Children.,088103,Consett & Stanley 0-19 Community Family Hub,Supplies and Services,384302,Miscellaneous Expenses,12-Nov-2020,000007387253472,ASDA GEORGE COM LEEDS,5411,Activity expenses,54.00,0.00,54.00
Children and Young Peoples Services,Head of Early Help Inclusion & Vulnerable Children.,088103,Consett & Stanley 0-19 Community Family Hub,Supplies and Services,364301,Grants to Voluntary Organisations,12-Nov-2020,000007387253480,ASDA GEORGE COM LEEDS,5411,Hardship,38.45,0.00,38.45
Children and Young Peoples Services,Head of Early Help Inclusion & Vulnerable Children.,085954,Walworth,Transfer Payments,515140,Social Services Clients,12-Nov-2020,000007387253498,M and M Direct Ltd,5941,Clothing allowances,37.96,0.00,37.96
Children and Young Peoples Services,Head of Early Help Inclusion & Vulnerable Children.,085957,Secure Management,Supplies and Services,304245,Equipment and Materials,12-Nov-2020,000007387253506,SCREWFIX DIRECT,5211,Materials,23.99,4.00,19.99
Children and Young Peoples Services,Head of Early Help Inclusion & Vulnerable Children.,085954,Walworth,Transfer Payments,515140,Social Services Clients,12-Nov-2020,000007387253510,JD SPORTS INTERNET,5941,Clothing allowances,144.99,0.00,144.99
Resources BK0010,COVID19 - Resources,091007,COVID19 - Resources,Supplies and Services,384999,Miscellaneous Expenses,12-Nov-2020,000007387253526,AMZNMktplace,5999,Other expenses,14.99,2.50,12.49
Resources BK0010,Business Support,052986,CYPS - Locality and Operational Support,Supplies and Services,304259,Equipment and Materials,12-Nov-2020,000007387253532,ESSEX COUNTY COUNCI EC,9399,Equipment-purchase and rental,11.00,0.00,11.00
Resources BK0010,Business Support,052986,CYPS - Locality and Operational Support,Supplies and Services,328041,Clothing uniforms and laundry E328,12-Nov-2020,000007387253536,PRETTYLITTLETHING.COM,5691,Clothing uniforms and laundry,43.99,0.00,43.99
Resources BK0010,Business Support,052986,CYPS - Locality and Operational Support,Supplies and Services,304259,Equipment and Materials,12-Nov-2020,000007387253542,CURRYS ONLINE,5732,Equipment-purchase and rental,199.99,0.00,199.99
Resources BK0010,Business Support,052986,CYPS - Locality and Operational Support,Supplies and Services,328041,Clothing uniforms and laundry E328,12-Nov-2020,000007387253548,ARGOS LTD,5310,Clothing uniforms and laundry,234.99,0.00,234.99
Resources BK0010,Business Support,052986,CYPS - Locality and Operational Support,Supplies and Services,328041,Clothing uniforms and laundry E328,12-Nov-2020,000007387253558,ARGOS LTD,5310,Clothing uniforms and laundry,149.99,0.00,149.99
Resources BK0010,Business Support,052986,CYPS - Locality and Operational Support,Supplies and Services,328041,Clothing uniforms and laundry E328,12-Nov-2020,000007387253562,ARGOS LTD,5310,Clothing uniforms and laundry,63.94,0.00,63.94
Children and Young Peoples Services,Head of Early Help Inclusion & Vulnerable Children.,088111,Easington & Peterlee 0-19 Community Family Hub,Supplies and Services,324117,Provisions E324,12-Nov-2020,000007387253566,ASDA GROCERIES ONLINE,5411,Catering costs - provisions,56.26,0.00,56.26
"Regeneration, Economy and Growth",Transport and Contracted Services,031704,Care Connect - CCTV Countywide,Supplies and Services,384956,Miscellaneous Expenses,12-Nov-2020,000007387253584,SECURITY INDUSTRY,7393,Licences,190.00,0.00,190.00
"Regeneration, Economy and Growth",Development and Housing,031576,B& B - Temp Accom,Supplies and Services,364320,Grants to Voluntary Organisations,12-Nov-2020,000007387253610,H52STANLEY,7011,Accommodation assistance,327.00,0.00,327.00
"Regeneration, Economy and Growth",Development and Housing,031576,B& B - Temp Accom,Supplies and Services,364320,Grants to Voluntary Organisations,12-Nov-2020,000007387253614,H52STANLEY,7011,Accommodation assistance,93.00,0.00,93.00
"Regeneration, Economy and Growth",Development and Housing,031576,B& B - Temp Accom,Supplies and Services,364320,Grants to Voluntary Organisations,12-Nov-2020,000007387253616,HI NEWCASTLE WASHI,7011,Accommodation assistance,246.00,0.00,246.00
Children and Young Peoples Services,Head of Childrens Social Care,085351,Framwellgate Moor CU,Supplies and Services,308011,Furniture,12-Nov-2020,000007387253620,IKEA LTD SHOP ONLINE,5712,Furniture repair and replacement,90.00,0.00,90.00
Children and Young Peoples Services,Head of Early Help Inclusion & Vulnerable Children.,088107,Ferryhill & Newton Aycliffe 0-19 Community Family Hub,Supplies and Services,324117,Provisions E324,12-Nov-2020,000007387253668,ASDA GROCERIES ONLINE,5411,Catering costs - provisions,82.62,0.00,82.62
Children and Young Peoples Services,Head of Early Help Inclusion & Vulnerable Children.,088107,Ferryhill & Newton Aycliffe 0-19 Community Family Hub,Supplies and Services,324117,Provisions E324,12-Nov-2020,000007387253674,ASDA GROCERIES ONLINE,5411,Catering costs - provisions,-0.33,0.00,-0.33
Neighbourhoods and Climate Change,Environmental Services,031200,North Pennines Core,Supplies and Services,384999,Miscellaneous Expenses,12-Nov-2020,000007387253688,WWW.ROTHERVALLEYOPTICS,5945,Other expenses,139.50,23.25,116.25
"Regeneration, Economy and Growth",Development and Housing,031500,Housing Solutions - Core Team,Supplies and Services,352001,Conference Expenses,12-Nov-2020,000007387253694,H52STANLEY,7011,Conferencesseminars fees etc,78.00,0.00,78.00
Neighbourhoods and Climate Change,Community Protection,011035,Consumer Protection 011035,Supplies and Services,340001,Postages E340,12-Nov-2020,000007387253740,ROYAL MAIL ONLINE SHOP,9402,Postages,37.93,0.00,37.93
Adult and Health Services,Head of Adults,055310,Positive Journeys (Tudhoe),Supplies and Services,324117,Provisions E324,12-Nov-2020,000007387253750,TESCO STORES 2916,5411,Catering costs - provisions,7.81,0.00,7.81
Children and Young Peoples Services,Head of Childrens Social Care,085332,Middlestone Moor CU,Supplies and Services,324117,Provisions E324,12-Nov-2020,000007387253864,SAINSBURYS SACAT 2070,5411,Catering costs - provisions,23.06,0.00,23.06
"Regeneration, Economy and Growth",Development and Housing,031500,Housing Solutions - Core Team,Supplies and Services,352001,Conference Expenses,12-Nov-2020,000009266822933,AYCLIFFE BIZ,7011,Conferencesseminars fees etc,152.00,0.00,152.00
Neighbourhoods and Climate Change,Environmental Services,011060,C&G - Hardwick Park Catering,Supplies and Services,324117,Provisions E324,12-Nov-2020,000009266823089,BATLEYS PERTH,5300,Catering costs - provisions,14.22,2.37,11.85
Neighbourhoods and Climate Change,Environmental Services,011060,C&G - Hardwick Park Catering,Supplies and Services,324117,Provisions E324,12-Nov-2020,000009266823089 - 1,BATLEYS PERTH,5300,Catering costs - provisions,76.54,,76.54
Neighbourhoods and Climate Change,Environmental Services,011060,C&G - Hardwick Park Catering,Supplies and Services,324117,Provisions E324,12-Nov-2020,000009266823109,BATLEYS PERTH,5300,Catering costs - provisions,-13.98,0.00,-13.98
Children and Young Peoples Services,Head of Childrens Social Care,085341,High Etherley Satelite Home,Supplies and Services,324117,Provisions E324,13-Nov-2020,000009266821451,SPAR - GEM WEST AUCKLA,5411,Catering costs - provisions,4.64,0.00,4.64
Resources BK0010,Business Support,065461,Business Support 065461,Supplies and Services,384999,Miscellaneous Expenses,13-Nov-2020,000009266821539,Amazon.co.uk M79MS8Q24,5969,Other expenses,120.06,0.00,120.06
Resources BK0010,Business Support,065461,Business Support 065461,Supplies and Services,304403,Equipment and Materials,13-Nov-2020,000009266821547,AMZNMktplace,5999,Other consumables,174.72,29.12,145.60
Resources BK0010,Business Support,065461,Business Support 065461,Supplies and Services,304403,Equipment and Materials,13-Nov-2020,000009266821547 - 1,AMZNMktplace,5999,Other consumables,0.28,,0.28
Resources BK0010,Business Support,065461,Business Support 065461,Supplies and Services,304259,Equipment and Materials,13-Nov-2020,000009266821551,APPLE.COM/UK,5732,Equipment-purchase and rental,19.00,3.17,15.83
Resources BK0010,Business Support,065461,Business Support 065461,Supplies and Services,304403,Equipment and Materials,13-Nov-2020,000009266821559,BLS POWERMAPPER,5734,Other consumables,238.80,0.00,238.80
"Regeneration, Economy and Growth",Development and Housing,031576,B& B - Temp Accom,Supplies and Services,364320,Grants to Voluntary Organisations,13-Nov-2020,000009266821665,H52STANLEY,7011,Accommodation assistance,161.00,0.00,161.00
Children and Young Peoples Services,Head of Education and Skills,075021,Youth Employment Initiative,Supplies and Services,332047,Printing Stationery and Gen Off Exps,13-Nov-2020,000009266821675,Amazon.co.uk M70TS18S4,5969,Stationery,13.83,2.31,11.52
Children and Young Peoples Services,Head of Education and Skills,075021,Youth Employment Initiative,Supplies and Services,364301,Grants to Voluntary Organisations,13-Nov-2020,000009266821681,GO NORTH EAST LIMITED,4131,Hardship,17.00,0.00,17.00
Adult and Health Services,Head of Adults,055302,Durham Pathways,Supplies and Services,328041,Clothing uniforms and laundry E328,13-Nov-2020,000009266821699,ARGOS LTD,5310,Clothing uniforms and laundry,20.00,0.00,20.00
Adult and Health Services,Head of Adults,055302,Durham Pathways,Supplies and Services,304403,Equipment and Materials,13-Nov-2020,000009266821707,AMZNMKTPLACE AMAZON.CO,5999,Other consumables,33.30,0.00,33.30
Children and Young Peoples Services,Head of Childrens Social Care,085332,Middlestone Moor CU,Supplies and Services,328041,Clothing uniforms and laundry E328,13-Nov-2020,000009266821741,W BOYES & CO LTD NEWTO,5310,Clothing uniforms and laundry,3.38,0.00,3.38
Children and Young Peoples Services,Head of Childrens Social Care,085332,Middlestone Moor CU,Supplies and Services,324117,Provisions E324,13-Nov-2020,000009266821747,TESCO STORES 2371,5411,Catering costs - provisions,111.78,0.00,111.78
Children and Young Peoples Services,Head of Childrens Social Care,085341,High Etherley Satelite Home,Supplies and Services,348037,Subsistence E348,13-Nov-2020,000009266821829,SumUp Spudfellas,5814,Subsistence,38.25,0.00,38.25
"Regeneration, Economy and Growth",Development and Housing,030776,LINKCD Flexible Fund,Supplies and Services,304403,Equipment and Materials,13-Nov-2020,000009266821961,AMZNMktplace,5999,Other consumables,38.48,0.00,38.48
Children and Young Peoples Services,Head of Childrens Social Care,085380,Operations Manager LAC Resources,Supplies and Services,308011,Furniture,13-Nov-2020,000009266822019,WF WAYFAIR 3390295744,5712,Furniture repair and replacement,2.12,0.00,2.12
Children and Young Peoples Services,Head of Childrens Social Care,085380,Operations Manager LAC Resources,Supplies and Services,328041,Clothing uniforms and laundry E328,13-Nov-2020,000009266822023,ARGOS LTD,5310,Clothing uniforms and laundry,39.93,0.00,39.93
Children and Young Peoples Services,Head of Childrens Social Care,085380,Operations Manager LAC Resources,Supplies and Services,328041,Clothing uniforms and laundry E328,13-Nov-2020,000009266822027,ARGOS LTD,5310,Clothing uniforms and laundry,99.99,0.00,99.99
Children and Young Peoples Services,Head of Childrens Social Care,085352,Tow Law CU,Supplies and Services,324117,Provisions E324,13-Nov-2020,000009266822447,TESCO STORES 6334,5411,Catering costs - provisions,34.05,0.00,34.05
Children and Young Peoples Services,Head of Education and Skills,071732,Dean Bank Childcare,Supplies and Services,324117,Provisions E324,13-Nov-2020,000009266822589,TESCO STORES 2916,5411,Catering costs - provisions,24.00,0.00,24.00
Children and Young Peoples Services,Head of Education and Skills,071732,Dean Bank Childcare,Supplies and Services,304403,Equipment and Materials,13-Nov-2020,000009266822601,AMZNMKTPLACE AMAZON.CO,5999,Other consumables,79.64,0.00,79.64
"Regeneration, Economy and Growth",Development and Housing,031500,Housing Solutions - Core Team,Supplies and Services,352001,Conference Expenses,13-Nov-2020,000009266822859,AYCLIFFE BIZ,7011,Conferencesseminars fees etc,114.00,0.00,114.00
"Regeneration, Economy and Growth",Business Durham CL0850,030671,Business Space 030671,Supplies and Services,332047,Printing Stationery and Gen Off Exps,13-Nov-2020,000009266822901,EMERGE (NE) LTD,5943,Stationery,11.14,0.00,11.14
Children and Young Peoples Services,Head of Childrens Social Care,085334,West Rainton Satelite Home,Supplies and Services,324117,Provisions E324,13-Nov-2020,000009266822951,ASDA SUPERSTORE 4987,5411,Catering costs - provisions,7.11,0.00,7.11
Children and Young Peoples Services,Head of Early Help Inclusion & Vulnerable Children.,085956,Lumley,Supplies and Services,304403,Equipment and Materials,13-Nov-2020,000009266822973,AMZNMktplace,5999,Other consumables,29.50,0.00,29.50
Children and Young Peoples Services,Head of Early Help Inclusion & Vulnerable Children.,085965,Barnard,Supplies and Services,324117,Provisions E324,13-Nov-2020,000009266822983,TESCO STORES 6329,5411,Catering costs - provisions,45.16,0.00,45.16
Neighbourhoods and Climate Change,Environmental Services,010919,C&G - Countryside Site Management,Supplies and Services,304259,Equipment and Materials,13-Nov-2020,000009266823077,SCREWFIX BISHOP AUCKLA,5211,Equipment-purchase and rental,16.98,2.83,14.15
Neighbourhoods and Climate Change,Environmental Services,011060,C&G - Hardwick Park Catering,Supplies and Services,324117,Provisions E324,13-Nov-2020,000009266823099,JR HOLLAND FOODSERVICE,5499,Catering costs - provisions,56.40,0.00,56.40
"Regeneration, Economy and Growth",Development and Housing,031500,Housing Solutions - Core Team,Supplies and Services,352001,Conference Expenses,13-Nov-2020,000009266823261,HI NEWCASTLE WASHI,7011,Conferencesseminars fees etc,500.00,0.00,500.00
"Regeneration, Economy and Growth",Development and Housing,031500,Housing Solutions - Core Team,Supplies and Services,352001,Conference Expenses,13-Nov-2020,000009266823267,HI NEWCASTLE WASHI,7011,Conferencesseminars fees etc,500.00,0.00,500.00
"Regeneration, Economy and Growth",Development and Housing,031500,Housing Solutions - Core Team,Supplies and Services,352001,Conference Expenses,13-Nov-2020,000009266823273,HI NEWCASTLE WASHI,7011,Conferencesseminars fees etc,105.00,0.00,105.00
Children and Young Peoples Services,Head of Childrens Social Care,085625,Families First Spennymoor,Supplies and Services,338045,Services,13-Nov-2020,000009266823607,DARLINGTON BC INTERNET,9399,Legal expenses 338045,11.00,0.00,11.00
Children and Young Peoples Services,Head of Childrens Social Care,085625,Families First Spennymoor,Supplies and Services,338035,Services,13-Nov-2020,000009266823611,DARLINGTON BC INTERNET,9399,Examination fees 338035,11.00,0.00,11.00
Children and Young Peoples Services,Head of Childrens Social Care,085341,High Etherley Satelite Home,Supplies and Services,324117,Provisions E324,13-Nov-2020,000009266823653,TESCO STORES 6329,5411,Catering costs - provisions,30.70,0.00,30.70
Children and Young Peoples Services,Head of Childrens Social Care,085341,High Etherley Satelite Home,Supplies and Services,324117,Provisions E324,13-Nov-2020,000009266823663,TESCO STORES 6329,5411,Catering costs - provisions,10.00,0.00,10.00
Children and Young Peoples Services,Head of Childrens Social Care,085341,High Etherley Satelite Home,Supplies and Services,348037,Subsistence E348,13-Nov-2020,000009266823667,MCDONALD`S,5812,Subsistence,12.78,0.00,12.78
Children and Young Peoples Services,Head of Childrens Social Care,085334,West Rainton Satelite Home,Supplies and Services,304403,Equipment and Materials,13-Nov-2020,000009266823721,AMZNMKTPLACE AMAZON.CO,5999,Other consumables,45.13,0.00,45.13
Children and Young Peoples Services,Head of Childrens Social Care,085334,West Rainton Satelite Home,Supplies and Services,304403,Equipment and Materials,13-Nov-2020,000009266823729,AMZNMKTPLACE AMAZON.CO,5999,Other consumables,139.30,0.00,139.30
Adult and Health Services,Head of Adults,055643,Hawthorn House LD Respite Unit,Supplies and Services,304403,Equipment and Materials,13-Nov-2020,000009266823799,AMZNMKTPLACE AMAZON.CO,5999,Other consumables,14.98,0.00,14.98
Children and Young Peoples Services,Head of Childrens Social Care,085342,16 Hickstead Rise (previously 9 Cedar Ave),Supplies and Services,324117,Provisions E324,13-Nov-2020,000009266823871,TESCO STORES 6329,5411,Catering costs - provisions,16.99,0.00,16.99
Children and Young Peoples Services,Head of Childrens Social Care,085342,16 Hickstead Rise (previously 9 Cedar Ave),Supplies and Services,324117,Provisions E324,13-Nov-2020,000009266823881,TESCO STORES 6329,5411,Catering costs - provisions,12.93,0.00,12.93
Adult and Health Services,Head of Adults,055306,Spennymoor Pathways,Supplies and Services,324117,Provisions E324,13-Nov-2020,000009266823921,ASDA SUPERSTORE 4987,5411,Catering costs - provisions,5.20,0.00,5.20
Resources BK0010,Business Support,052986,CYPS - Locality and Operational Support,Supplies and Services,324117,Provisions E324,13-Nov-2020,000009266823951,TESCO STORES 2278,5411,Catering costs - provisions,16.99,0.00,16.99
Adult and Health Services,Head of Adults,055643,Hawthorn House LD Respite Unit,Supplies and Services,324117,Provisions E324,13-Nov-2020,000009266823957,JR HOLLAND FOODSERVICE,5499,Catering costs - provisions,17.77,0.00,17.77
Adult and Health Services,Head of Adults,055643,Hawthorn House LD Respite Unit,Supplies and Services,324117,Provisions E324,13-Nov-2020,000009266823967,JR HOLLAND FOODSERVICE,5499,Catering costs - provisions,15.33,0.00,15.33
Children and Young Peoples Services,Head of Education and Skills,070264,EDC Premises,Supplies and Services,342033,Computers and Communications,13-Nov-2020,000009266824027,SurveyMonkey,7372,Computer hardware,384.00,0.00,384.00
Resources BK0010,Digital and Customer Services,065335,School Services - Implementations,Supplies and Services,304639,Equipment and Materials,13-Nov-2020,000009266824079,AMZNMktplace,5999,Technicians-supplies,17.99,3.00,14.99
Resources BK0010,Digital and Customer Services,065335,School Services - Implementations,Supplies and Services,304639,Equipment and Materials,13-Nov-2020,000009266824085,WWW.ALIEXPRESS.COM,5964,Technicians-supplies,6.56,0.00,6.56
Resources BK0010,Digital and Customer Services,065335,School Services - Implementations,Supplies and Services,304639,Equipment and Materials,13-Nov-2020,000009266824091,REPLACEBASE,5732,Technicians-supplies,41.70,0.00,41.70
Children and Young Peoples Services,Head of Childrens Social Care,085334,West Rainton Satelite Home,Supplies and Services,324117,Provisions E324,13-Nov-2020,000009266824119,TESCO STORES 2371,5411,Catering costs - provisions,211.98,0.00,211.98
Children and Young Peoples Services,Head of Childrens Social Care,085334,West Rainton Satelite Home,Supplies and Services,324117,Provisions E324,13-Nov-2020,000009266824127,TESCO STORES 2371,5411,Catering costs - provisions,12.00,0.00,12.00
Children and Young Peoples Services,Head of Early Help Inclusion & Vulnerable Children.,085957,Secure Management,Supplies and Services,338064,Services,13-Nov-2020,000009266824171,DISCLOSURE & BARRING,9399,Disclosure & Barring (DBS) Fees,13.00,0.00,13.00
Resources BK0010,Business Support,052986,CYPS - Locality and Operational Support,Supplies and Services,328041,Clothing uniforms and laundry E328,13-Nov-2020,000009266824237,PEACOCK STORES,5331,Clothing uniforms and laundry,72.99,0.00,72.99
Resources BK0010,Business Support,052986,CYPS - Locality and Operational Support,Supplies and Services,328041,Clothing uniforms and laundry E328,13-Nov-2020,000009266824245,ARGOS LTD,5310,Clothing uniforms and laundry,139.99,0.00,139.99
"Regeneration, Economy and Growth",Development and Housing,031576,B& B - Temp Accom,Supplies and Services,364320,Grants to Voluntary Organisations,13-Nov-2020,000009266824367,MANOR HOUSE FERRYHILL,5812,Accommodation assistance,200.00,0.00,200.00
"Regeneration, Economy and Growth",Development and Housing,031576,B& B - Temp Accom,Supplies and Services,364320,Grants to Voluntary Organisations,13-Nov-2020,000009266824375,H52STANLEY,7011,Accommodation assistance,15.00,0.00,15.00
"Regeneration, Economy and Growth",Development and Housing,031576,B& B - Temp Accom,Supplies and Services,364320,Grants to Voluntary Organisations,13-Nov-2020,000009266824381,BUDGET H EXPRESS HOTEL,7011,Accommodation assistance,267.00,0.00,267.00
"Regeneration, Economy and Growth",Development and Housing,031576,B& B - Temp Accom,Supplies and Services,364320,Grants to Voluntary Organisations,13-Nov-2020,000009266824389,H52STANLEY,7011,Accommodation assistance,-136.00,0.00,-136.00
Children and Young Peoples Services,Head of Childrens Social Care,085342,16 Hickstead Rise (previously 9 Cedar Ave),Supplies and Services,324117,Provisions E324,13-Nov-2020,000009266824409,TESCO STORES 2916,5411,Catering costs - provisions,170.21,0.00,170.21
Adult and Health Services,Head of Adults,055310,Positive Journeys (Tudhoe),Supplies and Services,324117,Provisions E324,13-Nov-2020,000009266824559,TESCO STORES 4358,5411,Catering costs - provisions,30.55,0.00,30.55
"Regeneration, Economy and Growth",Development and Housing,031500,Housing Solutions - Core Team,Supplies and Services,352001,Conference Expenses,13-Nov-2020,000009266824621,H52STANLEY,7011,Conferencesseminars fees etc,249.00,0.00,249.00
"Regeneration, Economy and Growth",Development and Housing,031500,Housing Solutions - Core Team,Supplies and Services,352001,Conference Expenses,13-Nov-2020,000009266824623,H52STANLEY,7011,Conferencesseminars fees etc,219.00,0.00,219.00
Children and Young Peoples Services,Head of Childrens Social Care,085333,Coxhoe Satelite Home,Supplies and Services,324117,Provisions E324,13-Nov-2020,000009266824859,B&M 681 - DURHAM,5399,Catering costs - provisions,6.50,0.00,6.50
Children and Young Peoples Services,Head of Childrens Social Care,085333,Coxhoe Satelite Home,Supplies and Services,324117,Provisions E324,13-Nov-2020,000009266824867,B&M 681 - DURHAM,5399,Catering costs - provisions,1.99,0.00,1.99
Children and Young Peoples Services,Head of Childrens Social Care,085333,Coxhoe Satelite Home,Supplies and Services,324117,Provisions E324,13-Nov-2020,000009266824869,B&M 681 - DURHAM,5399,Catering costs - provisions,3.99,0.00,3.99
Children and Young Peoples Services,Head of Childrens Social Care,085333,Coxhoe Satelite Home,Supplies and Services,324117,Provisions E324,13-Nov-2020,000009266824875,B&M 681 - DURHAM,5399,Catering costs - provisions,25.50,0.00,25.50
Children and Young Peoples Services,Head of Childrens Social Care,085333,Coxhoe Satelite Home,Supplies and Services,324117,Provisions E324,13-Nov-2020,000009266824881,WILKO RETAIL LIMITED,5399,Catering costs - provisions,23.10,3.85,19.25
Children and Young Peoples Services,Head of Childrens Social Care,085333,Coxhoe Satelite Home,Supplies and Services,304999,Equipment and Materials,13-Nov-2020,000009266824887,HOME BARGAINS,5251,Misc equipment tools and materials,7.98,1.33,6.65
Children and Young Peoples Services,Head of Childrens Social Care,085333,Coxhoe Satelite Home,Supplies and Services,324117,Provisions E324,13-Nov-2020,000009266824889,TESCO STORES 2371,5411,Catering costs - provisions,4.88,0.00,4.88
